﻿Body Name,Service Area,Expenses Type,Invoice Payment Date,Transaction Number,Net Amount,Supplier Name
Manchester City Council,Manchester Leisure,Grant and subscriptions awarded,03/05/2022,1700133305,-2500,Redacted Personal Information
Manchester City Council,Regeneration Finance,Gas,05/05/2022,1700133884,-1466.53,SEFE ENERGY Ltd
Manchester City Council,Corporate Services,Vehicle Costs,09/05/2022,1700133902,-4582.5,Cyclescheme Ltd
Manchester City Council,Environment and Operations,Long Term Debtors,31/05/2022,1700133968,-114746,Biffa Waste Services Ltd
Manchester City Council,Environment and Operations,Long Term Debtors,31/05/2022,1700133969,-83750,Biffa Waste Services Ltd
Manchester City Council,Environment and Operations,Long Term Debtors,31/05/2022,1700133970,-627340,Biffa Waste Services Ltd
Manchester City Council,Manchester Leisure,Library Materials Acquisition,31/05/2022,1700133971,-4000,Bolinda UK Limited
Manchester City Council,Manchester Leisure,Library Materials Acquisition,31/05/2022,1700133972,-4000,Bolinda UK Limited
Manchester City Council,Manchester Leisure,Library Materials Acquisition,16/05/2022,1700134070,-1120,THOMSON REUTERS UK LTD
Manchester City Council,Environment and Operations,Professional Fees,17/05/2022,1700134080,-1636.2,Environmental Analyst Ltd
Manchester City Council,Manchester Leisure,Professional fees,17/05/2022,1700134081,-2250,Redacted Personal Information
Manchester City Council,Adult Social Care,Computer Licenses,17/05/2022,1700134082,-34000,HSBC Bank Plc
Manchester City Council,Corporate Services,Transport Taxis,17/05/2022,1700134084,-9233.1,Street Cars
Manchester City Council,Regeneration Finance,Water - Metered,19/05/2022,1700134231,-19069.93,Anglian Water Business (National)
Manchester City Council,Regeneration Finance,Water - Metered,19/05/2022,1700134233,-565.07,Anglian Water Business (National)
Manchester City Council,Regeneration Finance,Electricity,19/05/2022,1700134234,-4596.74,Scottish & Southern Energy Plc
Manchester City Council,Regeneration Finance,Electricity,19/05/2022,1700134235,-3186.57,Scottish & Southern Energy Plc
Manchester City Council,Regeneration Finance,Electricity,19/05/2022,1700134236,-3649.87,Scottish & Southern Energy Plc
Manchester City Council,Regeneration Finance,Electricity,19/05/2022,1700134237,-2902.78,Scottish & Southern Energy Plc
Manchester City Council,Regeneration Finance,Electricity,19/05/2022,1700134244,-4157.8,Scottish & Southern Energy Plc
Manchester City Council,Regeneration Finance,Electricity,19/05/2022,1700134245,-4157.8,Scottish & Southern Energy Plc
Manchester City Council,Regeneration Finance,Electricity,19/05/2022,1700134246,-5045.06,Scottish & Southern Energy Plc
Manchester City Council,Regeneration Finance,Electricity,19/05/2022,1700134247,-5640.4,Scottish & Southern Energy Plc
Manchester City Council,Regeneration Finance,Electricity,19/05/2022,1700134248,-552.08,Scottish & Southern Energy Plc
Manchester City Council,Manchester Leisure,Electricity,19/05/2022,1700134249,-2044.74,Npower
Manchester City Council,Manchester Leisure,Electricity,19/05/2022,1700134250,-2157.98,Npower
Manchester City Council,Manchester Leisure,Electricity,19/05/2022,1700134251,-1214.99,Npower
Manchester City Council,Manchester Leisure,Electricity,19/05/2022,1700134252,-2167.88,Npower
Manchester City Council,Manchester Leisure,Electricity,19/05/2022,1700134253,-2237.3,Npower
Manchester City Council,Manchester Leisure,Electricity,19/05/2022,1700134254,-2363.69,Npower
Manchester City Council,Hospitality + Trading Services,Electricity,19/05/2022,1700134255,-24152.72,Npower
Manchester City Council,Manchester Leisure,Electricity,19/05/2022,1700134256,-22126.33,Npower
Manchester City Council,Manchester Leisure,Electricity,19/05/2022,1700134257,-22929.41,Npower
Manchester City Council,Manchester Leisure,Electricity,19/05/2022,1700134258,-20055.44,Npower
Manchester City Council,Childrens & Education Services,Electricity,19/05/2022,1700134259,-3392.21,Npower
Manchester City Council,Childrens & Education Services,Electricity,19/05/2022,1700134260,-2999.22,Npower
Manchester City Council,Adult Social Care,Electricity,19/05/2022,1700134261,-1648.93,Npower
Manchester City Council,Adult Social Care,Electricity,19/05/2022,1700134262,-1522.14,Npower
Manchester City Council,Adult Social Care,Electricity,19/05/2022,1700134263,-3437.44,Npower
Manchester City Council,Chief Executives,Equipment,19/05/2022,1700134280,-629.86,Amazon Co.Uk
Manchester City Council,Chief Executives,Equipment,19/05/2022,1700134281,-700,HBH MANCHESTER NORTHERN
Manchester City Council,Regeneration Finance,Legal Fees,24/05/2022,1700134312,-3750,Jones Lang LaSalle Limited
Manchester City Council,Chief Executives,Legal Fees,24/05/2022,1700134313,-648,Redacted Personal Information
Manchester City Council,Hospitality + Trading Services,Electricity,26/05/2022,1700134319,-22527.4,Npower
Manchester City Council,Regeneration Finance,Electricity,26/05/2022,1700134320,-16166.92,Npower
Manchester City Council,Highways Services,Electricity,26/05/2022,1700134321,-1714.72,Npower
Manchester City Council,Highways Services,Electricity,26/05/2022,1700134322,-514.85,Npower
Manchester City Council,Childrens & Education Services,Electricity,26/05/2022,1700134323,-2321.27,Npower
Manchester City Council,Childrens & Education Services,Electricity,26/05/2022,1700134324,-3142.4,Npower
Manchester City Council,Childrens & Education Services,Electricity,26/05/2022,1700134325,-3139.13,Npower
Manchester City Council,Childrens & Education Services,Legal Fees,12/05/2022,1907218881,2160,Redacted Personal Information
Manchester City Council,Regeneration Finance,Legal Fees,03/05/2022,1907563817,550,18 St John Street Chambers
Manchester City Council,Childrens & Education Services,Compensation Payments,12/05/2022,1907596759,5000,Simpson Millar LLP
Manchester City Council,Childrens & Education Services,Professional fees,26/05/2022,1907598531,770,18 St John Street Chambers
Manchester City Council,Regeneration Finance,Legal Fees,04/05/2022,1907598899,1000,Francis Taylor Buildings
Manchester City Council,Manchester Leisure,Other Allowances,12/05/2022,1907600707,8324.12,Tusker Direct
Manchester City Council,Childrens & Education Services,Legal Fees,12/05/2022,1907604005,1894,Clyde & Co Claims LLP
Manchester City Council,General Fund,BRP Top Up Payments,17/05/2022,1907606838,3152947,DCLG
Manchester City Council,General Fund,Levies,11/05/2022,1907606868,3755400,GMCA
Manchester City Council,Collection Fund,Bus Rate - Preceptor,18/05/2022,1907606903,162768,GMCA
Manchester City Council,Collection Fund,Ctax Preceptr Pymnts,18/05/2022,1907606903,3733897,GMCA
Manchester City Council,Childrens & Education Services,Legal Fees,12/05/2022,1907607434,4227,Clyde & Co Claims LLP
Manchester City Council,Manchester Leisure,Agency staff provision,04/05/2022,1907612672,6680,Navigate NDC
Manchester City Council,Regeneration Finance,Rents,19/05/2022,1907613632,1907.51,Savills Commercial Ltd
Manchester City Council,Manchester Leisure,Legal Fees,04/05/2022,1907614032,550,Redacted Personal Information
Manchester City Council,Childrens & Education Services,Professional fees,04/05/2022,1907614489,650,18 St John Street Chambers
Manchester City Council,Regeneration Finance,Rents,03/05/2022,1907670300,12500,Asda Stores Ltd (Leeds)
Manchester City Council,Corporate Services,Transport Coach Hire,16/05/2022,1907727042,54000,HMCS Traffic EC
Manchester City Council,Corporate Services,Data Registration,16/05/2022,1907727043,54000,HMCS Traffic EC
Manchester City Council,Manchester Leisure,Electricity,12/05/2022,1907727127,519.94,EON NEXT
Manchester City Council,Highways Services,Electricity,05/05/2022,1907727134,1500,Tym Huckin Ltd
Manchester City Council,Regeneration Finance,Rents,03/05/2022,1907727145,25368.75,Tesco (Rent Only)
Manchester City Council,Regeneration Finance,Rents,03/05/2022,1907727148,25368.75,Tesco (Rent Only)
Manchester City Council,Regeneration Finance,Rents,03/05/2022,1907727149,2498.46,Tesco (Rent Only)
Manchester City Council,Regeneration Finance,Compensation Payments,17/05/2022,1907727935,500,Redacted Personal Information
Manchester City Council,Manchester Leisure,Equipment,09/05/2022,1907727946,811.11,Manchester Urban Diggers CIC
Manchester City Council,Corporate Services,Legal Fees,12/05/2022,1907727949,550,Pinnacle Building and Surveying
Manchester City Council,Chief Executives,Professional fees,03/05/2022,1907727971,1458.33,Giraffe Flowers Ltd
Manchester City Council,Childrens & Education Services,Legal Fees,03/05/2022,1907727984,1240,Redacted Personal Information
Manchester City Council,Childrens & Education Services,Professional fees,04/05/2022,1907728004,550,DEANS COURT CHAMBERS
Manchester City Council,Childrens & Education Services,Professional fees,10/05/2022,1907728161,1187.5,Redacted Personal Information
Manchester City Council,Childrens & Education Services,Professional fees,04/05/2022,1907728163,1062.5,Redacted Personal Information
Manchester City Council,Manchester Leisure,Professional fees,04/05/2022,1907728165,916.64,Duncan Reeds Ltd
Manchester City Council,Childrens & Education Services,Professional fees,11/05/2022,1907728166,650,18 St John Street Chambers
Manchester City Council,Corporate Services,Legal Fees,12/05/2022,1907728541,900,Trinity Chambers
Manchester City Council,Regeneration Finance,Rents,03/05/2022,1907728714,25368.75,Tesco (Rent Only)
Manchester City Council,Regeneration Finance,Rents,03/05/2022,1907728715,2509,Tesco (Rent Only)
Manchester City Council,Regeneration Finance,Rents,03/05/2022,1907728722,23431.27,Tesco (Rent Only)
Manchester City Council,Childrens & Education Services,Professional fees,10/05/2022,1907728741,590.63,Redacted Personal Information
Manchester City Council,Corporate Services,Legal Fees,03/05/2022,1907728788,813.44,CEL Solicitors
Manchester City Council,Corporate Services,Compensation Payments,09/05/2022,1907728799,3500,Peasegoods
Manchester City Council,Corporate Services,Legal Fees,09/05/2022,1907728799,8200,Peasegoods
Manchester City Council,Corporate Services,Legal Fees,03/05/2022,1907728801,12250,Bond Turner Solicitors
Manchester City Council,Corporate Services,Compensation Payments,04/05/2022,1907728929,617.67,High Street Solicitors
Manchester City Council,Corporate Services,Compensation Payments,04/05/2022,1907728984,1500,Cromptons Solicitors Account
Manchester City Council,Corporate Services,Compensation Payments,03/05/2022,1907728991,1500,EMERALD LAW
Manchester City Council,Corporate Services,Legal Fees,04/05/2022,1907729021,6250,Driscoll Kingston Solicitors
Manchester City Council,Manchester Leisure,Professional fees,03/05/2022,1907729039,3405.98,UNISERVE LTD
Manchester City Council,Chief Executives,Professional fees,06/05/2022,1907730676,700,Kenworthy's Chambers
Manchester City Council,Childrens & Education Services,Professional fees,11/05/2022,1907730678,700,Kenworthy's Chambers
Manchester City Council,Highways Services,Legal Fees,09/05/2022,1907730680,725,Department For Work & Pensions
Manchester City Council,Childrens & Education Services,Professional fees,06/05/2022,1907730690,1190,18 St John Street Chambers
Manchester City Council,Chief Executives,Legal Fees,06/05/2022,1907730692,600,Central Chambers
Manchester City Council,Corporate Services,Fees,09/05/2022,1907730695,-56772.81,Jacobs
Manchester City Council,Corporate Services,Fees,09/05/2022,1907730695,56772.81,Jacobs
Manchester City Council,Corporate Services,Fees,09/05/2022,1907730697,-85400.12,Jacobs
Manchester City Council,Corporate Services,Fees,09/05/2022,1907730697,85400.12,Jacobs
Manchester City Council,Chief Executives,Legal Fees,06/05/2022,1907730704,843.75,Redacted Personal Information
Manchester City Council,Chief Executives,Legal Fees,06/05/2022,1907730705,550,Redacted Personal Information
Manchester City Council,Manchester Leisure,Contract Cleaning External,06/05/2022,1907735848,3776.87,Business Stream
Manchester City Council,Manchester Leisure,Contract Cleaning External,06/05/2022,1907735849,10714.72,Business Stream
Manchester City Council,Manchester Leisure,Contract Cleaning External,06/05/2022,1907735850,1815.58,Business Stream
Manchester City Council,Manchester Leisure,Contract Cleaning External,06/05/2022,1907735852,10563.91,Business Stream
Manchester City Council,Chief Executives,Professional fees,06/05/2022,1907735859,2268.43,Redacted Personal Information
Manchester City Council,Corporate Services,Fees,09/05/2022,1907735865,-15018.9,Jacobs
Manchester City Council,Corporate Services,Fees,09/05/2022,1907735865,18022.68,Jacobs
Manchester City Council,Childrens & Education Services,Legal Fees,10/05/2022,1907735869,665,Department For Work & Pensions
Manchester City Council,Childrens & Education Services,Professional fees,10/05/2022,1907735873,695,Medico-Legal North West
Manchester City Council,Chief Executives,Legal Fees,06/05/2022,1907735875,555.47,Fraud Advisory Services Ltd
Manchester City Council,Corporate Services,Legal Fees,09/05/2022,1907735876,1250,Redacted Personal Information
Manchester City Council,Highways Services,Compensation Payments,04/05/2022,1907735878,2250,SERIOUS LAW
Manchester City Council,Highways Services,Legal Fees,04/05/2022,1907735879,3499.16,NEW LAW SOLICITORS
Manchester City Council,Highways Services,Compensation Payments,04/05/2022,1907735879,5043,NEW LAW SOLICITORS
Manchester City Council,Manchester Leisure,Professional fees,04/05/2022,1907735882,12000,SQUASH MEDIA AND MARKETING LTD
Manchester City Council,Childrens & Education Services,Professional fees,11/05/2022,1907735891,600,Central Chambers
Manchester City Council,Chief Executives,Legal Fees,06/05/2022,1907735892,500,Central Chambers
Manchester City Council,Chief Executives,Professional fees,05/05/2022,1907735894,5000,Industry Management Ltd
Manchester City Council,Manchester Leisure,Payments to Sub-Contractors,06/05/2022,1907736008,53674.42,NSL Ltd
Manchester City Council,Manchester Leisure,Payments to Sub-Contractors,06/05/2022,1907736009,3771.46,NSL Ltd
Manchester City Council,Hospitality + Trading Services,Funeral and coroner related services,10/05/2022,1907736014,2000,Friends of Philips Park Cemetery
Manchester City Council,Childrens & Education Services,Legal Fees,10/05/2022,1907736018,932.5,Child Plus Consultancy
Manchester City Council,Regeneration Finance,Legal Fees,06/05/2022,1907736019,8200,Francis Taylor Building
Manchester City Council,Childrens & Education Services,Professional fees,17/05/2022,1907736020,630,Westminster Education Forum
Manchester City Council,Childrens & Education Services,Professional fees,11/05/2022,1907736022,525,Redacted Personal Information
Manchester City Council,Childrens & Education Services,Professional fees,10/05/2022,1907736027,540,Redacted Personal Information
Manchester City Council,Chief Executives,Legal Fees,06/05/2022,1907736028,550,Redacted Personal Information
Manchester City Council,Manchester Leisure,Professional fees,11/05/2022,1907736756,681.25,Bluebell Cottage Gardens
Manchester City Council,Adult Social Care,Housing Rents Debit,06/05/2022,1907736757,1500,Redacted Personal Information
Manchester City Council,Chief Executives,Advertising,06/05/2022,1907736758,680,The UK District Energy Association
Manchester City Council,Highways Services,Compensation Payments,10/05/2022,1907736760,1892.84,Winworth Construction Limited
Manchester City Council,Housing Revenue Account,Works and associated costs for Land and Buildings,09/05/2022,1907736762,1900,Gray Scanlan Hill Ltd
Manchester City Council,Adult Social Care,Gas,05/05/2022,1907737071,658.04,SEFE ENERGY Ltd
Manchester City Council,Regeneration Finance,Gas,05/05/2022,1907737077,2589.29,SEFE ENERGY Ltd
Manchester City Council,Manchester Leisure,Gas,05/05/2022,1907737079,698.57,SEFE ENERGY Ltd
Manchester City Council,Regeneration Finance,Gas,05/05/2022,1907737081,592.06,SEFE ENERGY Ltd
Manchester City Council,Manchester Leisure,Gas,05/05/2022,1907737085,742.53,SEFE ENERGY Ltd
Manchester City Council,Manchester Leisure,Gas,05/05/2022,1907737086,705.81,SEFE ENERGY Ltd
Manchester City Council,Manchester Leisure,Gas,05/05/2022,1907737087,3589.1,SEFE ENERGY Ltd
Manchester City Council,Manchester Leisure,Gas,05/05/2022,1907737095,500.23,SEFE ENERGY Ltd
Manchester City Council,Hospitality + Trading Services,Gas,05/05/2022,1907737097,3369.17,SEFE ENERGY Ltd
Manchester City Council,Manchester Leisure,Gas,05/05/2022,1907737098,852.99,SEFE ENERGY Ltd
Manchester City Council,Regeneration Finance,Gas,05/05/2022,1907737101,726.91,SEFE ENERGY Ltd
Manchester City Council,Childrens & Education Services,Gas,05/05/2022,1907737102,544.66,SEFE ENERGY Ltd
Manchester City Council,Housing Revenue Account,Gas,05/05/2022,1907737108,4350.66,SEFE ENERGY Ltd
Manchester City Council,Manchester Leisure,Gas,05/05/2022,1907737109,660.01,SEFE ENERGY Ltd
Manchester City Council,Manchester Leisure,Gas,05/05/2022,1907737113,2461.8,SEFE ENERGY Ltd
Manchester City Council,Manchester Leisure,Gas,05/05/2022,1907737114,703.07,SEFE ENERGY Ltd
Manchester City Council,Adult Social Care,Gas,05/05/2022,1907737116,783.7,SEFE ENERGY Ltd
Manchester City Council,Regeneration Finance,Gas,05/05/2022,1907737117,1184.86,SEFE ENERGY Ltd
Manchester City Council,Regeneration Finance,Gas,05/05/2022,1907737121,697.07,SEFE ENERGY Ltd
Manchester City Council,Regeneration Finance,Gas,05/05/2022,1907737125,2463.22,SEFE ENERGY Ltd
Manchester City Council,Regeneration Finance,Gas,05/05/2022,1907737126,741.21,SEFE ENERGY Ltd
Manchester City Council,Regeneration Finance,Gas,05/05/2022,1907737129,1125.82,SEFE ENERGY Ltd
Manchester City Council,Childrens & Education Services,Gas,05/05/2022,1907737132,1427.22,SEFE ENERGY Ltd
Manchester City Council,Regeneration Finance,Gas,05/05/2022,1907737133,801.85,SEFE ENERGY Ltd
Manchester City Council,Regeneration Finance,Gas,05/05/2022,1907737137,1063.94,SEFE ENERGY Ltd
Manchester City Council,Regeneration Finance,Gas,05/05/2022,1907737138,906.65,SEFE ENERGY Ltd
Manchester City Council,Regeneration Finance,Gas,05/05/2022,1907737141,791.71,SEFE ENERGY Ltd
Manchester City Council,Manchester Leisure,Gas,05/05/2022,1907737142,913.38,SEFE ENERGY Ltd
Manchester City Council,Manchester Leisure,Gas,05/05/2022,1907737144,827.43,SEFE ENERGY Ltd
Manchester City Council,Regeneration Finance,Gas,05/05/2022,1907737145,599.7,SEFE ENERGY Ltd
Manchester City Council,Regeneration Finance,Gas,05/05/2022,1907737150,751.09,SEFE ENERGY Ltd
Manchester City Council,Regeneration Finance,Gas,05/05/2022,1907737151,4555.81,SEFE ENERGY Ltd
Manchester City Council,Regeneration Finance,Gas,05/05/2022,1907737153,865.28,SEFE ENERGY Ltd
Manchester City Council,Manchester Leisure,Gas,05/05/2022,1907737154,2746.69,SEFE ENERGY Ltd
Manchester City Council,Manchester Leisure,Gas,05/05/2022,1907737155,845.28,SEFE ENERGY Ltd
Manchester City Council,Adult Social Care,Gas,05/05/2022,1907737157,600.74,SEFE ENERGY Ltd
Manchester City Council,Manchester Leisure,Gas,05/05/2022,1907737160,4096.48,SEFE ENERGY Ltd
Manchester City Council,Regeneration Finance,Gas,05/05/2022,1907737161,519.48,SEFE ENERGY Ltd
Manchester City Council,Manchester Leisure,Gas,05/05/2022,1907737164,1243.79,SEFE ENERGY Ltd
Manchester City Council,Manchester Leisure,Gas,05/05/2022,1907737166,1953.97,SEFE ENERGY Ltd
Manchester City Council,Manchester Leisure,Gas,05/05/2022,1907737171,2722.27,SEFE ENERGY Ltd
Manchester City Council,Manchester Leisure,Gas,05/05/2022,1907737173,592.42,SEFE ENERGY Ltd
Manchester City Council,Manchester Leisure,Gas,05/05/2022,1907737174,1967.73,SEFE ENERGY Ltd
Manchester City Council,Manchester Leisure,Gas,05/05/2022,1907737175,1808.85,SEFE ENERGY Ltd
Manchester City Council,Manchester Leisure,Gas,05/05/2022,1907737179,3216.86,SEFE ENERGY Ltd
Manchester City Council,Regeneration Finance,Gas,05/05/2022,1907737181,5677.01,SEFE ENERGY Ltd
Manchester City Council,Regeneration Finance,Gas,05/05/2022,1907737184,2520.34,SEFE ENERGY Ltd
Manchester City Council,Adult Social Care,Gas,05/05/2022,1907737188,583.5,SEFE ENERGY Ltd
Manchester City Council,Childrens & Education Services,Gas,05/05/2022,1907737189,519.3,SEFE ENERGY Ltd
Manchester City Council,Regeneration Finance,Gas,05/05/2022,1907737191,688.26,SEFE ENERGY Ltd
Manchester City Council,Regeneration Finance,Gas,05/05/2022,1907737193,783.47,SEFE ENERGY Ltd
Manchester City Council,Manchester Leisure,Gas,05/05/2022,1907737194,845.79,SEFE ENERGY Ltd
Manchester City Council,Manchester Leisure,Gas,05/05/2022,1907737196,666.72,SEFE ENERGY Ltd
Manchester City Council,Regeneration Finance,Gas,05/05/2022,1907737198,601.48,SEFE ENERGY Ltd
Manchester City Council,Manchester Leisure,Gas,05/05/2022,1907737200,825.89,SEFE ENERGY Ltd
Manchester City Council,Manchester Leisure,Gas,05/05/2022,1907737201,752.81,SEFE ENERGY Ltd
Manchester City Council,Regeneration Finance,Gas,05/05/2022,1907737207,884.82,SEFE ENERGY Ltd
Manchester City Council,Manchester Leisure,Gas,05/05/2022,1907737214,590.44,SEFE ENERGY Ltd
Manchester City Council,Regeneration Finance,Gas,05/05/2022,1907737216,727.74,SEFE ENERGY Ltd
Manchester City Council,Housing Revenue Account,Gas,05/05/2022,1907737217,5563.01,SEFE ENERGY Ltd
Manchester City Council,Manchester Leisure,Gas,05/05/2022,1907737218,4413.79,SEFE ENERGY Ltd
Manchester City Council,Manchester Leisure,Gas,05/05/2022,1907737223,629.69,SEFE ENERGY Ltd
Manchester City Council,Regeneration Finance,Gas,05/05/2022,1907737228,512.33,SEFE ENERGY Ltd
Manchester City Council,Regeneration Finance,Gas,05/05/2022,1907737233,113968.56,SEFE ENERGY Ltd
Manchester City Council,Regeneration Finance,Gas,05/05/2022,1907737234,201007.44,SEFE ENERGY Ltd
Manchester City Council,Regeneration Finance,Gas,05/05/2022,1907737235,2300.14,SEFE ENERGY Ltd
Manchester City Council,Adult Social Care,Gas,05/05/2022,1907737237,617.22,Scottish & Southern Energy Plc
Manchester City Council,Adult Social Care,Gas,05/05/2022,1907737252,562.91,Scottish & Southern Energy Plc
Manchester City Council,Adult Social Care,Gas,05/05/2022,1907737255,512.05,Scottish & Southern Energy Plc
Manchester City Council,Chief Executives,Funeral and coroner related services,06/05/2022,1907737268,1140,Redacted Personal Information
Manchester City Council,Corporate Services,Legal Fees,09/05/2022,1907737269,547.28,Redacted Personal Information
Manchester City Council,Corporate Services,Fees,16/05/2022,1907737274,-2816.13,Marston Group Limited
Manchester City Council,Corporate Services,Fees,16/05/2022,1907737274,2816.13,Marston Group Limited
Manchester City Council,Manchester Leisure,Testing Fees,11/05/2022,1907737277,665.52,Platform Service and Repair Ltd
Manchester City Council,Chief Executives,Legal Fees,06/05/2022,1907737278,1864.8,Sph Costing Services Ltd
Manchester City Council,Corporate Services,Fees,16/05/2022,1907737279,-620,Marston Group Limited
Manchester City Council,Corporate Services,Fees,16/05/2022,1907737279,620,Marston Group Limited
Manchester City Council,Corporate Services,Legal Fees,16/05/2022,1907737281,850,Trinity Chambers
Manchester City Council,Corporate Services,Legal Fees,16/05/2022,1907737282,1475,Trinity Chambers
Manchester City Council,Childrens & Education Services,Professional fees,11/05/2022,1907737283,5062.5,Redacted Personal Information
Manchester City Council,Corporate Services,Legal Fees,16/05/2022,1907737285,520,COSGROVE COSTINGS LIMITED
Manchester City Council,Corporate Services,Legal Fees,16/05/2022,1907737286,550,Pinnacle Building and Surveying
Manchester City Council,Corporate Services,Legal Fees,16/05/2022,1907737291,550,Pinnacle Building and Surveying
Manchester City Council,Corporate Services,Legal Fees,16/05/2022,1907737297,600,Trinity Chambers
Manchester City Council,Manchester Leisure,Payments to Sub-Contractors,10/05/2022,1907737298,2374.8,Park NOW Limited
Manchester City Council,Manchester Leisure,Professional fees,05/05/2022,1907737322,5808.61,Golden Moves Travel
Manchester City Council,Corporate Services,Legal Fees,16/05/2022,1907737327,1500,Trinity Chambers
Manchester City Council,Chief Executives,Professional fees,16/05/2022,1907737328,708.33,Redacted Personal Information
Manchester City Council,Childrens & Education Services,Professional fees,16/05/2022,1907737329,750,18 St John Street Chambers
Manchester City Council,Corporate Services,Legal Fees,16/05/2022,1907737330,600,Trinity Chambers
Manchester City Council,Chief Executives,Legal Fees,16/05/2022,1907737332,650,18 St John Street Chambers
Manchester City Council,Corporate Services,Legal Fees,16/05/2022,1907737336,550,Cobden House Chambers
Manchester City Council,Corporate Services,Legal Fees,16/05/2022,1907737337,1000,Trinity Chambers
Manchester City Council,Manchester Leisure,Contract Cleaning External,10/05/2022,1907737342,12860,Clearview Event Services Limited
Manchester City Council,Manchester Leisure,Charges for Services,13/05/2022,1907737346,70500.56,Accountant General of the Senior
Manchester City Council,Highways Services,Legal Fees,10/05/2022,1907737446,4100,United Utilities
Manchester City Council,Housing General Fund,Building Works,06/05/2022,1907737457,6556,Stannah Lift Services Ltd
Manchester City Council,Housing General Fund,Building Works,06/05/2022,1907737458,5750,Stannah Lift Services Ltd
Manchester City Council,Housing General Fund,Building Works,06/05/2022,1907737459,2420.5,Hoist & Shower Chair Company
Manchester City Council,Housing General Fund,Building Works,06/05/2022,1907737460,2045,Hoist & Shower Chair Company
Manchester City Council,Housing General Fund,Building Works,06/05/2022,1907737461,937.13,Stannah Lift Services Ltd
Manchester City Council,Housing General Fund,Building Works,06/05/2022,1907737462,5658,Stannah Lift Services Ltd
Manchester City Council,Housing General Fund,Building Works,06/05/2022,1907737463,6228,Stannah Lift Services Ltd
Manchester City Council,Housing General Fund,Building Works,06/05/2022,1907737464,6721,Stannah Lift Services Ltd
Manchester City Council,Housing General Fund,Building Works,06/05/2022,1907737465,6200,Stannah Lift Services Ltd
Manchester City Council,Housing General Fund,Building Works,09/05/2022,1907737466,15884.07,UPS Building & Maintenance Ltd
Manchester City Council,Housing General Fund,Building Works,06/05/2022,1907737467,7220,Stannah Lift Services Ltd
Manchester City Council,Insurance Fund,Bal of Rsk InsPrem,16/05/2022,1907737476,1000,Manley Park Primary School
Manchester City Council,Adult Social Care,Rents,31/05/2022,1907737588,1238.35,Redacted Personal Information
Manchester City Council,Childrens & Education Services,Catering Provisions,06/05/2022,1907737609,27778.2,Ralph Livesey Ltd
Manchester City Council,Childrens & Education Services,Professional fees,10/05/2022,1907737612,950,18 St John Street Chambers
Manchester City Council,Corporate Services,Legal Fees,09/05/2022,1907737618,1950,Redacted Personal Information
Manchester City Council,Adult Social Care,Rents,06/05/2022,1907737625,600,Redacted Personal Information
Manchester City Council,Childrens & Education Services,Transport Taxis,12/05/2022,1907737627,882.86,Cresta Car Hire
Manchester City Council,Manchester Leisure,Professional fees,06/05/2022,1907737629,648.09,Uniserve Limited
Manchester City Council,Chief Executives,Professional fees,09/05/2022,1907737630,500,Redacted Personal Information
Manchester City Council,Childrens & Education Services,Professional fees,11/05/2022,1907737632,520,Redacted Personal Information
Manchester City Council,Childrens & Education Services,Professional fees,11/05/2022,1907737634,550,Redacted Personal Information
Manchester City Council,Corporate Services,Vehicle Costs,09/05/2022,1907737644,9964.74,Cyclescheme Ltd
Manchester City Council,Corporate Services,Vehicle Costs,09/05/2022,1907737645,13553.52,Cyclescheme Ltd
Manchester City Council,Corporate Services,Legal Fees,16/05/2022,1907737648,1100,Trinity Chambers
Manchester City Council,Adult Social Care,Legal Fees,10/05/2022,1907737658,550,Pinnacle Building and Surveying
Manchester City Council,Highways Services,Legal Fees,06/05/2022,1907737662,7643.2,PROXIMO
Manchester City Council,Highways Services,Legal Fees,06/05/2022,1907737663,8808.13,McHale & Co Solicitors
Manchester City Council,Childrens & Education Services,Professional fees,10/05/2022,1907737697,950,Redacted Personal Information
Manchester City Council,Chief Executives,Legal Fees,16/05/2022,1907737698,770,18 St John Street Chambers
Manchester City Council,Chief Executives,Legal Fees,13/05/2022,1907737702,550,Redacted Personal Information
Manchester City Council,Childrens & Education Services,Professional fees,16/05/2022,1907737703,710,18 St John Street Chambers
Manchester City Council,Highways Services,Legal Fees,10/05/2022,1907737704,1303.11,Ashtons Legal
Manchester City Council,Manchester Leisure,Other Insurance,12/05/2022,1907738181,6650.37,Aon Ltd
Manchester City Council,Corporate Services,Capital Receipts,09/05/2022,1907738185,234750,CHANDLER HARRIS LLP
Manchester City Council,Regeneration Finance,Rents,12/05/2022,1907738188,559500,Adam Geoffrey Management Ltd
Manchester City Council,Childrens & Education Services,Childrens Allowances,16/05/2022,1907738193,1000,Barclays Debit Card - Remand
Manchester City Council,Corporate Services,Legal Fees,16/05/2022,1907738207,600,Trinity Chambers
Manchester City Council,Childrens & Education Services,Grant Payments,10/05/2022,1907738208,10620.4,Paypoint
Manchester City Council,Corporate Services,Legal Fees,16/05/2022,1907738218,650,COSGROVE COSTINGS LIMITED
Manchester City Council,Corporate Services,Legal Fees,16/05/2022,1907738221,1425,Trinity Chambers
Manchester City Council,Housing General Fund,Surplus property Fees,20/05/2022,1907738222,610.2,Waddell Taylor Bryan
Manchester City Council,Childrens & Education Services,Training and Development,20/05/2022,1907738223,628.8,Redacted Personal Information
Manchester City Council,Chief Executives,Legal Fees,11/05/2022,1907738289,650,Redacted Personal Information
Manchester City Council,Chief Executives,Legal Fees,11/05/2022,1907738291,7750,Forbes Solicitors
Manchester City Council,Corporate Services,Legal Fees,16/05/2022,1907738608,550,Pinnacle Building and Surveying
Manchester City Council,Corporate Services,Legal Fees,16/05/2022,1907738877,1029.47,Sph Costing Services Ltd
Manchester City Council,Corporate Services,Legal Fees,16/05/2022,1907738907,851.72,Sph Costing Services Ltd
Manchester City Council,Corporate Services,Legal Fees,16/05/2022,1907738909,750,Trinity Chambers
Manchester City Council,Corporate Services,Legal Fees,16/05/2022,1907738913,650,SK Real Estate Ltd
Manchester City Council,Chief Executives,Professional fees,12/05/2022,1907738914,3428.13,BDB Special Projects Ltd
Manchester City Council,Insurance Fund,Travel Insce Premium,10/05/2022,1907738917,6700.96,Redacted Personal Information
Manchester City Council,Insurance Fund,Travel Insce Premium,10/05/2022,1907738918,12451.04,Redacted Personal Information
Manchester City Council,Corporate Services,Legal Fees,16/05/2022,1907738919,780,Redacted Personal Information
Manchester City Council,Corporate Services,Legal Fees,16/05/2022,1907738972,800,Calland Mellor Consulting
Manchester City Council,Corporate Services,Legal Fees,16/05/2022,1907738973,1248.41,Peter Dickeson Associates Ltd
Manchester City Council,Corporate Services,Legal Fees,16/05/2022,1907738977,1254.94,Redacted Personal Information
Manchester City Council,Chief Executives,Professional fees,16/05/2022,1907738984,650,18 St John Street Chambers
Manchester City Council,Manchester Leisure,Other Allowances,20/05/2022,1907738989,7777.08,Tusker Direct
Manchester City Council,Corporate Services,Legal Fees,16/05/2022,1907741131,936,COSGROVE COSTINGS LIMITED
Manchester City Council,Childrens & Education Services,Professional fees,16/05/2022,1907741132,710,18 St John Street Chambers
Manchester City Council,Chief Executives,Professional fees,13/05/2022,1907741142,1300,Redacted Personal Information
Manchester City Council,Manchester Leisure,Professional fees,11/05/2022,1907741162,32451.83,Sport Taekwondo UK Limited
Manchester City Council,Manchester Leisure,Levies,18/05/2022,1907741167,2496000,GMCA
Manchester City Council,Regeneration Finance,Water - Metered,12/05/2022,1907741539,701.27,Anglian Water Business (National)
Manchester City Council,Regeneration Finance,Water - Metered,12/05/2022,1907741549,701.27,Anglian Water Business (National)
Manchester City Council,Regeneration Finance,Water - Metered,12/05/2022,1907741555,701.27,Anglian Water Business (National)
Manchester City Council,Regeneration Finance,Water - Metered,12/05/2022,1907741559,701.27,Anglian Water Business (National)
Manchester City Council,Regeneration Finance,Water - Metered,12/05/2022,1907741566,1332.32,Anglian Water Business (National)
Manchester City Council,Regeneration Finance,Water - Metered,12/05/2022,1907741567,701.27,Anglian Water Business (National)
Manchester City Council,Regeneration Finance,Water - Metered,12/05/2022,1907741573,701.27,Anglian Water Business (National)
Manchester City Council,Regeneration Finance,Water - Metered,12/05/2022,1907741575,2201.18,Anglian Water Business (National)
Manchester City Council,Regeneration Finance,Water - Metered,12/05/2022,1907741583,701.27,Anglian Water Business (National)
Manchester City Council,Regeneration Finance,Water - Metered,12/05/2022,1907741586,1332.32,Anglian Water Business (National)
Manchester City Council,Childrens & Education Services,Electricity,12/05/2022,1907741612,570.71,Total Gas & Power
Manchester City Council,Manchester Leisure,Electricity,12/05/2022,1907741613,3813.49,Haven Power Ltd
Manchester City Council,Housing Revenue Account,Electricity,12/05/2022,1907741614,4707.3,Haven Power Ltd
Manchester City Council,Highways Services,Electricity,12/05/2022,1907741617,6787.19,Haven Power Ltd
Manchester City Council,Highways Services,Electricity,12/05/2022,1907741618,124707.32,Haven Power Ltd
Manchester City Council,Manchester Leisure,Water - Unmetered,12/05/2022,1907741620,500.17,United Utilities Water Plc
Manchester City Council,Corporate Services,Transport Taxis,17/05/2022,1907741634,9233.1,Street Cars
Manchester City Council,Environment and Operations,Long Term Debtors,31/05/2022,1907741793,114746,Biffa Waste Services Ltd
Manchester City Council,Environment and Operations,Long Term Debtors,31/05/2022,1907741795,627340,Biffa Waste Services Ltd
Manchester City Council,Manchester Leisure,Library Materials Acquisition,31/05/2022,1907741882,4000,Bolinda UK Limited
Manchester City Council,Corporate Services,Energy Rebate,12/05/2022,1907741965,14625000,Post Office Ltd
Manchester City Council,Chief Executives,Legal Fees,16/05/2022,1907742395,13717.98,Manchester Creative Digital Assets
Manchester City Council,Adult Social Care,"Consumable items eg Toilet rolls, soap etc",13/05/2022,1907742436,1353,HOTEL AT BOOKING.COM
Manchester City Council,Manchester Leisure,Mobilephone Charges,13/05/2022,1907742442,3120.96,O2 UK PAYMENT
Manchester City Council,Chief Executives,Grant Payments,13/05/2022,1907742450,2625,SAFARI BOOKS ONLINE
Manchester City Council,Adult Social Care,"Consumable items eg Toilet rolls, soap etc",13/05/2022,1907742453,1100,S AND S SALES MCR LTD
Manchester City Council,Adult Social Care,"Consumable items eg Toilet rolls, soap etc",13/05/2022,1907742468,590,GUESTHOUSE MANCHESTER
Manchester City Council,Adult Social Care,"Consumable items eg Toilet rolls, soap etc",13/05/2022,1907742477,880.45,Lockhart Catering Equipment Ltd
Manchester City Council,Chief Executives,Publications,13/05/2022,1907742478,654,WWW.LOCAL.GOV.UK
Manchester City Council,Adult Social Care,"Consumable items eg Toilet rolls, soap etc",13/05/2022,1907742480,1540,PARK CITY SUITES HOTEL
Manchester City Council,Adult Social Care,"Consumable items eg Toilet rolls, soap etc",13/05/2022,1907742482,1540,PARK CITY SUITES HOTEL
Manchester City Council,Adult Social Care,"Consumable items eg Toilet rolls, soap etc",13/05/2022,1907742512,1540,PARK CITY SUITES HOTEL
Manchester City Council,Adult Social Care,"Consumable items eg Toilet rolls, soap etc",13/05/2022,1907742520,1540,PARK CITY SUITES HOTEL
Manchester City Council,Adult Social Care,"Consumable items eg Toilet rolls, soap etc",13/05/2022,1907742523,1540,PARK CITY SUITES HOTEL
Manchester City Council,Adult Social Care,"Consumable items eg Toilet rolls, soap etc",13/05/2022,1907742524,849.59,Lockhart Catering Equipment Ltd
Manchester City Council,Adult Social Care,Payments for services,13/05/2022,1907742525,1303,MILTON MANCHESTER HOTE
Manchester City Council,Adult Social Care,"Consumable items eg Toilet rolls, soap etc",13/05/2022,1907742527,1380,NOVUM MANAGEMENT GMBH
Manchester City Council,Adult Social Care,"Consumable items eg Toilet rolls, soap etc",13/05/2022,1907742531,743,HOTEL AT BOOKING.COM
Manchester City Council,Adult Social Care,"Consumable items eg Toilet rolls, soap etc",13/05/2022,1907742532,1325,NOVUM MANAGEMENT GMBH
Manchester City Council,Adult Social Care,"Consumable items eg Toilet rolls, soap etc",13/05/2022,1907742537,615,Lockhart Catering Equipment Ltd
Manchester City Council,Hospitality + Trading Services,Building Materials for direct delivery,13/05/2022,1907742538,718.8,MACHINE MART LTD
Manchester City Council,Adult Social Care,"Consumable items eg Toilet rolls, soap etc",13/05/2022,1907742544,2136,HOTEL AT BOOKING.COM
Manchester City Council,Hospitality + Trading Services,Building Materials for direct delivery,13/05/2022,1907742547,2282.63,MACHINE MART LTD
Manchester City Council,Hospitality + Trading Services,Building Materials for direct delivery,13/05/2022,1907742548,511.8,Amazon Co.Uk
Manchester City Council,Adult Social Care,"Consumable items eg Toilet rolls, soap etc",13/05/2022,1907742551,502.5,Premier Inn P CARD ONLY
Manchester City Council,Hospitality + Trading Services,Equipment,13/05/2022,1907742555,2706.13,Stapletons Tyre Services
Manchester City Council,Adult Social Care,"Consumable items eg Toilet rolls, soap etc",13/05/2022,1907742556,1046,HOLIDAY INN P CARD ONLY
Manchester City Council,Chief Executives,Advertising,13/05/2022,1907742557,574.45,Facebook (CARD ONLY)
Manchester City Council,Adult Social Care,"Consumable items eg Toilet rolls, soap etc",13/05/2022,1907742558,1075,HOTEL AT BOOKING.COM
Manchester City Council,Adult Social Care,"Consumable items eg Toilet rolls, soap etc",13/05/2022,1907742567,528,Premier Inn P CARD ONLY
Manchester City Council,Adult Social Care,"Consumable items eg Toilet rolls, soap etc",13/05/2022,1907742573,-849.59,Lockhart Catering Equipment Ltd
Manchester City Council,Adult Social Care,"Consumable items eg Toilet rolls, soap etc",13/05/2022,1907742575,1112.41,HOTEL AT BOOKING.COM
Manchester City Council,Adult Social Care,"Consumable items eg Toilet rolls, soap etc",13/05/2022,1907742576,920.95,Lockhart Catering Equipment Ltd
Manchester City Council,Adult Social Care,"Consumable items eg Toilet rolls, soap etc",13/05/2022,1907742586,912,HOTEL AT BOOKING.COM
Manchester City Council,Adult Social Care,"Consumable items eg Toilet rolls, soap etc",13/05/2022,1907742591,743,HOTEL AT BOOKING.COM
Manchester City Council,Adult Social Care,"Consumable items eg Toilet rolls, soap etc",13/05/2022,1907742592,912,HOTEL AT BOOKING.COM
Manchester City Council,Adult Social Care,"Consumable items eg Toilet rolls, soap etc",13/05/2022,1907742593,671.51,Lockhart Catering Equipment Ltd
Manchester City Council,Adult Social Care,"Consumable items eg Toilet rolls, soap etc",13/05/2022,1907742595,1205,HOTEL AT BOOKING.COM
Manchester City Council,Adult Social Care,"Consumable items eg Toilet rolls, soap etc",13/05/2022,1907742602,1234,HOTEL AT BOOKING.COM
Manchester City Council,Adult Social Care,"Consumable items eg Toilet rolls, soap etc",13/05/2022,1907742612,928,HOTEL AT BOOKING.COM
Manchester City Council,Adult Social Care,"Consumable items eg Toilet rolls, soap etc",13/05/2022,1907742615,2618,HOTEL AT BOOKING.COM
Manchester City Council,Adult Social Care,"Consumable items eg Toilet rolls, soap etc",13/05/2022,1907742633,757,HOTEL AT BOOKING.COM
Manchester City Council,Adult Social Care,"Consumable items eg Toilet rolls, soap etc",13/05/2022,1907742638,704,HOTEL AT BOOKING.COM
Manchester City Council,Adult Social Care,"Consumable items eg Toilet rolls, soap etc",13/05/2022,1907742641,1247.1,HOTEL AT BOOKING.COM
Manchester City Council,Adult Social Care,"Consumable items eg Toilet rolls, soap etc",13/05/2022,1907742642,-658,HOTEL AT BOOKING.COM
Manchester City Council,Adult Social Care,"Consumable items eg Toilet rolls, soap etc",13/05/2022,1907742645,-1112.41,HOTEL AT BOOKING.COM
Manchester City Council,Adult Social Care,"Consumable items eg Toilet rolls, soap etc",13/05/2022,1907742646,682.3,TRAVELODGE P CARD ONLY
Manchester City Council,Adult Social Care,"Consumable items eg Toilet rolls, soap etc",13/05/2022,1907742647,530,Premier Inn P CARD ONLY
Manchester City Council,Adult Social Care,"Consumable items eg Toilet rolls, soap etc",13/05/2022,1907742653,1424,HOTEL AT BOOKING.COM
Manchester City Council,Manchester Leisure,"Consumable items eg Toilet rolls, soap etc",13/05/2022,1907742656,660,ROYAL MAIL ONLINE SHOP
Manchester City Council,Adult Social Care,"Consumable items eg Toilet rolls, soap etc",13/05/2022,1907742660,503,HOTEL AT BOOKING.COM
Manchester City Council,Childrens & Education Services,General Office expenses,13/05/2022,1907742663,1120,KICK AIR MANCHESTER
Manchester City Council,Manchester Leisure,"Consumable items eg Toilet rolls, soap etc",13/05/2022,1907742666,2659.1,COBWEB SOLUTIONS LIMIT
Manchester City Council,Adult Social Care,"Consumable items eg Toilet rolls, soap etc",13/05/2022,1907742672,792.88,HOTEL AT BOOKING.COM
Manchester City Council,Chief Executives,"Consumable items eg Toilet rolls, soap etc",13/05/2022,1907742677,1200,OCEANMEDIA.CO.UK
Manchester City Council,Adult Social Care,"Consumable items eg Toilet rolls, soap etc",13/05/2022,1907742680,521,Premier Inn P CARD ONLY
Manchester City Council,Adult Social Care,"Consumable items eg Toilet rolls, soap etc",13/05/2022,1907742688,843,HOTEL AT BOOKING.COM
Manchester City Council,Adult Social Care,"Consumable items eg Toilet rolls, soap etc",13/05/2022,1907742701,1292,HOTEL AT BOOKING.COM
Manchester City Council,Adult Social Care,"Consumable items eg Toilet rolls, soap etc",13/05/2022,1907742710,1346,HOTEL AT BOOKING.COM
Manchester City Council,Adult Social Care,"Consumable items eg Toilet rolls, soap etc",13/05/2022,1907742711,806.95,Lockhart Catering Equipment Ltd
Manchester City Council,Adult Social Care,"Consumable items eg Toilet rolls, soap etc",13/05/2022,1907742713,541,Lockhart Catering Equipment Ltd
Manchester City Council,Adult Social Care,"Consumable items eg Toilet rolls, soap etc",13/05/2022,1907742715,-541,Lockhart Catering Equipment Ltd
Manchester City Council,Adult Social Care,"Consumable items eg Toilet rolls, soap etc",13/05/2022,1907742722,503.5,Premier Inn P CARD ONLY
Manchester City Council,Adult Social Care,"Consumable items eg Toilet rolls, soap etc",13/05/2022,1907742724,503,HOTEL AT BOOKING.COM
Manchester City Council,Chief Executives,Advertising,13/05/2022,1907742730,700,Facebook (CARD ONLY)
Manchester City Council,Adult Social Care,"Consumable items eg Toilet rolls, soap etc",13/05/2022,1907742736,-806.95,Lockhart Catering Equipment Ltd
Manchester City Council,Adult Social Care,"Consumable items eg Toilet rolls, soap etc",13/05/2022,1907742740,1000.47,TRAVELODGE P CARD ONLY
Manchester City Council,Adult Social Care,"Consumable items eg Toilet rolls, soap etc",13/05/2022,1907742742,542.5,Premier Inn P CARD ONLY
Manchester City Council,Adult Social Care,"Consumable items eg Toilet rolls, soap etc",13/05/2022,1907742746,1333,HOTEL AT BOOKING.COM
Manchester City Council,Childrens & Education Services,General Office expenses,13/05/2022,1907742750,601.95,Lockhart Catering Equipment Ltd
Manchester City Council,Childrens & Education Services,Equipment,31/05/2022,1907742751,1115,HOLIDAY PAYMENT AVR
Manchester City Council,Childrens & Education Services,Bed & Breakfast Acc,13/05/2022,1907742752,1091.4,WWW.LUXINN.CO.UK
Manchester City Council,Adult Social Care,"Consumable items eg Toilet rolls, soap etc",13/05/2022,1907742755,820.95,Lockhart Catering Equipment Ltd
Manchester City Council,Adult Social Care,"Consumable items eg Toilet rolls, soap etc",13/05/2022,1907742767,1023,MILTON MANCHESTER HOTE
Manchester City Council,Adult Social Care,"Consumable items eg Toilet rolls, soap etc",13/05/2022,1907742770,1507.69,Redacted Personal Information
Manchester City Council,Childrens & Education Services,Equipment,31/05/2022,1907742773,3092,OFSTED INTERNET
Manchester City Council,Adult Social Care,"Consumable items eg Toilet rolls, soap etc",13/05/2022,1907742774,528.5,Premier Inn P CARD ONLY
Manchester City Council,Adult Social Care,"Consumable items eg Toilet rolls, soap etc",13/05/2022,1907742791,1606,NOVUM MANAGEMENT GMBH
Manchester City Council,Adult Social Care,"Consumable items eg Toilet rolls, soap etc",13/05/2022,1907742797,558,HOTEL IBIS
Manchester City Council,Adult Social Care,"Consumable items eg Toilet rolls, soap etc",13/05/2022,1907742802,1294,MILTON MANCHESTER HOTE
Manchester City Council,Adult Social Care,"Consumable items eg Toilet rolls, soap etc",13/05/2022,1907742805,602,MILTON MANCHESTER HOTE
Manchester City Council,Childrens & Education Services,Bed & Breakfast Acc,13/05/2022,1907742808,1713.6,WWW.LUXINN.CO.UK
Manchester City Council,Adult Social Care,"Consumable items eg Toilet rolls, soap etc",13/05/2022,1907742813,516,HOTEL IBIS
Manchester City Council,Adult Social Care,"Consumable items eg Toilet rolls, soap etc",13/05/2022,1907742829,1540,PARK CITY SUITES HOTEL
Manchester City Council,Adult Social Care,"Consumable items eg Toilet rolls, soap etc",13/05/2022,1907742838,1540,PARK CITY SUITES HOTEL
Manchester City Council,Childrens & Education Services,Equipment,31/05/2022,1907742841,600,HOTELSCOM9166773783644
Manchester City Council,Adult Social Care,"Consumable items eg Toilet rolls, soap etc",13/05/2022,1907742849,788,IBIS STYLES MANCHESTER
Manchester City Council,Adult Social Care,"Consumable items eg Toilet rolls, soap etc",13/05/2022,1907742856,825,NOVUM MANAGEMENT GMBH
Manchester City Council,Adult Social Care,"Consumable items eg Toilet rolls, soap etc",13/05/2022,1907742864,788,IBIS STYLES MANCHESTER
Manchester City Council,Childrens & Education Services,Equipment,31/05/2022,1907742875,739,NORMANHURST HOTEL
Manchester City Council,Adult Social Care,"Consumable items eg Toilet rolls, soap etc",13/05/2022,1907742879,549.5,Premier Inn P CARD ONLY
Manchester City Council,Adult Social Care,"Consumable items eg Toilet rolls, soap etc",13/05/2022,1907742888,500.72,TRAVELODGE P CARD ONLY
Manchester City Council,Adult Social Care,"Consumable items eg Toilet rolls, soap etc",13/05/2022,1907742910,1540,PARK CITY SUITES HOTEL
Manchester City Council,Chief Executives,Advertising,13/05/2022,1907742919,4290,GETTYIMAGES.COM
Manchester City Council,Adult Social Care,"Consumable items eg Toilet rolls, soap etc",13/05/2022,1907742922,1540,PARK CITY SUITES HOTEL
Manchester City Council,Childrens & Education Services,Equipment,31/05/2022,1907742926,512.95,Lockhart Catering Equipment Ltd
Manchester City Council,Adult Social Care,"Consumable items eg Toilet rolls, soap etc",13/05/2022,1907742928,1406,MILTON MANCHESTER HOTE
Manchester City Council,Adult Social Care,"Consumable items eg Toilet rolls, soap etc",13/05/2022,1907742929,503,MILTON MANCHESTER HOTE
Manchester City Council,Manchester Leisure,"Consumable items eg Toilet rolls, soap etc",13/05/2022,1907742935,786.6,MSFT * E0400I54B6
Manchester City Council,Adult Social Care,"Consumable items eg Toilet rolls, soap etc",13/05/2022,1907742943,1406,MILTON MANCHESTER HOTE
Manchester City Council,Adult Social Care,"Consumable items eg Toilet rolls, soap etc",13/05/2022,1907742946,1540,PARK CITY SUITES HOTEL
Manchester City Council,Adult Social Care,"Consumable items eg Toilet rolls, soap etc",13/05/2022,1907742949,2206,HOTEL AT BOOKING.COM
Manchester City Council,Adult Social Care,"Consumable items eg Toilet rolls, soap etc",13/05/2022,1907742958,513,Britannia Hotels PCARD ONLY
Manchester City Council,Adult Social Care,"Consumable items eg Toilet rolls, soap etc",13/05/2022,1907742963,573,MILTON MANCHESTER HOTE
Manchester City Council,Adult Social Care,"Consumable items eg Toilet rolls, soap etc",13/05/2022,1907742974,524,MILTON MANCHESTER HOTE
Manchester City Council,Adult Social Care,"Consumable items eg Toilet rolls, soap etc",13/05/2022,1907742977,1593,MILTON MANCHESTER HOTE
Manchester City Council,Adult Social Care,"Consumable items eg Toilet rolls, soap etc",13/05/2022,1907742978,964,MILTON MANCHESTER HOTE
Manchester City Council,Chief Executives,Advertising,13/05/2022,1907742993,700,Facebook (CARD ONLY)
Manchester City Council,Adult Social Care,"Consumable items eg Toilet rolls, soap etc",13/05/2022,1907742997,1540,PARK CITY SUITES HOTEL
Manchester City Council,Adult Social Care,"Consumable items eg Toilet rolls, soap etc",13/05/2022,1907743007,963,MILTON MANCHESTER HOTE
Manchester City Council,Adult Social Care,"Consumable items eg Toilet rolls, soap etc",13/05/2022,1907743011,547,HOTEL IBIS
Manchester City Council,Adult Social Care,"Consumable items eg Toilet rolls, soap etc",13/05/2022,1907743030,552.78,TRAVELODGE P CARD ONLY
Manchester City Council,Chief Executives,Advertising,13/05/2022,1907743054,624,PAYPAL (UK) P CARD ONLY
Manchester City Council,Adult Social Care,"Consumable items eg Toilet rolls, soap etc",13/05/2022,1907743059,3640,VICTORIA PARK  RE
Manchester City Council,Adult Social Care,"Consumable items eg Toilet rolls, soap etc",13/05/2022,1907743069,792,NOVUM MANAGEMENT GMBH
Manchester City Council,Adult Social Care,"Consumable items eg Toilet rolls, soap etc",13/05/2022,1907743072,1400,TRIVELLES ECCLES HOTEL
Manchester City Council,Adult Social Care,"Consumable items eg Toilet rolls, soap etc",13/05/2022,1907743074,1540,TRIVELLES ECCLES HOTEL
Manchester City Council,Adult Social Care,"Consumable items eg Toilet rolls, soap etc",13/05/2022,1907743081,1470,MILTON MANCHESTER HOTE
Manchester City Council,Adult Social Care,"Consumable items eg Toilet rolls, soap etc",13/05/2022,1907743085,1400,TRIVELLES ECCLES HOTEL
Manchester City Council,Adult Social Care,"Consumable items eg Toilet rolls, soap etc",13/05/2022,1907743094,1400,TRIVELLES ECCLES HOTEL
Manchester City Council,Adult Social Care,"Consumable items eg Toilet rolls, soap etc",13/05/2022,1907743096,1011,HOTEL AT BOOKING.COM
Manchester City Council,Adult Social Care,"Consumable items eg Toilet rolls, soap etc",13/05/2022,1907743097,1400,TRIVELLES ECCLES HOTEL
Manchester City Council,Adult Social Care,"Consumable items eg Toilet rolls, soap etc",13/05/2022,1907743099,576,MILTON MANCHESTER HOTE
Manchester City Council,Adult Social Care,"Consumable items eg Toilet rolls, soap etc",13/05/2022,1907743100,655.75,TRAVELODGE P CARD ONLY
Manchester City Council,Adult Social Care,"Consumable items eg Toilet rolls, soap etc",13/05/2022,1907743105,624.5,HOTEL AT BOOKING.COM
Manchester City Council,Manchester Leisure,Equipment,13/05/2022,1907743107,566.66,WWW.SCREWFIX.COM
Manchester City Council,Childrens & Education Services,Equipment,13/05/2022,1907743108,720,SMARTSURVEY
Manchester City Council,Adult Social Care,"Consumable items eg Toilet rolls, soap etc",13/05/2022,1907743109,538.46,TRAVELODGE P CARD ONLY
Manchester City Council,Adult Social Care,"Consumable items eg Toilet rolls, soap etc",13/05/2022,1907743114,1400,TRIVELLES ECCLES HOTEL
Manchester City Council,Adult Social Care,"Consumable items eg Toilet rolls, soap etc",13/05/2022,1907743121,1540,TRIVELLES ECCLES HOTEL
Manchester City Council,Adult Social Care,"Consumable items eg Toilet rolls, soap etc",13/05/2022,1907743126,1640,MILTON MANCHESTER HOTE
Manchester City Council,Adult Social Care,"Consumable items eg Toilet rolls, soap etc",13/05/2022,1907743127,1400,TRIVELLES ECCLES HOTEL
Manchester City Council,Adult Social Care,"Consumable items eg Toilet rolls, soap etc",13/05/2022,1907743134,2602,NOVUM MANAGEMENT GMBH
Manchester City Council,Adult Social Care,"Consumable items eg Toilet rolls, soap etc",13/05/2022,1907743139,698,Premier Inn P CARD ONLY
Manchester City Council,Adult Social Care,"Consumable items eg Toilet rolls, soap etc",13/05/2022,1907743142,571,HOTEL IBIS
Manchester City Council,Manchester Leisure,Library Materials Acquisition,16/05/2022,1907743143,1120,THOMSON REUTERS UK LTD
Manchester City Council,Adult Social Care,"Consumable items eg Toilet rolls, soap etc",13/05/2022,1907743155,1640,MILTON MANCHESTER HOTE
Manchester City Council,Adult Social Care,"Consumable items eg Toilet rolls, soap etc",13/05/2022,1907743171,1310,HOLIDAY INN P CARD ONLY
Manchester City Council,Adult Social Care,"Consumable items eg Toilet rolls, soap etc",13/05/2022,1907743174,1310,HOLIDAY INN P CARD ONLY
Manchester City Council,Adult Social Care,"Consumable items eg Toilet rolls, soap etc",13/05/2022,1907743179,1277.86,HIE MANCHESTER EAST
Manchester City Council,Adult Social Care,"Consumable items eg Toilet rolls, soap etc",13/05/2022,1907743183,1631,MILTON MANCHESTER HOTE
Manchester City Council,Manchester Leisure,"Consumable items eg Toilet rolls, soap etc",13/05/2022,1907743184,1993.68,WWW.LAVER.CO.UK
Manchester City Council,Adult Social Care,"Consumable items eg Toilet rolls, soap etc",13/05/2022,1907743190,669.99,TRAVELODGE P CARD ONLY
Manchester City Council,Adult Social Care,"Consumable items eg Toilet rolls, soap etc",13/05/2022,1907743196,753.18,HIE MANCHESTER EAST
Manchester City Council,Adult Social Care,"Consumable items eg Toilet rolls, soap etc",13/05/2022,1907743201,521,HOTEL AT BOOKING.COM
Manchester City Council,Adult Social Care,"Consumable items eg Toilet rolls, soap etc",13/05/2022,1907743202,576,HOTEL AT BOOKING.COM
Manchester City Council,Adult Social Care,"Consumable items eg Toilet rolls, soap etc",13/05/2022,1907743215,565,HOTEL AT BOOKING.COM
Manchester City Council,Adult Social Care,"Consumable items eg Toilet rolls, soap etc",13/05/2022,1907743219,586,MILTON MANCHESTER HOTE
Manchester City Council,Adult Social Care,"Consumable items eg Toilet rolls, soap etc",13/05/2022,1907743221,582,HOTEL AT BOOKING.COM
Manchester City Council,Adult Social Care,"Consumable items eg Toilet rolls, soap etc",13/05/2022,1907743230,583.36,TRAVELODGE P CARD ONLY
Manchester City Council,Adult Social Care,"Consumable items eg Toilet rolls, soap etc",13/05/2022,1907743233,565,HOTEL AT BOOKING.COM
Manchester City Council,Adult Social Care,"Consumable items eg Toilet rolls, soap etc",13/05/2022,1907743238,500.5,Premier Inn P CARD ONLY
Manchester City Council,Adult Social Care,"Consumable items eg Toilet rolls, soap etc",13/05/2022,1907743239,773,HOTEL AT BOOKING.COM
Manchester City Council,Manchester Leisure,ClothsUniformLaundry,13/05/2022,1907743241,579.5,ENGELBERT STRAUSS LTD
Manchester City Council,Childrens & Education Services,General Office expenses,13/05/2022,1907743248,589.25,EE / Orange
Manchester City Council,Adult Social Care,"Consumable items eg Toilet rolls, soap etc",13/05/2022,1907743251,565,HOTEL AT BOOKING.COM
Manchester City Council,Adult Social Care,"Consumable items eg Toilet rolls, soap etc",13/05/2022,1907743255,583.36,TRAVELODGE P CARD ONLY
Manchester City Council,Adult Social Care,"Consumable items eg Toilet rolls, soap etc",13/05/2022,1907743258,656,Premier Inn P CARD ONLY
Manchester City Council,Adult Social Care,"Consumable items eg Toilet rolls, soap etc",13/05/2022,1907743261,677.18,TRAVELODGE P CARD ONLY
Manchester City Council,Adult Social Care,"Consumable items eg Toilet rolls, soap etc",13/05/2022,1907743263,898.7,HOTEL AT BOOKING.COM
Manchester City Council,Adult Social Care,"Consumable items eg Toilet rolls, soap etc",13/05/2022,1907743269,736,Premier Inn P CARD ONLY
Manchester City Council,Adult Social Care,"Consumable items eg Toilet rolls, soap etc",13/05/2022,1907743271,736,Premier Inn P CARD ONLY
Manchester City Council,Adult Social Care,"Consumable items eg Toilet rolls, soap etc",13/05/2022,1907743272,571,Premier Inn P CARD ONLY
Manchester City Council,Adult Social Care,"Consumable items eg Toilet rolls, soap etc",13/05/2022,1907743276,1492,HOTEL AT BOOKING.COM
Manchester City Council,Adult Social Care,"Consumable items eg Toilet rolls, soap etc",13/05/2022,1907743283,812,MILTON MANCHESTER HOTE
Manchester City Council,Adult Social Care,"Consumable items eg Toilet rolls, soap etc",13/05/2022,1907743285,1554,STAYCITY MANCHESTER LI
Manchester City Council,Adult Social Care,"Consumable items eg Toilet rolls, soap etc",13/05/2022,1907743294,739.05,NOVUM MANAGEMENT GMBH
Manchester City Council,Adult Social Care,"Consumable items eg Toilet rolls, soap etc",13/05/2022,1907743297,872,NOVUM MANAGEMENT GMBH
Manchester City Council,Chief Executives,Equipment,13/05/2022,1907743299,655.78,ZOOM.US 888-799-9666
Manchester City Council,Adult Social Care,"Consumable items eg Toilet rolls, soap etc",13/05/2022,1907743301,556,Premier Inn P CARD ONLY
Manchester City Council,Adult Social Care,"Consumable items eg Toilet rolls, soap etc",13/05/2022,1907743302,1402,MILTON MANCHESTER HOTE
Manchester City Council,Adult Social Care,"Consumable items eg Toilet rolls, soap etc",13/05/2022,1907743305,977,MILTON MANCHESTER HOTE
Manchester City Council,Adult Social Care,"Consumable items eg Toilet rolls, soap etc",13/05/2022,1907743310,807,HOTEL AT BOOKING.COM
Manchester City Council,Adult Social Care,"Consumable items eg Toilet rolls, soap etc",13/05/2022,1907743316,1359,NOVUM MANAGEMENT GMBH
Manchester City Council,Adult Social Care,"Consumable items eg Toilet rolls, soap etc",13/05/2022,1907743317,2117,NOVUM MANAGEMENT GMBH
Manchester City Council,Adult Social Care,"Consumable items eg Toilet rolls, soap etc",13/05/2022,1907743319,744,HOTEL AT BOOKING.COM
Manchester City Council,Adult Social Care,"Consumable items eg Toilet rolls, soap etc",13/05/2022,1907743331,528,Premier Inn P CARD ONLY
Manchester City Council,Adult Social Care,"Consumable items eg Toilet rolls, soap etc",13/05/2022,1907743336,901,HOTEL AT BOOKING.COM
Manchester City Council,Adult Social Care,"Consumable items eg Toilet rolls, soap etc",13/05/2022,1907743337,1680,SQ *TRIVELLES HOTEL
Manchester City Council,Adult Social Care,"Consumable items eg Toilet rolls, soap etc",13/05/2022,1907743345,1540,PARK CITY SUITES HOTEL
Manchester City Council,Adult Social Care,"Consumable items eg Toilet rolls, soap etc",13/05/2022,1907743346,1540,PARK CITY SUITES HOTEL
Manchester City Council,Adult Social Care,"Consumable items eg Toilet rolls, soap etc",13/05/2022,1907743356,612,Premier Inn P CARD ONLY
Manchester City Council,Adult Social Care,"Consumable items eg Toilet rolls, soap etc",13/05/2022,1907743357,532.5,Premier Inn P CARD ONLY
Manchester City Council,Adult Social Care,"Consumable items eg Toilet rolls, soap etc",13/05/2022,1907743360,958.68,TRAVELODGE P CARD ONLY
Manchester City Council,Manchester Leisure,Special Event,13/05/2022,1907743362,559.55,Baker Ross Ltd
Manchester City Council,Adult Social Care,"Consumable items eg Toilet rolls, soap etc",13/05/2022,1907743367,975,JAIPUR PALACE
Manchester City Council,Adult Social Care,"Consumable items eg Toilet rolls, soap etc",13/05/2022,1907743369,2098,MILTON MANCHESTER HOTE
Manchester City Council,Adult Social Care,"Consumable items eg Toilet rolls, soap etc",13/05/2022,1907743375,520.5,Premier Inn P CARD ONLY
Manchester City Council,Adult Social Care,"Consumable items eg Toilet rolls, soap etc",13/05/2022,1907743382,584,HOTEL AT BOOKING.COM
Manchester City Council,Adult Social Care,"Consumable items eg Toilet rolls, soap etc",13/05/2022,1907743388,520,JAIPUR PALACE
Manchester City Council,Adult Social Care,"Consumable items eg Toilet rolls, soap etc",13/05/2022,1907743390,970,HOTEL AT BOOKING.COM
Manchester City Council,Adult Social Care,"Consumable items eg Toilet rolls, soap etc",13/05/2022,1907743391,624.5,HOTEL IBIS
Manchester City Council,Adult Social Care,"Consumable items eg Toilet rolls, soap etc",13/05/2022,1907743395,1540,PARK CITY SUITES HOTEL
Manchester City Council,Adult Social Care,"Consumable items eg Toilet rolls, soap etc",13/05/2022,1907743398,700,PARK VIEW RESIDENCE
Manchester City Council,Adult Social Care,"Consumable items eg Toilet rolls, soap etc",13/05/2022,1907743400,3562,MILTON MANCHESTER HOTE
Manchester City Council,Adult Social Care,"Consumable items eg Toilet rolls, soap etc",13/05/2022,1907743405,2436,MILTON MANCHESTER HOTE
Manchester City Council,Adult Social Care,"Consumable items eg Toilet rolls, soap etc",13/05/2022,1907743408,548,Premier Inn P CARD ONLY
Manchester City Council,Adult Social Care,"Consumable items eg Toilet rolls, soap etc",13/05/2022,1907743415,848,MILTON MANCHESTER HOTE
Manchester City Council,Adult Social Care,"Consumable items eg Toilet rolls, soap etc",13/05/2022,1907743420,3878,MILTON MANCHESTER HOTE
Manchester City Council,Manchester Leisure,"Consumable items eg Toilet rolls, soap etc",13/05/2022,1907743422,1064.38,ZOOM.US 888-799-9666
Manchester City Council,Adult Social Care,"Consumable items eg Toilet rolls, soap etc",13/05/2022,1907743425,1437.5,HOTEL IBIS
Manchester City Council,Adult Social Care,"Consumable items eg Toilet rolls, soap etc",13/05/2022,1907743431,2965,MILTON MANCHESTER HOTE
Manchester City Council,Adult Social Care,"Consumable items eg Toilet rolls, soap etc",13/05/2022,1907743433,3532,MILTON MANCHESTER HOTE
Manchester City Council,Adult Social Care,"Consumable items eg Toilet rolls, soap etc",13/05/2022,1907743435,-571,Premier Inn P CARD ONLY
Manchester City Council,Childrens & Education Services,General Office expenses,13/05/2022,1907743469,538.95,Lockhart Catering Equipment Ltd
Manchester City Council,Adult Social Care,"Consumable items eg Toilet rolls, soap etc",13/05/2022,1907743480,563.98,TRAVELODGE P CARD ONLY
Manchester City Council,Adult Social Care,"Consumable items eg Toilet rolls, soap etc",13/05/2022,1907743482,563.98,TRAVELODGE P CARD ONLY
Manchester City Council,Adult Social Care,"Consumable items eg Toilet rolls, soap etc",13/05/2022,1907743497,837,Premier Inn P CARD ONLY
Manchester City Council,Adult Social Care,"Consumable items eg Toilet rolls, soap etc",13/05/2022,1907743502,1290,STAYCITY
Manchester City Council,Regeneration Finance,"Consumable items eg Toilet rolls, soap etc",13/05/2022,1907743506,1140,M TRAINING
Manchester City Council,Adult Social Care,Bed & Breakfast Acc,13/05/2022,1907743519,798,HENDHAM HOUSE HOTEL
Manchester City Council,Adult Social Care,"Consumable items eg Toilet rolls, soap etc",13/05/2022,1907743529,523.5,Premier Inn P CARD ONLY
Manchester City Council,Childrens & Education Services,General Office expenses,13/05/2022,1907743534,541.95,Lockhart Catering Equipment Ltd
Manchester City Council,Adult Social Care,"Consumable items eg Toilet rolls, soap etc",13/05/2022,1907743554,660,Premier Inn P CARD ONLY
Manchester City Council,Adult Social Care,"Consumable items eg Toilet rolls, soap etc",13/05/2022,1907743563,506,Premier Inn P CARD ONLY
Manchester City Council,Childrens & Education Services,General Office expenses,13/05/2022,1907743564,851.95,Lockhart Catering Equipment Ltd
Manchester City Council,Adult Social Care,"Consumable items eg Toilet rolls, soap etc",13/05/2022,1907743566,515,Premier Inn P CARD ONLY
Manchester City Council,Adult Social Care,"Consumable items eg Toilet rolls, soap etc",13/05/2022,1907743572,685,Premier Inn P CARD ONLY
Manchester City Council,Hospitality + Trading Services,Building Materials for direct delivery,13/05/2022,1907743573,1706.89,WWW.TARMAC.COM
Manchester City Council,Adult Social Care,"Consumable items eg Toilet rolls, soap etc",13/05/2022,1907743588,2588,MILTON MANCHESTER HOTE
Manchester City Council,Adult Social Care,"Consumable items eg Toilet rolls, soap etc",13/05/2022,1907743605,1540,SQ *PARKVIEW RESIDENCE
Manchester City Council,Adult Social Care,"Consumable items eg Toilet rolls, soap etc",13/05/2022,1907743610,685,Premier Inn P CARD ONLY
Manchester City Council,Adult Social Care,"Consumable items eg Toilet rolls, soap etc",13/05/2022,1907743614,2189,MILTON MANCHESTER HOTE
Manchester City Council,Chief Executives,Equipment,19/05/2022,1907743616,629.86,Amazon Co.Uk
Manchester City Council,Adult Social Care,"Consumable items eg Toilet rolls, soap etc",13/05/2022,1907743634,587,Premier Inn P CARD ONLY
Manchester City Council,Adult Social Care,"Consumable items eg Toilet rolls, soap etc",13/05/2022,1907743635,2632,IBIS STYLES MANCHESTER
Manchester City Council,Adult Social Care,"Consumable items eg Toilet rolls, soap etc",13/05/2022,1907743642,1556,MILTON MANCHESTER HOTE
Manchester City Council,Adult Social Care,"Consumable items eg Toilet rolls, soap etc",13/05/2022,1907743644,770,PARK CITY SUITES HOTEL
Manchester City Council,Adult Social Care,"Consumable items eg Toilet rolls, soap etc",13/05/2022,1907743645,1585,NOVUM MANAGEMENT GMBH
Manchester City Council,Adult Social Care,"Consumable items eg Toilet rolls, soap etc",13/05/2022,1907743647,1230.86,HIE MANCHESTER EAST
Manchester City Council,Chief Executives,Equipment,19/05/2022,1907743649,700,HBH MANCHESTER NORTHERN
Manchester City Council,Adult Social Care,"Consumable items eg Toilet rolls, soap etc",13/05/2022,1907743652,521,Premier Inn P CARD ONLY
Manchester City Council,Adult Social Care,"Consumable items eg Toilet rolls, soap etc",13/05/2022,1907743664,521,Premier Inn P CARD ONLY
Manchester City Council,Adult Social Care,"Consumable items eg Toilet rolls, soap etc",13/05/2022,1907743669,1540,PARK CITY SUITES HOTEL
Manchester City Council,Adult Social Care,"Consumable items eg Toilet rolls, soap etc",13/05/2022,1907743679,525.5,Premier Inn P CARD ONLY
Manchester City Council,Adult Social Care,"Consumable items eg Toilet rolls, soap etc",13/05/2022,1907743680,873,HOTEL AT BOOKING.COM
Manchester City Council,Adult Social Care,"Consumable items eg Toilet rolls, soap etc",13/05/2022,1907743681,2000,HOTEL AT BOOKING.COM
Manchester City Council,Adult Social Care,"Consumable items eg Toilet rolls, soap etc",13/05/2022,1907743685,545.5,Premier Inn P CARD ONLY
Manchester City Council,Adult Social Care,"Consumable items eg Toilet rolls, soap etc",13/05/2022,1907743689,517.5,Premier Inn P CARD ONLY
Manchester City Council,Adult Social Care,"Consumable items eg Toilet rolls, soap etc",13/05/2022,1907743694,719,MILTON MANCHESTER HOTE
Manchester City Council,Adult Social Care,"Consumable items eg Toilet rolls, soap etc",13/05/2022,1907743696,1802.9,HOTEL ON BOOKING.COM
Manchester City Council,Adult Social Care,"Consumable items eg Toilet rolls, soap etc",13/05/2022,1907743697,525.5,Premier Inn P CARD ONLY
Manchester City Council,Adult Social Care,"Consumable items eg Toilet rolls, soap etc",13/05/2022,1907743704,1942,MILTON MANCHESTER HOTE
Manchester City Council,Adult Social Care,"Consumable items eg Toilet rolls, soap etc",13/05/2022,1907743712,589,Premier Inn P CARD ONLY
Manchester City Council,Adult Social Care,"Consumable items eg Toilet rolls, soap etc",13/05/2022,1907743714,1665.45,TRAVELODGE P CARD ONLY
Manchester City Council,Adult Social Care,"Consumable items eg Toilet rolls, soap etc",13/05/2022,1907743722,962,HOTEL AT BOOKING.COM
Manchester City Council,Childrens & Education Services,Equipment,31/05/2022,1907743730,1031.2,NFEE2215571M UKVI
Manchester City Council,Adult Social Care,"Consumable items eg Toilet rolls, soap etc",13/05/2022,1907743733,2562,MILTON MANCHESTER HOTE
Manchester City Council,Chief Executives,Grant Payments,13/05/2022,1907743734,542.82,CLOUD H6JPRK
Manchester City Council,Adult Social Care,"Consumable items eg Toilet rolls, soap etc",13/05/2022,1907743736,3241.1,STERLING PROPERTY CO L
Manchester City Council,Adult Social Care,"Consumable items eg Toilet rolls, soap etc",13/05/2022,1907743742,543,HOTEL IBIS
Manchester City Council,Childrens & Education Services,Equipment,31/05/2022,1907743744,1031.2,NFEE2215572M UKVI
Manchester City Council,Adult Social Care,"Consumable items eg Toilet rolls, soap etc",13/05/2022,1907743745,1540,PARK CITY SUITES HOTEL
Manchester City Council,Adult Social Care,"Consumable items eg Toilet rolls, soap etc",13/05/2022,1907743747,1540,PARK CITY SUITES HOTEL
Manchester City Council,Adult Social Care,"Consumable items eg Toilet rolls, soap etc",13/05/2022,1907743752,2502.95,Lockhart Catering Equipment Ltd
Manchester City Council,Adult Social Care,"Consumable items eg Toilet rolls, soap etc",13/05/2022,1907743753,1400,TRIVELLES ECCLES HOTEL
Manchester City Council,Adult Social Care,"Consumable items eg Toilet rolls, soap etc",13/05/2022,1907743754,845,HOTEL AT BOOKING.COM
Manchester City Council,Adult Social Care,"Consumable items eg Toilet rolls, soap etc",13/05/2022,1907743757,1218.5,Lockhart Catering Equipment Ltd
Manchester City Council,Adult Social Care,"Consumable items eg Toilet rolls, soap etc",13/05/2022,1907743758,1540,PARK CITY SUITES HOTEL
Manchester City Council,Adult Social Care,"Consumable items eg Toilet rolls, soap etc",13/05/2022,1907743759,1540,PARK CITY SUITES HOTEL
Manchester City Council,Adult Social Care,"Consumable items eg Toilet rolls, soap etc",13/05/2022,1907743760,914,MILTON MANCHESTER HOTE
Manchester City Council,Adult Social Care,"Consumable items eg Toilet rolls, soap etc",13/05/2022,1907743769,933,MILTON MANCHESTER HOTE
Manchester City Council,Adult Social Care,"Consumable items eg Toilet rolls, soap etc",13/05/2022,1907743779,2141,NOVUM MANAGEMENT GMBH
Manchester City Council,Adult Social Care,"Consumable items eg Toilet rolls, soap etc",13/05/2022,1907743781,1268.73,TRAVELODGE P CARD ONLY
Manchester City Council,Adult Social Care,"Consumable items eg Toilet rolls, soap etc",13/05/2022,1907743805,683,HOTEL AT BOOKING.COM
Manchester City Council,Adult Social Care,"Consumable items eg Toilet rolls, soap etc",13/05/2022,1907743812,1195,NOVUM MANAGEMENT GMBH
Manchester City Council,Manchester Leisure,Equipment,13/05/2022,1907743814,1660,D BRASH & SONS LTD
Manchester City Council,Adult Social Care,"Consumable items eg Toilet rolls, soap etc",13/05/2022,1907743817,1179,MILTON MANCHESTER HOTE
Manchester City Council,Adult Social Care,"Consumable items eg Toilet rolls, soap etc",13/05/2022,1907743822,555.5,Premier Inn P CARD ONLY
Manchester City Council,Adult Social Care,"Consumable items eg Toilet rolls, soap etc",13/05/2022,1907743826,1119.76,TRAVELODGE P CARD ONLY
Manchester City Council,Adult Social Care,"Consumable items eg Toilet rolls, soap etc",13/05/2022,1907743836,510,Premier Inn P CARD ONLY
Manchester City Council,Adult Social Care,"Consumable items eg Toilet rolls, soap etc",13/05/2022,1907743845,1866,HOTEL AT BOOKING.COM
Manchester City Council,Adult Social Care,"Consumable items eg Toilet rolls, soap etc",13/05/2022,1907743847,761,HOTEL AT BOOKING.COM
Manchester City Council,Adult Social Care,"Consumable items eg Toilet rolls, soap etc",13/05/2022,1907743850,2355,HOTEL AT BOOKING.COM
Manchester City Council,Adult Social Care,"Consumable items eg Toilet rolls, soap etc",13/05/2022,1907743853,584.5,Premier Inn P CARD ONLY
Manchester City Council,Adult Social Care,"Consumable items eg Toilet rolls, soap etc",13/05/2022,1907743857,519,Premier Inn P CARD ONLY
Manchester City Council,Adult Social Care,"Consumable items eg Toilet rolls, soap etc",13/05/2022,1907743858,3231,STAYCITY MANCHESTER LI
Manchester City Council,Adult Social Care,"Consumable items eg Toilet rolls, soap etc",13/05/2022,1907743861,836,HOTEL AT BOOKING.COM
Manchester City Council,Adult Social Care,"Consumable items eg Toilet rolls, soap etc",13/05/2022,1907743870,699,HOTEL AT BOOKING.COM
Manchester City Council,Adult Social Care,"Consumable items eg Toilet rolls, soap etc",13/05/2022,1907743882,593.5,Premier Inn P CARD ONLY
Manchester City Council,Adult Social Care,"Consumable items eg Toilet rolls, soap etc",13/05/2022,1907743884,1676,NOVUM MANAGEMENT GMBH
Manchester City Council,Adult Social Care,"Consumable items eg Toilet rolls, soap etc",13/05/2022,1907743886,2561,HOLIDAY INN P CARD ONLY
Manchester City Council,Adult Social Care,"Consumable items eg Toilet rolls, soap etc",13/05/2022,1907743888,1103,HOTEL AT BOOKING.COM
Manchester City Council,Adult Social Care,"Consumable items eg Toilet rolls, soap etc",13/05/2022,1907743889,1540,PARK VIEW RESIDENCE
Manchester City Council,Adult Social Care,"Consumable items eg Toilet rolls, soap etc",13/05/2022,1907743897,718,HOTEL IBIS
Manchester City Council,Adult Social Care,"Consumable items eg Toilet rolls, soap etc",13/05/2022,1907743898,608.85,TRAVELODGE P CARD ONLY
Manchester City Council,Childrens & Education Services,"Consumable items eg Toilet rolls, soap etc",13/05/2022,1907743903,554,NORMANHURST HOTEL
Manchester City Council,Adult Social Care,"Consumable items eg Toilet rolls, soap etc",13/05/2022,1907743906,2049,NOVUM MANAGEMENT GMBH
Manchester City Council,Adult Social Care,"Consumable items eg Toilet rolls, soap etc",13/05/2022,1907743908,1540,PARK VIEW RESIDENCE
Manchester City Council,Adult Social Care,"Consumable items eg Toilet rolls, soap etc",13/05/2022,1907743909,524.2,TRAVELODGE P CARD ONLY
Manchester City Council,Adult Social Care,"Consumable items eg Toilet rolls, soap etc",13/05/2022,1907743914,652.72,TRAVELODGE P CARD ONLY
Manchester City Council,Adult Social Care,"Consumable items eg Toilet rolls, soap etc",13/05/2022,1907743917,1540,PARK VIEW RESIDENCE
Manchester City Council,Childrens & Education Services,General Office expenses,13/05/2022,1907743918,502.95,Lockhart Catering Equipment Ltd
Manchester City Council,Adult Social Care,"Consumable items eg Toilet rolls, soap etc",13/05/2022,1907743919,1103,HOTEL AT BOOKING.COM
Manchester City Council,Adult Social Care,"Consumable items eg Toilet rolls, soap etc",13/05/2022,1907743920,770,PARK VIEW RESIDENCE
Manchester City Council,Adult Social Care,"Consumable items eg Toilet rolls, soap etc",13/05/2022,1907743923,1540,SQ *PARKVIEW RESIDENCE
Manchester City Council,Adult Social Care,"Consumable items eg Toilet rolls, soap etc",13/05/2022,1907743925,2112,COUNTRYNORTH
Manchester City Council,Adult Social Care,"Consumable items eg Toilet rolls, soap etc",13/05/2022,1907743926,1540,PARK VIEW RESIDENCE
Manchester City Council,Adult Social Care,"Consumable items eg Toilet rolls, soap etc",13/05/2022,1907743927,1540,PARK VIEW RESIDENCE
Manchester City Council,Adult Social Care,"Consumable items eg Toilet rolls, soap etc",13/05/2022,1907743932,1324.4,HOTEL AT BOOKING.COM
Manchester City Council,Adult Social Care,"Consumable items eg Toilet rolls, soap etc",13/05/2022,1907743933,1540,PARK VIEW RESIDENCE
Manchester City Council,Adult Social Care,"Consumable items eg Toilet rolls, soap etc",13/05/2022,1907743935,1540,PARK VIEW RESIDENCE
Manchester City Council,Adult Social Care,"Consumable items eg Toilet rolls, soap etc",13/05/2022,1907743939,1540,PARK VIEW RESIDENCE
Manchester City Council,Adult Social Care,"Consumable items eg Toilet rolls, soap etc",13/05/2022,1907743942,1540,PARK VIEW RESIDENCE
Manchester City Council,Adult Social Care,"Consumable items eg Toilet rolls, soap etc",13/05/2022,1907743945,755,Premier Inn P CARD ONLY
Manchester City Council,Adult Social Care,"Consumable items eg Toilet rolls, soap etc",13/05/2022,1907743949,1540,SQ *PARKVIEW RESIDENCE
Manchester City Council,Adult Social Care,"Consumable items eg Toilet rolls, soap etc",13/05/2022,1907743953,1540,PARK VIEW RESIDENCE
Manchester City Council,Adult Social Care,"Consumable items eg Toilet rolls, soap etc",13/05/2022,1907743955,1540,PARK VIEW RESIDENCE
Manchester City Council,Adult Social Care,"Consumable items eg Toilet rolls, soap etc",13/05/2022,1907743956,1540,PARK CITY SUITES HOTEL
Manchester City Council,Adult Social Care,"Consumable items eg Toilet rolls, soap etc",13/05/2022,1907743958,1540,PARK VIEW RESIDENCE
Manchester City Council,Adult Social Care,"Consumable items eg Toilet rolls, soap etc",13/05/2022,1907743961,1540,PARK VIEW RESIDENCE
Manchester City Council,Adult Social Care,"Consumable items eg Toilet rolls, soap etc",13/05/2022,1907743970,510,Premier Inn P CARD ONLY
Manchester City Council,Adult Social Care,"Consumable items eg Toilet rolls, soap etc",13/05/2022,1907743972,625.19,TRAVELODGE P CARD ONLY
Manchester City Council,Adult Social Care,"Consumable items eg Toilet rolls, soap etc",13/05/2022,1907743975,1126,NOVUM MANAGEMENT GMBH
Manchester City Council,Adult Social Care,"Consumable items eg Toilet rolls, soap etc",13/05/2022,1907743978,1540,PARK VIEW RESIDENCE
Manchester City Council,Adult Social Care,"Consumable items eg Toilet rolls, soap etc",13/05/2022,1907743979,1540,PARK VIEW RESIDENCE
Manchester City Council,Adult Social Care,"Consumable items eg Toilet rolls, soap etc",13/05/2022,1907743981,1540,SQ *PARKVIEW RESIDENCE
Manchester City Council,Adult Social Care,"Consumable items eg Toilet rolls, soap etc",13/05/2022,1907743982,1184,HOTEL AT BOOKING.COM
Manchester City Council,Adult Social Care,"Consumable items eg Toilet rolls, soap etc",13/05/2022,1907743984,1540,PARK VIEW RESIDENCE
Manchester City Council,Corporate Services,Professional fees,16/05/2022,1907744114,10000,The Good Economy
Manchester City Council,Childrens & Education Services,Professional fees,17/05/2022,1907744115,6037.5,Redacted Personal Information
Manchester City Council,Regeneration Finance,Refuse Collection,23/05/2022,1907744117,5351.45,Shred-It Ltd
Manchester City Council,Insurance Fund,Legal Fees,13/05/2022,1907744122,35000,Express Solicitors
Manchester City Council,Regeneration Finance,Rents,18/05/2022,1907744170,10909.5,The Arch Company Properties Ltd
Manchester City Council,Housing General Fund,Building Works,16/05/2022,1907744379,7265,Stannah Lift Services Ltd
Manchester City Council,Housing General Fund,Building Works,16/05/2022,1907744380,1995,Hoist & Shower Chair Company
Manchester City Council,Housing General Fund,Building Works,16/05/2022,1907744381,10706,Pollock Lifts Ltd
Manchester City Council,Hospitality + Trading Services,Rents,17/05/2022,1907745417,32758.75,CBRE Ltd
Manchester City Council,Childrens & Education Services,Grant and subscriptions awarded,30/05/2022,1907745428,1200,The Therapy Centre
Manchester City Council,Adult Social Care,Rents,16/05/2022,1907745452,2594.66,LIVING MANCHESTER LTD
Manchester City Council,Adult Social Care,Rents,16/05/2022,1907745453,3893.79,SENSORY HOUSING
Manchester City Council,Corporate Services,Professional fees,19/05/2022,1907745457,1200,Appleby & Wood Chartered Accountant
Manchester City Council,Corporate Services,Professional fees,19/05/2022,1907745458,1920,Appleby & Wood Chartered Accountant
Manchester City Council,Corporate Services,Legal Fees,17/05/2022,1907745544,7082.1,Peasegoods
Manchester City Council,Manchester Leisure,Works and associated costs for Land and Buildings,25/05/2022,1907745639,800,Jones Melling Limited
Manchester City Council,Manchester Leisure,Catering Provisions,30/05/2022,1907745642,583.34,Big Bad Wolf Catering
Manchester City Council,Manchester Leisure,Special Event,18/05/2022,1907745644,600,Redacted Personal Information
Manchester City Council,Chief Executives,Legal Fees,23/05/2022,1907745647,1725,St Johns Buildings
Manchester City Council,Chief Executives,Legal Fees,23/05/2022,1907745649,650,Redacted Personal Information
Manchester City Council,Chief Executives,Legal Fees,23/05/2022,1907745653,501.67,Alpha Biolaboratories Limited
Manchester City Council,Chief Executives,Legal Fees,23/05/2022,1907745654,650,18 St John Street Chambers
Manchester City Council,Chief Executives,Legal Fees,23/05/2022,1907745655,650,18 St John Street Chambers
Manchester City Council,Regeneration Finance,Rents,18/05/2022,1907745660,643.75,Property Debt Collection
Manchester City Council,Corporate Services,Compensation Payments,18/05/2022,1907745662,900,EMERALD LAW
Manchester City Council,Corporate Services,Legal Fees,20/05/2022,1907745663,1400,Trinity Chambers
Manchester City Council,Chief Executives,Landline Telephone,18/05/2022,1907745668,44185.55,BT PLC
Manchester City Council,Hospitality + Trading Services,Funeral and coroner related services,18/05/2022,1907745672,2000,Barlow Moor Community Association
Manchester City Council,Chief Executives,Professional fees,23/05/2022,1907745674,850,Cornwall Street No 2 Account
Manchester City Council,Corporate Services,Legal Fees,18/05/2022,1907745676,750,COUPLAND CAVENDISH T/A GOWLING LAW
Manchester City Council,Childrens & Education Services,Transport Taxis,30/05/2022,1907745677,1197.02,Cresta Car Hire
Manchester City Council,Adult Social Care,Rents,17/05/2022,1907745678,2046,Brentwood Lettings Ltd
Manchester City Council,Corporate Services,Legal Fees,18/05/2022,1907745679,2000,COUPLAND CAVENDISH T/A GOWLING LAW
Manchester City Council,Adult Social Care,Third party payments to Health Authority,19/05/2022,1907745680,1050,Liverpool University Hospitals
Manchester City Council,Corporate Services,Legal Fees,18/05/2022,1907745681,1000,DRISCOLL KINGSTON SOLICITORS
Manchester City Council,Corporate Services,Legal Fees,18/05/2022,1907745687,1160,HIGH STREET SOLICITORS
Manchester City Council,Manchester Leisure,Catering Provisions,30/05/2022,1907745689,929.75,Crowd Control Solutions Ltd
Manchester City Council,Regeneration Finance,Non Housing Rent Receipts,23/05/2022,1907745693,121910.83,Bolton Mbc
Manchester City Council,Regeneration Finance,Non Housing Rent Receipts,23/05/2022,1907745694,121910.83,Bury M.B.C.
Manchester City Council,Regeneration Finance,Non Housing Rent Receipts,23/05/2022,1907745695,121910.83,Oldham Borough Council
Manchester City Council,Regeneration Finance,Non Housing Rent Receipts,20/05/2022,1907745696,121910.83,Rochdale Mbc
Manchester City Council,Regeneration Finance,Non Housing Rent Receipts,23/05/2022,1907745697,121910.83,Salford City Council
Manchester City Council,Regeneration Finance,Non Housing Rent Receipts,23/05/2022,1907745698,121910.83,Stockport Metropolitan Borough
Manchester City Council,Regeneration Finance,Non Housing Rent Receipts,23/05/2022,1907745699,121910.83,Tameside Metropolitan Bouough
Manchester City Council,Regeneration Finance,Non Housing Rent Receipts,19/05/2022,1907745701,121910.83,Trafford M B C
Manchester City Council,Housing General Fund,Capital Receipts,19/05/2022,1907745702,15625,Redrow Homes Lancashire
Manchester City Council,Regeneration Finance,Non Housing Rent Receipts,23/05/2022,1907745703,121910.83,Wigan Metropolitan Borough Council
Manchester City Council,Childrens & Education Services,Professional fees,18/05/2022,1907745706,5650,Redacted Personal Information
Manchester City Council,Childrens & Education Services,Professional fees,18/05/2022,1907745708,875.24,Dagmar Hartshorn Psychological Serv
Manchester City Council,Housing General Fund,Capital Receipts,23/05/2022,1907747226,15867.29,Redrow Homes Lancashire
Manchester City Council,Adult Social Care,Third party payments to Health Authority,19/05/2022,1907747228,655,HCRG Care Services Ltd
Manchester City Council,Childrens & Education Services,Professional fees,23/05/2022,1907747231,1620,PR Psychiatry Limited
Manchester City Council,Corporate Services,Legal Fees,20/05/2022,1907747234,700,Trinity Chambers
Manchester City Council,Chief Executives,Legal Fees,23/05/2022,1907747235,510.42,Redacted Personal Information
Manchester City Council,Chief Executives,Funeral and coroner related services,23/05/2022,1907747238,2800,Wessex Cardiology LLP
Manchester City Council,Manchester Leisure,Other Insurance,19/05/2022,1907747242,6550.37,Aon Ltd
Manchester City Council,Childrens & Education Services,Professional fees,23/05/2022,1907747248,650,18 St John Street Chambers
Manchester City Council,Childrens & Education Services,Professional fees,23/05/2022,1907747249,520.6,Target Psychology Ltd
Manchester City Council,Manchester Leisure,Library Materials Acquisition,19/05/2022,1907747299,5145,Bibliographic Data Services Ltd
Manchester City Council,Manchester Leisure,Library Materials Acquisition,19/05/2022,1907747300,7930,Bibliographic Data Services Ltd
Manchester City Council,Manchester Leisure,Library Materials Acquisition,19/05/2022,1907747301,3543,Bibliographic Data Services Ltd
Manchester City Council,Manchester Leisure,Library Materials Acquisition,19/05/2022,1907747304,1468.22,Martin-Lavell Limited
Manchester City Council,Manchester Leisure,Library Materials Acquisition,19/05/2022,1907747307,3570,British Standards Institution
Manchester City Council,Manchester Leisure,Library Materials Acquisition,19/05/2022,1907747308,680,Askews and Holts
Manchester City Council,Manchester Leisure,Library Materials Acquisition,19/05/2022,1907747397,529,Cambridge University Press
Manchester City Council,Regeneration Finance,Non Housing Rent Receipts,23/05/2022,1907747407,7005.57,Bolton Mbc
Manchester City Council,Regeneration Finance,Non Housing Rent Receipts,20/05/2022,1907747501,7005.57,Bury M.B.C.
Manchester City Council,Regeneration Finance,Non Housing Rent Receipts,19/05/2022,1907748514,7005.57,Oldham Borough Council
Manchester City Council,Regeneration Finance,Non Housing Rent Receipts,20/05/2022,1907748586,7005.57,Rochdale Mbc
Manchester City Council,Regeneration Finance,Non Housing Rent Receipts,19/05/2022,1907748587,7005.57,Salford City Council
Manchester City Council,Childrens & Education Services,Professional fees,30/05/2022,1907748595,803.18,Pickering Psychology Services Ltd
Manchester City Council,Regeneration Finance,Non Housing Rent Receipts,20/05/2022,1907748596,7005.57,Stockport Metropolitan Borough
Manchester City Council,Regeneration Finance,Non Housing Rent Receipts,19/05/2022,1907748597,7005.57,Tameside Metropolitan Bouough
Manchester City Council,Regeneration Finance,Non Housing Rent Receipts,20/05/2022,1907748598,7005.57,Trafford M B C
Manchester City Council,Regeneration Finance,Non Housing Rent Receipts,19/05/2022,1907748600,7005.57,Wigan Metropolitan Borough Council
Manchester City Council,Childrens & Education Services,Professional fees,23/05/2022,1907748602,1010,18 St John Street Chambers
Manchester City Council,Childrens & Education Services,Professional fees,20/05/2022,1907748604,540,Medico-Legal North West
Manchester City Council,Hospitality + Trading Services,Cleaning Equipment and Materials,18/05/2022,1907748615,4377.22,PHS Group
Manchester City Council,Hospitality + Trading Services,Cleaning Equipment and Materials,18/05/2022,1907748624,700.85,PHS Group
Manchester City Council,Adult Social Care,Cleaning Equipment and Materials,18/05/2022,1907748626,673.92,PHS Group
Manchester City Council,Regeneration Finance,Cleaning Equipment and Materials,18/05/2022,1907748637,4240.74,PHS Group
Manchester City Council,Hospitality + Trading Services,Cleaning Equipment and Materials,18/05/2022,1907748656,1552.46,PHS Group
Manchester City Council,Regeneration Finance,Cleaning Equipment and Materials,18/05/2022,1907748661,568,PHS Group
Manchester City Council,Regeneration Finance,Cleaning Equipment and Materials,18/05/2022,1907748668,568,PHS Group
Manchester City Council,Adult Social Care,Housing Rents Debit,24/05/2022,1907748670,1853.46,Redacted Personal Information
Manchester City Council,Corporate Services,Transport Taxis,18/05/2022,1907748689,9233.1,Street Cars
Manchester City Council,Regeneration Finance,Rents,19/05/2022,1907748693,10263.37,Moss Side Millennium Powerhouse Ltd
Manchester City Council,Childrens & Education Services,Childrens Allowances,18/05/2022,1907748701,1000,Barclays Debit Card - Remand
Manchester City Council,Adult Social Care,Rents,18/05/2022,1907748702,2669.66,Living Manchester Ltd
Manchester City Council,Adult Social Care,Rents,18/05/2022,1907748703,2644.66,Mengold Ltd
Manchester City Council,Adult Social Care,Rents,18/05/2022,1907748706,1723.07,Redacted Personal Information
Manchester City Council,Adult Social Care,Rents,18/05/2022,1907748707,2959.06,Redacted Personal Information
Manchester City Council,Highways Services,Compensation Payments,26/05/2022,1907748712,543,Redacted Personal Information
Manchester City Council,Adult Social Care,Professional fees,24/05/2022,1907748959,550,Pinnacle Building and Surveying
Manchester City Council,Regeneration Finance,Water - Metered,19/05/2022,1907749068,2637.75,Anglian Water Business (National)
Manchester City Council,Regeneration Finance,Water - Metered,19/05/2022,1907749111,737.78,Anglian Water Business (National)
Manchester City Council,Hospitality + Trading Services,Water - Metered,19/05/2022,1907749117,1771.16,Anglian Water Business (National)
Manchester City Council,Regeneration Finance,Water - Metered,19/05/2022,1907749154,883.65,Anglian Water Business (National)
Manchester City Council,Regeneration Finance,Water - Metered,19/05/2022,1907749155,621.36,Anglian Water Business (National)
Manchester City Council,Regeneration Finance,Water - Metered,19/05/2022,1907749175,6320.66,Anglian Water Business (National)
Manchester City Council,Regeneration Finance,Water - Metered,19/05/2022,1907749180,729.96,Anglian Water Business (National)
Manchester City Council,Regeneration Finance,Water - Metered,19/05/2022,1907749181,1736.06,Anglian Water Business (National)
Manchester City Council,Regeneration Finance,Water - Metered,19/05/2022,1907749183,1120.33,Anglian Water Business (National)
Manchester City Council,Regeneration Finance,Water - Metered,19/05/2022,1907749190,768.06,Anglian Water Business (National)
Manchester City Council,Regeneration Finance,Water - Metered,19/05/2022,1907749192,565.63,Anglian Water Business (National)
Manchester City Council,Regeneration Finance,Water - Metered,19/05/2022,1907749199,6309.7,Anglian Water Business (National)
Manchester City Council,Adult Social Care,Water - Metered,19/05/2022,1907749207,601.46,Anglian Water Business (National)
Manchester City Council,Regeneration Finance,Water - Metered,19/05/2022,1907749208,12784.87,Anglian Water Business (National)
Manchester City Council,Hospitality + Trading Services,Water - Metered,19/05/2022,1907749211,1024.71,Anglian Water Business (National)
Manchester City Council,Regeneration Finance,Water - Metered,19/05/2022,1907749212,801.64,Anglian Water Business (National)
Manchester City Council,Manchester Leisure,Water - Metered,19/05/2022,1907749220,618.78,Anglian Water Business (National)
Manchester City Council,Highways Services,Water - Metered,19/05/2022,1907749234,2046.68,Anglian Water Business (National)
Manchester City Council,Regeneration Finance,Water - Metered,19/05/2022,1907749238,1839.11,Anglian Water Business (National)
Manchester City Council,Childrens & Education Services,Water - Metered,19/05/2022,1907749240,997.3,Anglian Water Business (National)
Manchester City Council,Regeneration Finance,Water - Metered,19/05/2022,1907749245,742.94,Anglian Water Business (National)
Manchester City Council,Regeneration Finance,Water - Metered,19/05/2022,1907749249,3687.95,Anglian Water Business (National)
Manchester City Council,Regeneration Finance,Water - Metered,19/05/2022,1907749257,1436.15,Anglian Water Business (National)
Manchester City Council,Regeneration Finance,Water - Metered,19/05/2022,1907749272,1472.43,Anglian Water Business (National)
Manchester City Council,Regeneration Finance,Water - Metered,19/05/2022,1907749273,778.7,Anglian Water Business (National)
Manchester City Council,Manchester Leisure,Water - Metered,19/05/2022,1907749280,1865.74,Anglian Water Business (National)
Manchester City Council,Adult Social Care,Water - Metered,19/05/2022,1907749282,1527.15,Anglian Water Business (National)
Manchester City Council,Childrens & Education Services,Water - Metered,19/05/2022,1907749286,1610.49,Anglian Water Business (National)
Manchester City Council,Regeneration Finance,Water - Metered,19/05/2022,1907749288,2453.37,Anglian Water Business (National)
Manchester City Council,Adult Social Care,Electricity,19/05/2022,1907749297,664.42,Scottish & Southern Energy Plc
Manchester City Council,Manchester Leisure,Electricity,19/05/2022,1907749315,525.75,Scottish & Southern Energy Plc
Manchester City Council,Manchester Leisure,Electricity,19/05/2022,1907749326,877.99,Scottish & Southern Energy Plc
Manchester City Council,Regeneration Finance,Electricity,19/05/2022,1907749329,2095.72,Scottish & Southern Energy Plc
Manchester City Council,Regeneration Finance,Electricity,19/05/2022,1907749330,2635.21,Scottish & Southern Energy Plc
Manchester City Council,Regeneration Finance,Electricity,19/05/2022,1907749331,2302.04,Scottish & Southern Energy Plc
Manchester City Council,Regeneration Finance,Electricity,19/05/2022,1907749332,3337.28,Scottish & Southern Energy Plc
Manchester City Council,Regeneration Finance,Electricity,19/05/2022,1907749333,2006.68,Scottish & Southern Energy Plc
Manchester City Council,Adult Social Care,Electricity,19/05/2022,1907749352,650.31,Scottish & Southern Energy Plc
Manchester City Council,Manchester Leisure,Electricity,19/05/2022,1907749354,505.62,Scottish & Southern Energy Plc
Manchester City Council,Childrens & Education Services,Electricity,19/05/2022,1907749371,949.95,Scottish & Southern Energy Plc
Manchester City Council,Housing Revenue Account,Electricity,19/05/2022,1907749381,976.84,Scottish & Southern Energy Plc
Manchester City Council,Adult Social Care,Electricity,19/05/2022,1907749391,597.04,Scottish & Southern Energy Plc
Manchester City Council,Childrens & Education Services,Electricity,19/05/2022,1907749402,548.94,Scottish & Southern Energy Plc
Manchester City Council,Manchester Leisure,Electricity,19/05/2022,1907749403,1475.26,Scottish & Southern Energy Plc
Manchester City Council,Manchester Leisure,Electricity,19/05/2022,1907749404,1896.62,Scottish & Southern Energy Plc
Manchester City Council,Regeneration Finance,Electricity,19/05/2022,1907749405,3925.58,Scottish & Southern Energy Plc
Manchester City Council,Regeneration Finance,Electricity,19/05/2022,1907749406,598.98,Scottish & Southern Energy Plc
Manchester City Council,Manchester Leisure,Electricity,19/05/2022,1907749409,789.22,Scottish & Southern Energy Plc
Manchester City Council,Adult Social Care,Electricity,19/05/2022,1907749431,17548.1,Scottish & Southern Energy Plc
Manchester City Council,Manchester Leisure,Electricity,19/05/2022,1907749437,786.53,Scottish & Southern Energy Plc
Manchester City Council,Adult Social Care,Electricity,19/05/2022,1907749441,671.06,Scottish & Southern Energy Plc
Manchester City Council,Adult Social Care,Electricity,19/05/2022,1907749443,703.73,Scottish & Southern Energy Plc
Manchester City Council,Hospitality + Trading Services,Electricity,19/05/2022,1907749450,849.11,Scottish & Southern Energy Plc
Manchester City Council,Manchester Leisure,Electricity,19/05/2022,1907749453,1472.91,Scottish & Southern Energy Plc
Manchester City Council,Adult Social Care,Electricity,19/05/2022,1907749454,604.91,Scottish & Southern Energy Plc
Manchester City Council,Regeneration Finance,Electricity,19/05/2022,1907749455,636.97,Scottish & Southern Energy Plc
Manchester City Council,Adult Social Care,Electricity,19/05/2022,1907749460,588.37,Scottish & Southern Energy Plc
Manchester City Council,Manchester Leisure,Electricity,19/05/2022,1907749462,1363.88,Scottish & Southern Energy Plc
Manchester City Council,Chief Executives,Electricity,19/05/2022,1907749463,1067.61,Scottish & Southern Energy Plc
Manchester City Council,Highways Services,Electricity,19/05/2022,1907749464,542.69,Scottish & Southern Energy Plc
Manchester City Council,Regeneration Finance,Electricity,19/05/2022,1907749466,1585.7,Scottish & Southern Energy Plc
Manchester City Council,Manchester Leisure,Electricity,19/05/2022,1907749471,2102.88,Scottish & Southern Energy Plc
Manchester City Council,Regeneration Finance,Electricity,19/05/2022,1907749475,1072.54,Scottish & Southern Energy Plc
Manchester City Council,Manchester Leisure,Electricity,19/05/2022,1907749480,1902.03,Scottish & Southern Energy Plc
Manchester City Council,Manchester Leisure,Electricity,19/05/2022,1907749484,1457.24,Scottish & Southern Energy Plc
Manchester City Council,Regeneration Finance,Electricity,19/05/2022,1907749485,1480.59,Scottish & Southern Energy Plc
Manchester City Council,Regeneration Finance,Electricity,19/05/2022,1907749488,649.2,Scottish & Southern Energy Plc
Manchester City Council,Regeneration Finance,Electricity,19/05/2022,1907749492,1903.84,Scottish & Southern Energy Plc
Manchester City Council,Regeneration Finance,Electricity,19/05/2022,1907749495,748.19,Scottish & Southern Energy Plc
Manchester City Council,Manchester Leisure,Electricity,19/05/2022,1907749497,789.29,Scottish & Southern Energy Plc
Manchester City Council,Regeneration Finance,Electricity,19/05/2022,1907749500,851.36,Scottish & Southern Energy Plc
Manchester City Council,Manchester Leisure,Electricity,19/05/2022,1907749504,1232.23,Scottish & Southern Energy Plc
Manchester City Council,Adult Social Care,Electricity,19/05/2022,1907749506,1457.38,Scottish & Southern Energy Plc
Manchester City Council,Manchester Leisure,Electricity,19/05/2022,1907749508,2181.71,Scottish & Southern Energy Plc
Manchester City Council,Manchester Leisure,Electricity,19/05/2022,1907749509,1618.99,Scottish & Southern Energy Plc
Manchester City Council,Manchester Leisure,Electricity,19/05/2022,1907749510,1438.29,Scottish & Southern Energy Plc
Manchester City Council,Manchester Leisure,Electricity,19/05/2022,1907749511,1722.2,Scottish & Southern Energy Plc
Manchester City Council,Adult Social Care,Electricity,19/05/2022,1907749514,986.85,Scottish & Southern Energy Plc
Manchester City Council,Adult Social Care,Electricity,19/05/2022,1907749519,620.68,Scottish & Southern Energy Plc
Manchester City Council,Regeneration Finance,Electricity,19/05/2022,1907749521,678.52,Scottish & Southern Energy Plc
Manchester City Council,Regeneration Finance,Electricity,19/05/2022,1907749522,911.78,Scottish & Southern Energy Plc
Manchester City Council,Regeneration Finance,Electricity,19/05/2022,1907749523,507.33,Scottish & Southern Energy Plc
Manchester City Council,Regeneration Finance,Electricity,19/05/2022,1907749526,595.25,Scottish & Southern Energy Plc
Manchester City Council,Hospitality + Trading Services,Electricity,19/05/2022,1907749530,872.45,Scottish & Southern Energy Plc
Manchester City Council,Regeneration Finance,Electricity,19/05/2022,1907749531,4240.58,Scottish & Southern Energy Plc
Manchester City Council,Regeneration Finance,Electricity,19/05/2022,1907749532,3895.04,Scottish & Southern Energy Plc
Manchester City Council,Regeneration Finance,Electricity,19/05/2022,1907749533,3210.47,Scottish & Southern Energy Plc
Manchester City Council,Regeneration Finance,Electricity,19/05/2022,1907749534,3210.79,Scottish & Southern Energy Plc
Manchester City Council,Regeneration Finance,Electricity,19/05/2022,1907749535,2750.51,Scottish & Southern Energy Plc
Manchester City Council,Childrens & Education Services,Electricity,19/05/2022,1907749537,973.98,Scottish & Southern Energy Plc
Manchester City Council,Regeneration Finance,Electricity,19/05/2022,1907749538,619.14,Scottish & Southern Energy Plc
Manchester City Council,Highways Services,Electricity,19/05/2022,1907749540,605.99,Scottish & Southern Energy Plc
Manchester City Council,Manchester Leisure,Electricity,19/05/2022,1907749542,698.5,Scottish & Southern Energy Plc
Manchester City Council,Regeneration Finance,Electricity,19/05/2022,1907749544,805.89,Scottish & Southern Energy Plc
Manchester City Council,Regeneration Finance,Electricity,19/05/2022,1907749545,1460.2,Scottish & Southern Energy Plc
Manchester City Council,Regeneration Finance,Electricity,19/05/2022,1907749546,1752.97,Scottish & Southern Energy Plc
Manchester City Council,Manchester Leisure,Electricity,19/05/2022,1907749553,5257.7,Scottish & Southern Energy Plc
Manchester City Council,Regeneration Finance,Electricity,19/05/2022,1907749555,917.35,Scottish & Southern Energy Plc
Manchester City Council,Regeneration Finance,Electricity,19/05/2022,1907749558,1209.3,Scottish & Southern Energy Plc
Manchester City Council,Manchester Leisure,Electricity,19/05/2022,1907749561,739.08,Scottish & Southern Energy Plc
Manchester City Council,Regeneration Finance,Electricity,19/05/2022,1907749566,691.65,Scottish & Southern Energy Plc
Manchester City Council,Regeneration Finance,Electricity,19/05/2022,1907749577,1563.31,Scottish & Southern Energy Plc
Manchester City Council,Childrens & Education Services,Electricity,19/05/2022,1907749578,626.32,Scottish & Southern Energy Plc
Manchester City Council,Regeneration Finance,Electricity,19/05/2022,1907749580,1204.99,Scottish & Southern Energy Plc
Manchester City Council,Manchester Leisure,Electricity,19/05/2022,1907749584,655.13,Scottish & Southern Energy Plc
Manchester City Council,Regeneration Finance,Electricity,19/05/2022,1907749586,1025.4,Scottish & Southern Energy Plc
Manchester City Council,Manchester Leisure,Electricity,19/05/2022,1907749591,1136.17,Scottish & Southern Energy Plc
Manchester City Council,Regeneration Finance,Electricity,19/05/2022,1907749592,1151.53,Scottish & Southern Energy Plc
Manchester City Council,Adult Social Care,Electricity,19/05/2022,1907749595,1085.59,Scottish & Southern Energy Plc
Manchester City Council,Regeneration Finance,Electricity,19/05/2022,1907749596,1100.55,Scottish & Southern Energy Plc
Manchester City Council,Regeneration Finance,Electricity,19/05/2022,1907749604,2504.01,Scottish & Southern Energy Plc
Manchester City Council,Regeneration Finance,Electricity,19/05/2022,1907749605,1201.19,Scottish & Southern Energy Plc
Manchester City Council,Regeneration Finance,Electricity,19/05/2022,1907749608,658.29,Scottish & Southern Energy Plc
Manchester City Council,Regeneration Finance,Electricity,19/05/2022,1907749609,512.61,Scottish & Southern Energy Plc
Manchester City Council,Childrens & Education Services,Electricity,19/05/2022,1907749611,1015.56,Scottish & Southern Energy Plc
Manchester City Council,Manchester Leisure,Electricity,19/05/2022,1907749615,1800.02,Scottish & Southern Energy Plc
Manchester City Council,Manchester Leisure,Electricity,19/05/2022,1907749616,1089.57,Scottish & Southern Energy Plc
Manchester City Council,Regeneration Finance,Electricity,19/05/2022,1907749619,757.64,Scottish & Southern Energy Plc
Manchester City Council,Manchester Leisure,Electricity,19/05/2022,1907749620,1462.06,Scottish & Southern Energy Plc
Manchester City Council,Adult Social Care,Electricity,19/05/2022,1907749621,561.47,Scottish & Southern Energy Plc
Manchester City Council,Regeneration Finance,Electricity,19/05/2022,1907749623,2920.42,Scottish & Southern Energy Plc
Manchester City Council,Manchester Leisure,Electricity,19/05/2022,1907749628,1155.16,Scottish & Southern Energy Plc
Manchester City Council,Manchester Leisure,Electricity,19/05/2022,1907749629,1216.19,Scottish & Southern Energy Plc
Manchester City Council,Manchester Leisure,Electricity,19/05/2022,1907749630,1126.39,Scottish & Southern Energy Plc
Manchester City Council,Manchester Leisure,Electricity,19/05/2022,1907749631,1120.07,Scottish & Southern Energy Plc
Manchester City Council,Manchester Leisure,Electricity,19/05/2022,1907749632,1111.68,Scottish & Southern Energy Plc
Manchester City Council,Hospitality + Trading Services,Electricity,19/05/2022,1907749636,1485.65,Scottish & Southern Energy Plc
Manchester City Council,Hospitality + Trading Services,Electricity,19/05/2022,1907749640,657.39,Scottish & Southern Energy Plc
Manchester City Council,Highways Services,Electricity,19/05/2022,1907749641,619.96,Scottish & Southern Energy Plc
Manchester City Council,Highways Services,Electricity,19/05/2022,1907749642,1163.42,Scottish & Southern Energy Plc
Manchester City Council,Highways Services,Electricity,19/05/2022,1907749647,770.5,Scottish & Southern Energy Plc
Manchester City Council,Manchester Leisure,Electricity,19/05/2022,1907749649,538.37,Scottish & Southern Energy Plc
Manchester City Council,Regeneration Finance,Electricity,19/05/2022,1907749653,992.19,Scottish & Southern Energy Plc
Manchester City Council,Regeneration Finance,Electricity,19/05/2022,1907749655,2658.69,Scottish & Southern Energy Plc
Manchester City Council,Regeneration Finance,Electricity,19/05/2022,1907749656,1238.92,Scottish & Southern Energy Plc
Manchester City Council,Regeneration Finance,Electricity,19/05/2022,1907749666,1019.32,Scottish & Southern Energy Plc
Manchester City Council,Adult Social Care,Electricity,19/05/2022,1907749671,740.72,Scottish & Southern Energy Plc
Manchester City Council,Regeneration Finance,Electricity,19/05/2022,1907749674,878.23,Scottish & Southern Energy Plc
Manchester City Council,Regeneration Finance,Electricity,19/05/2022,1907749676,974.76,Scottish & Southern Energy Plc
Manchester City Council,Regeneration Finance,Electricity,19/05/2022,1907749677,734.9,Scottish & Southern Energy Plc
Manchester City Council,Adult Social Care,Electricity,19/05/2022,1907749699,510.93,Scottish & Southern Energy Plc
Manchester City Council,Adult Social Care,Electricity,19/05/2022,1907749704,548.98,Scottish & Southern Energy Plc
Manchester City Council,Regeneration Finance,Electricity,19/05/2022,1907749740,2412.04,Scottish & Southern Energy Plc
Manchester City Council,Regeneration Finance,Electricity,19/05/2022,1907749741,606.37,Scottish & Southern Energy Plc
Manchester City Council,Regeneration Finance,Electricity,19/05/2022,1907749742,1486.6,Scottish & Southern Energy Plc
Manchester City Council,Regeneration Finance,Electricity,19/05/2022,1907749743,2318.07,Scottish & Southern Energy Plc
Manchester City Council,Regeneration Finance,Electricity,19/05/2022,1907749746,23864.12,Npower
Manchester City Council,Manchester Leisure,Electricity,19/05/2022,1907749747,1356.41,Npower
Manchester City Council,Manchester Leisure,Electricity,19/05/2022,1907749748,2849.13,Npower
Manchester City Council,Manchester Leisure,Electricity,19/05/2022,1907749749,2546.34,Npower
Manchester City Council,Manchester Leisure,Electricity,19/05/2022,1907749750,2714.85,Npower
Manchester City Council,Manchester Leisure,Electricity,19/05/2022,1907749751,2647.27,Npower
Manchester City Council,Manchester Leisure,Electricity,19/05/2022,1907749752,2218.71,Npower
Manchester City Council,Manchester Leisure,Electricity,19/05/2022,1907749753,2268.53,Npower
Manchester City Council,Regeneration Finance,Electricity,19/05/2022,1907749754,1076.73,Npower
Manchester City Council,Regeneration Finance,Electricity,19/05/2022,1907749755,5858.7,Npower
Manchester City Council,Manchester Leisure,Electricity,19/05/2022,1907749756,7060.54,Npower
Manchester City Council,Hospitality + Trading Services,Electricity,19/05/2022,1907749757,24219.51,Npower
Manchester City Council,Hospitality + Trading Services,Electricity,19/05/2022,1907749758,21244.06,Npower
Manchester City Council,Manchester Leisure,Electricity,19/05/2022,1907749760,8793.18,Npower
Manchester City Council,Hospitality + Trading Services,Electricity,19/05/2022,1907749761,2287.78,Npower
Manchester City Council,Regeneration Finance,Electricity,19/05/2022,1907749762,1633.16,Npower
Manchester City Council,Manchester Leisure,Electricity,19/05/2022,1907749763,640.27,Npower
Manchester City Council,Highways Services,Electricity,19/05/2022,1907749764,1051.77,Npower
Manchester City Council,Childrens & Education Services,Electricity,19/05/2022,1907749766,1246.63,Npower
Manchester City Council,Regeneration Finance,Electricity,19/05/2022,1907749769,526.65,Npower
Manchester City Council,Manchester Leisure,Electricity,19/05/2022,1907749770,4674.52,Npower
Manchester City Council,Regeneration Finance,Electricity,19/05/2022,1907749771,1425.56,Npower
Manchester City Council,Manchester Leisure,Electricity,19/05/2022,1907749772,1373.7,Npower
Manchester City Council,Manchester Leisure,Electricity,19/05/2022,1907749773,1306.59,Npower
Manchester City Council,Manchester Leisure,Electricity,19/05/2022,1907749774,10666.33,Npower
Manchester City Council,Hospitality + Trading Services,Electricity,19/05/2022,1907749775,648.6,Npower
Manchester City Council,Regeneration Finance,Electricity,19/05/2022,1907749776,10442.62,Npower
Manchester City Council,Highways Services,Electricity,19/05/2022,1907749777,3049.26,Npower
Manchester City Council,Hospitality + Trading Services,Electricity,19/05/2022,1907749779,9717.27,Npower
Manchester City Council,Regeneration Finance,Electricity,19/05/2022,1907749780,7172.65,Npower
Manchester City Council,Hospitality + Trading Services,Electricity,19/05/2022,1907749781,11866.62,Npower
Manchester City Council,Regeneration Finance,Electricity,19/05/2022,1907749782,5545.9,Npower
Manchester City Council,Regeneration Finance,Electricity,19/05/2022,1907749783,2201.1,Npower
Manchester City Council,Regeneration Finance,Electricity,19/05/2022,1907749784,2161.28,Npower
Manchester City Council,Regeneration Finance,Electricity,19/05/2022,1907749785,1206.59,Npower
Manchester City Council,Regeneration Finance,Electricity,19/05/2022,1907749786,2417.82,Npower
Manchester City Council,Regeneration Finance,Electricity,19/05/2022,1907749787,2073.7,Npower
Manchester City Council,Regeneration Finance,Electricity,19/05/2022,1907749788,1111.69,Npower
Manchester City Council,Regeneration Finance,Electricity,19/05/2022,1907749789,1019.63,Npower
Manchester City Council,Regeneration Finance,Electricity,19/05/2022,1907749790,4378.24,Npower
Manchester City Council,Manchester Leisure,Electricity,19/05/2022,1907749791,4562.77,Npower
Manchester City Council,Regeneration Finance,Electricity,19/05/2022,1907749792,6191.83,Npower
Manchester City Council,Regeneration Finance,Electricity,19/05/2022,1907749793,3567.27,Npower
Manchester City Council,Manchester Leisure,Electricity,19/05/2022,1907749794,9739.12,Npower
Manchester City Council,Regeneration Finance,Electricity,19/05/2022,1907749795,5764.49,Npower
Manchester City Council,Regeneration Finance,Electricity,19/05/2022,1907749796,1148.78,Npower
Manchester City Council,Manchester Leisure,Electricity,19/05/2022,1907749797,1224.7,Npower
Manchester City Council,Manchester Leisure,Electricity,19/05/2022,1907749798,581.04,Npower
Manchester City Council,Manchester Leisure,Electricity,19/05/2022,1907749800,1348.88,Npower
Manchester City Council,Manchester Leisure,Electricity,19/05/2022,1907749801,1508.51,Npower
Manchester City Council,Manchester Leisure,Electricity,19/05/2022,1907749802,1657.51,Npower
Manchester City Council,Adult Social Care,Electricity,19/05/2022,1907749803,1522.04,Npower
Manchester City Council,Regeneration Finance,Electricity,19/05/2022,1907749804,3427.99,Npower
Manchester City Council,Regeneration Finance,Electricity,19/05/2022,1907749805,1682.03,Npower
Manchester City Council,Manchester Leisure,Electricity,19/05/2022,1907749806,20106.32,Npower
Manchester City Council,Regeneration Finance,Electricity,19/05/2022,1907749807,31870.79,Npower
Manchester City Council,Manchester Leisure,Electricity,19/05/2022,1907749808,2877.77,Npower
Manchester City Council,Manchester Leisure,Electricity,19/05/2022,1907749809,5685.68,Npower
Manchester City Council,Manchester Leisure,Electricity,19/05/2022,1907749810,870.3,Npower
Manchester City Council,Manchester Leisure,Electricity,19/05/2022,1907749811,11916.09,Npower
Manchester City Council,Manchester Leisure,Electricity,19/05/2022,1907749812,20407.49,Npower
Manchester City Council,Manchester Leisure,Electricity,19/05/2022,1907749813,13177.91,Npower
Manchester City Council,Hospitality + Trading Services,Electricity,19/05/2022,1907749814,53538.59,Npower
Manchester City Council,Manchester Leisure,Electricity,19/05/2022,1907749815,6653.91,Npower
Manchester City Council,Regeneration Finance,Electricity,19/05/2022,1907749816,12644.86,Npower
Manchester City Council,Manchester Leisure,Electricity,19/05/2022,1907749817,3274.18,Npower
Manchester City Council,Highways Services,Electricity,19/05/2022,1907749818,2595.43,Npower
Manchester City Council,Adult Social Care,Electricity,19/05/2022,1907749820,1407.79,Npower
Manchester City Council,Regeneration Finance,Electricity,19/05/2022,1907749821,593.16,Npower
Manchester City Council,Regeneration Finance,Electricity,19/05/2022,1907749822,1205.49,Npower
Manchester City Council,Childrens & Education Services,Electricity,19/05/2022,1907749823,2208.92,Npower
Manchester City Council,Childrens & Education Services,Electricity,19/05/2022,1907749824,2970.43,Npower
Manchester City Council,Childrens & Education Services,Electricity,19/05/2022,1907749825,1611.1,Npower
Manchester City Council,Regeneration Finance,Electricity,19/05/2022,1907749826,27098.47,Npower
Manchester City Council,Regeneration Finance,Electricity,19/05/2022,1907749827,898.91,Npower
Manchester City Council,Regeneration Finance,Electricity,19/05/2022,1907749828,832.02,Npower
Manchester City Council,Manchester Leisure,Electricity,19/05/2022,1907749829,1084.15,Npower
Manchester City Council,Manchester Leisure,Electricity,19/05/2022,1907749830,1193.19,Npower
Manchester City Council,Regeneration Finance,Electricity,19/05/2022,1907749831,20387.67,Npower
Manchester City Council,Regeneration Finance,Electricity,19/05/2022,1907749832,12661.93,Npower
Manchester City Council,Manchester Leisure,Electricity,19/05/2022,1907749833,4073.89,Npower
Manchester City Council,Highways Services,Electricity,19/05/2022,1907749834,920.97,Npower
Manchester City Council,Manchester Leisure,Electricity,19/05/2022,1907749835,1097.49,Npower
Manchester City Council,Manchester Leisure,Electricity,19/05/2022,1907749836,5443.01,Npower
Manchester City Council,Adult Social Care,Electricity,19/05/2022,1907749837,1645.51,Npower
Manchester City Council,Childrens & Education Services,Electricity,19/05/2022,1907749838,1048.62,Npower
Manchester City Council,Adult Social Care,Electricity,19/05/2022,1907749839,2430.84,Npower
Manchester City Council,Adult Social Care,Electricity,19/05/2022,1907749840,1027.38,Npower
Manchester City Council,Adult Social Care,Electricity,19/05/2022,1907749841,1010.23,Npower
Manchester City Council,Hospitality + Trading Services,Electricity,19/05/2022,1907749842,2108.65,Npower
Manchester City Council,Regeneration Finance,Electricity,19/05/2022,1907749843,3503.96,Npower
Manchester City Council,Regeneration Finance,Electricity,19/05/2022,1907749844,854.97,Npower
Manchester City Council,Regeneration Finance,Electricity,19/05/2022,1907749845,1256.66,Npower
Manchester City Council,Housing Revenue Account,Electricity,19/05/2022,1907749850,641.56,Npower
Manchester City Council,Manchester Leisure,Electricity,19/05/2022,1907749855,1042.29,Npower
Manchester City Council,Manchester Leisure,Electricity,19/05/2022,1907749856,943.31,Npower
Manchester City Council,Manchester Leisure,Electricity,19/05/2022,1907749858,3050.89,Npower
Manchester City Council,Manchester Leisure,Electricity,19/05/2022,1907749861,1332.23,Npower
Manchester City Council,Manchester Leisure,Electricity,19/05/2022,1907749862,804.13,Npower
Manchester City Council,Manchester Leisure,Electricity,19/05/2022,1907749863,1494.56,Npower
Manchester City Council,Manchester Leisure,Electricity,19/05/2022,1907749864,1118.35,Npower
Manchester City Council,Manchester Leisure,Electricity,19/05/2022,1907749865,1338.89,Npower
Manchester City Council,Manchester Leisure,Electricity,19/05/2022,1907749867,1259.89,Npower
Manchester City Council,Adult Social Care,Electricity,19/05/2022,1907749869,2214.04,Npower
Manchester City Council,Childrens & Education Services,Fixtures and Fitting,19/05/2022,1907750245,527,FLOOR EXPRESS
Manchester City Council,Childrens & Education Services,Fixtures and Fitting,19/05/2022,1907750246,534,AO RETAIL LIMITED
Manchester City Council,Childrens & Education Services,Fixtures and Fitting,19/05/2022,1907750247,1221.95,Lockhart Catering Equipment Ltd
Manchester City Council,Childrens & Education Services,Fixtures and Fitting,19/05/2022,1907750249,588,DAVE CARPET WAREHOUSE
Manchester City Council,Childrens & Education Services,Fixtures and Fitting,19/05/2022,1907750268,683.5,APPLIANCEDIRECT CO
Manchester City Council,Childrens & Education Services,Fixtures and Fitting,19/05/2022,1907750290,-1221.95,Lockhart Catering Equipment Ltd
Manchester City Council,Childrens & Education Services,Fixtures and Fitting,19/05/2022,1907750295,700,SUPREME CARPETS
Manchester City Council,Adult Social Care,"Consumable items eg Toilet rolls, soap etc",19/05/2022,1907750308,600,GUESTHOUSE MANCHESTER
Manchester City Council,Adult Social Care,"Consumable items eg Toilet rolls, soap etc",19/05/2022,1907750310,600,GUESTHOUSE MANCHESTER
Manchester City Council,Adult Social Care,"Consumable items eg Toilet rolls, soap etc",19/05/2022,1907750311,624.8,WWW.SCREWFIX.COM
Manchester City Council,Adult Social Care,"Consumable items eg Toilet rolls, soap etc",19/05/2022,1907750314,700,GUESTHOUSE MANCHESTER
Manchester City Council,Childrens & Education Services,Fixtures and Fitting,19/05/2022,1907750317,515.03,APPLIANCEDIRECT CO
Manchester City Council,Adult Social Care,"Consumable items eg Toilet rolls, soap etc",19/05/2022,1907750319,600,GUESTHOUSE MANCHESTER
Manchester City Council,Adult Social Care,"Consumable items eg Toilet rolls, soap etc",19/05/2022,1907750321,600,GUESTHOUSE MANCHESTER
Manchester City Council,Adult Social Care,Payments for services,19/05/2022,1907750325,609.5,Premier Inn P CARD ONLY
Manchester City Council,Childrens & Education Services,Fixtures and Fitting,19/05/2022,1907750329,638,CURRYS ONLINE
Manchester City Council,Adult Social Care,"Consumable items eg Toilet rolls, soap etc",19/05/2022,1907750330,600,GUESTHOUSE MANCHESTER
Manchester City Council,Adult Social Care,"Consumable items eg Toilet rolls, soap etc",19/05/2022,1907750331,1540,PARK CITY SUITES HOTEL
Manchester City Council,Chief Executives,Legal Fees,19/05/2022,1907750335,5359,WWW.LAW.AC.UK
Manchester City Council,Adult Social Care,"Consumable items eg Toilet rolls, soap etc",19/05/2022,1907750339,1540,PARK CITY SUITES HOTEL
Manchester City Council,Adult Social Care,"Consumable items eg Toilet rolls, soap etc",19/05/2022,1907750347,879.15,TRAVELODGE P CARD ONLY
Manchester City Council,Chief Executives,Advertising,19/05/2022,1907750355,700,Facebook (CARD ONLY)
Manchester City Council,Adult Social Care,"Consumable items eg Toilet rolls, soap etc",19/05/2022,1907750359,646,HOTEL AT BOOKING.COM
Manchester City Council,Adult Social Care,"Consumable items eg Toilet rolls, soap etc",19/05/2022,1907750374,780,HOTEL ON BOOKING.COM
Manchester City Council,Adult Social Care,"Consumable items eg Toilet rolls, soap etc",19/05/2022,1907750376,803,Premier Inn P CARD ONLY
Manchester City Council,Adult Social Care,"Consumable items eg Toilet rolls, soap etc",19/05/2022,1907750381,1646,HOTEL AT BOOKING.COM
Manchester City Council,Adult Social Care,"Consumable items eg Toilet rolls, soap etc",19/05/2022,1907750383,1427.15,HIE MANCHESTER EAST
Manchester City Council,Adult Social Care,"Consumable items eg Toilet rolls, soap etc",19/05/2022,1907750384,993,HOTEL AT BOOKING.COM
Manchester City Council,Adult Social Care,"Consumable items eg Toilet rolls, soap etc",19/05/2022,1907750410,3199,C2E812000956L UKVI
Manchester City Council,Adult Social Care,"Consumable items eg Toilet rolls, soap etc",19/05/2022,1907750415,577.06,HIE MANCHESTER EAST
Manchester City Council,Chief Executives,"Consumable items eg Toilet rolls, soap etc",19/05/2022,1907750419,642,OCEANMEDIA.CO.UK
Manchester City Council,Adult Social Care,"Consumable items eg Toilet rolls, soap etc",19/05/2022,1907750444,834,HOTEL AT BOOKING.COM
Manchester City Council,Corporate Services,LRSG Grant pay,19/05/2022,1907750455,2667,Majuzo Ltd
Manchester City Council,Corporate Services,Legal Fees,20/05/2022,1907750457,800,Calland Mellor Consulting
Manchester City Council,Corporate Services,Bank Charges,30/05/2022,1907750458,10907.17,Capita Business Services Ltd
Manchester City Council,Childrens & Education Services,Professional fees,20/05/2022,1907750459,850,Redacted Personal Information
Manchester City Council,Manchester Leisure,Catering Provisions,30/05/2022,1907750463,540,Martins Craft Bakery Ltd
Manchester City Council,Regeneration Finance,Rents,24/05/2022,1907750467,10909.5,The Arch Company Properties Ltd
Manchester City Council,Corporate Services,Legal Fees,20/05/2022,1907750472,12115.69,Driscoll Kingston
Manchester City Council,Corporate Services,Legal Fees,20/05/2022,1907750473,1000,Driscoll Kingston
Manchester City Council,Childrens & Education Services,Legal Fees,20/05/2022,1907750612,7563,Liberata
Manchester City Council,Childrens & Education Services,Legal Fees,20/05/2022,1907750613,1062,Liberata
Manchester City Council,Childrens & Education Services,Legal Fees,20/05/2022,1907750614,2398,Liberata
Manchester City Council,Chief Executives,Legal Fees,20/05/2022,1907750615,29993,Liberata
Manchester City Council,Childrens & Education Services,Legal Fees,20/05/2022,1907750616,5533,Liberata
Manchester City Council,Childrens & Education Services,Legal Fees,20/05/2022,1907750617,15363,Liberata
Manchester City Council,Chief Executives,Legal Fees,20/05/2022,1907750618,1763,Liberata
Manchester City Council,Highways Services,Legal Fees,20/05/2022,1907750799,2833.8,NewLaw
Manchester City Council,Highways Services,Compensation Payments,20/05/2022,1907750799,4580,NewLaw
Manchester City Council,Adult Social Care,Rents,20/05/2022,1907750801,850,Redacted Personal Information
Manchester City Council,Childrens & Education Services,Fixtures and Fitting,20/05/2022,1907750803,1300,Redacted Personal Information
Manchester City Council,Adult Social Care,Legal Fees,20/05/2022,1907750806,12500,Pump Court Tax Chambers Fees Accoun
Manchester City Council,Chief Executives,PCard Recovery,20/05/2022,1907750824,720,Healthwork Ltd
Manchester City Council,Adult Social Care,PCard Recovery,20/05/2022,1907750844,652.25,Diversity Travel Ltd
Manchester City Council,Manchester Leisure,PCard Recovery,20/05/2022,1907750929,700.49,Diversity Travel Ltd
Manchester City Council,Adult Social Care,PCard Recovery,20/05/2022,1907750958,533.88,Diversity Travel Ltd
Manchester City Council,Housing General Fund,Building Works,23/05/2022,1907751332,8131,Pollock Lifts Ltd
Manchester City Council,Housing General Fund,Building Works,23/05/2022,1907751333,7025,Stannah Lift Services Ltd
Manchester City Council,Housing General Fund,Building Works,23/05/2022,1907751334,11122,Pollock Lifts Ltd
Manchester City Council,Housing General Fund,Building Works,23/05/2022,1907751335,3090,Stannah Lift Services Ltd
Manchester City Council,Housing General Fund,Building Works,23/05/2022,1907751336,19243.94,UPS Building & Maintenance Ltd
Manchester City Council,Housing General Fund,Building Works,23/05/2022,1907751337,22340.7,UPS Building & Maintenance Ltd
Manchester City Council,Housing General Fund,Building Works,23/05/2022,1907751338,4535.5,Hoist & Shower Chair Company
Manchester City Council,Housing General Fund,Building Works,23/05/2022,1907751339,2753,Hoist & Shower Chair Company
Manchester City Council,Housing General Fund,Building Works,23/05/2022,1907751340,6800,Stannah Lift Services Ltd
Manchester City Council,Housing General Fund,Building Works,23/05/2022,1907751341,2588,Stannah Lift Services Ltd
Manchester City Council,Housing General Fund,Building Works,23/05/2022,1907751342,6428,Stannah Lift Services Ltd
Manchester City Council,Housing General Fund,Building Works,23/05/2022,1907751343,2788,Hoist & Shower Chair Company
Manchester City Council,Manchester Leisure,Landline Telephone,26/05/2022,1907751438,1142.3,BT PLC
Manchester City Council,Adult Social Care,Rents,23/05/2022,1907751501,3000,B and P Properties Patrick Williams
Manchester City Council,Adult Social Care,Rents,23/05/2022,1907751504,2300,Blackstone Es
Manchester City Council,Childrens & Education Services,Professional fees,26/05/2022,1907751507,540,MEWA LLP
Manchester City Council,Manchester Leisure,Compensation Payments,24/05/2022,1907751509,500,Peasegoods
Manchester City Council,Manchester Leisure,Legal Fees,24/05/2022,1907751509,560,Peasegoods
Manchester City Council,Corporate Services,Legal Fees,30/05/2022,1907751513,8750,Peasegoods
Manchester City Council,Chief Executives,Works and associated costs for Land and Buildings,24/05/2022,1907751516,1750,Pannone Corporate LLP
Manchester City Council,Childrens & Education Services,Professional fees,26/05/2022,1907751522,650,18 St John Street Chambers
Manchester City Council,Childrens & Education Services,Professional fees,26/05/2022,1907751524,650,18 St John Street Chambers
Manchester City Council,Chief Executives,Professional fees,25/05/2022,1907751535,750,Redacted Personal Information
Manchester City Council,Manchester Leisure,Special Event,31/05/2022,1907751622,800,Salford Community Radio Ltd
Manchester City Council,Highways Services,Legal Fees,24/05/2022,1907751662,3156,Law Together
Manchester City Council,Highways Services,Compensation Payments,24/05/2022,1907751662,7250,Law Together
Manchester City Council,Manchester Leisure,Environmental Services,26/05/2022,1907753678,500,Redacted Personal Information
Manchester City Council,Chief Executives,Legal Fees,26/05/2022,1907753695,500,Trinity Chambers
Manchester City Council,Manchester Leisure,Library Materials Acquisition,26/05/2022,1907753705,538.8,Askews and Holts
Manchester City Council,Manchester Leisure,Library Materials Acquisition,26/05/2022,1907753728,861.64,Askews and Holts
Manchester City Council,Manchester Leisure,Library Materials Acquisition,26/05/2022,1907753731,640.38,Askews and Holts
Manchester City Council,Manchester Leisure,Library Materials Acquisition,26/05/2022,1907753735,800.54,Askews and Holts
Manchester City Council,Manchester Leisure,Library Materials Acquisition,26/05/2022,1907753740,759.93,Askews and Holts
Manchester City Council,Manchester Leisure,Library Materials Acquisition,26/05/2022,1907753742,537.72,Askews and Holts
Manchester City Council,Manchester Leisure,Library Materials Acquisition,26/05/2022,1907753745,756.41,Askews and Holts
Manchester City Council,Manchester Leisure,Library Materials Acquisition,26/05/2022,1907753750,512.52,Askews and Holts
Manchester City Council,Manchester Leisure,Library Materials Acquisition,26/05/2022,1907753753,673.09,Askews and Holts
Manchester City Council,Manchester Leisure,Professional fees,26/05/2022,1907754180,800,Redacted Personal Information
Manchester City Council,Highways Services,Training-Day Release,30/05/2022,1907754181,1356,Whale Tankers Ltd
Manchester City Council,Childrens & Education Services,Professional fees,27/05/2022,1907754183,550,Kenworthy's Chambers
Manchester City Council,Highways Services,Legal Fees,26/05/2022,1907754184,743,Department For Work & Pensions
Manchester City Council,Childrens & Education Services,PNOR-Other Amenities,26/05/2022,1907754536,1920,Redacted Personal Information
Manchester City Council,Regeneration Finance,Legal Fees,26/05/2022,1907754537,850,Nexus Solicitors Ltd
Manchester City Council,Regeneration Finance,Legal Fees,26/05/2022,1907754538,4290,Nexus Solicitors Ltd
Manchester City Council,Regeneration Finance,Cleaning Equipment and Materials,30/05/2022,1907754541,5687.89,Shred-It Ltd
Manchester City Council,Adult Social Care,Rents,26/05/2022,1907754542,1712.3,Saltsman and Co Sales Limited
Manchester City Council,Regeneration Finance,Cleaning Equipment and Materials,30/05/2022,1907754543,4971.67,Shred-It Ltd
Manchester City Council,Regeneration Finance,Cleaning Equipment and Materials,30/05/2022,1907754544,5373.18,Shred-It Ltd
Manchester City Council,Corporate Services,Compensation Payments,27/05/2022,1907754573,6531.31,Peasegoods
Manchester City Council,Corporate Services,Compensation Payments,26/05/2022,1907754594,1000,MJV Solicitors
Manchester City Council,Manchester Leisure,Gas,26/05/2022,1907754604,705.05,Scottish & Southern Energy Plc
Manchester City Council,Manchester Leisure,Gas,26/05/2022,1907754612,869.19,Scottish & Southern Energy Plc
Manchester City Council,Manchester Leisure,Gas,26/05/2022,1907754613,760.81,Scottish & Southern Energy Plc
Manchester City Council,Manchester Leisure,Gas,26/05/2022,1907754617,672.91,Scottish & Southern Energy Plc
Manchester City Council,Manchester Leisure,Gas,26/05/2022,1907754621,657.08,Scottish & Southern Energy Plc
Manchester City Council,Manchester Leisure,Gas,26/05/2022,1907754623,1323.46,Scottish & Southern Energy Plc
Manchester City Council,Manchester Leisure,Gas,26/05/2022,1907754625,715.87,Scottish & Southern Energy Plc
Manchester City Council,Manchester Leisure,Gas,26/05/2022,1907754626,545.45,Scottish & Southern Energy Plc
Manchester City Council,Manchester Leisure,Gas,26/05/2022,1907754627,1426.17,Scottish & Southern Energy Plc
Manchester City Council,Adult Social Care,Gas,26/05/2022,1907754630,715.31,Scottish & Southern Energy Plc
Manchester City Council,Manchester Leisure,Gas,26/05/2022,1907754632,733.63,Scottish & Southern Energy Plc
Manchester City Council,Manchester Leisure,Gas,26/05/2022,1907754635,703.55,Scottish & Southern Energy Plc
Manchester City Council,Manchester Leisure,Electricity,26/05/2022,1907754637,1431.8,Npower
Manchester City Council,Regeneration Finance,Electricity,26/05/2022,1907754638,28862.55,Npower
Manchester City Council,Manchester Leisure,Electricity,26/05/2022,1907754639,2044.74,Npower
Manchester City Council,Regeneration Finance,Electricity,26/05/2022,1907754640,7861.43,Npower
Manchester City Council,Regeneration Finance,Electricity,26/05/2022,1907754641,1069.74,Npower
Manchester City Council,Manchester Leisure,Electricity,26/05/2022,1907754642,7440.02,Npower
Manchester City Council,Hospitality + Trading Services,Electricity,26/05/2022,1907754643,21622.16,Npower
Manchester City Council,Hospitality + Trading Services,Electricity,26/05/2022,1907754644,22695.46,Npower
Manchester City Council,Manchester Leisure,Electricity,26/05/2022,1907754646,13698.99,Npower
Manchester City Council,Regeneration Finance,Electricity,26/05/2022,1907754647,2133.47,Npower
Manchester City Council,Manchester Leisure,Electricity,26/05/2022,1907754648,728.96,Npower
Manchester City Council,Highways Services,Electricity,26/05/2022,1907754649,1072.94,Npower
Manchester City Council,Childrens & Education Services,Electricity,26/05/2022,1907754651,1417.73,Npower
Manchester City Council,Regeneration Finance,Electricity,26/05/2022,1907754652,514.46,Npower
Manchester City Council,Manchester Leisure,Electricity,26/05/2022,1907754653,568.15,Npower
Manchester City Council,Regeneration Finance,Electricity,26/05/2022,1907754654,522.43,Npower
Manchester City Council,Manchester Leisure,Electricity,26/05/2022,1907754655,4652.58,Npower
Manchester City Council,Regeneration Finance,Electricity,26/05/2022,1907754656,1824.64,Npower
Manchester City Council,Manchester Leisure,Electricity,26/05/2022,1907754657,1671.8,Npower
Manchester City Council,Manchester Leisure,Electricity,26/05/2022,1907754658,2347.8,Npower
Manchester City Council,Manchester Leisure,Electricity,26/05/2022,1907754659,12208.87,Npower
Manchester City Council,Hospitality + Trading Services,Electricity,26/05/2022,1907754660,716.67,Npower
Manchester City Council,Regeneration Finance,Electricity,26/05/2022,1907754661,12714.04,Npower
Manchester City Council,Regeneration Finance,Electricity,26/05/2022,1907754662,16450,Npower
Manchester City Council,Highways Services,Electricity,26/05/2022,1907754663,2543.66,Npower
Manchester City Council,Hospitality + Trading Services,Electricity,26/05/2022,1907754665,9152.1,Npower
Manchester City Council,Regeneration Finance,Electricity,26/05/2022,1907754666,6168.37,Npower
Manchester City Council,Regeneration Finance,Electricity,26/05/2022,1907754667,8001.6,Npower
Manchester City Council,Regeneration Finance,Electricity,26/05/2022,1907754668,2024.27,Npower
Manchester City Council,Regeneration Finance,Electricity,26/05/2022,1907754669,2437.4,Npower
Manchester City Council,Regeneration Finance,Electricity,26/05/2022,1907754670,1238.08,Npower
Manchester City Council,Regeneration Finance,Electricity,26/05/2022,1907754671,2416.57,Npower
Manchester City Council,Regeneration Finance,Electricity,26/05/2022,1907754672,3260.37,Npower
Manchester City Council,Regeneration Finance,Electricity,26/05/2022,1907754673,1215.04,Npower
Manchester City Council,Regeneration Finance,Electricity,26/05/2022,1907754674,1047.74,Npower
Manchester City Council,Regeneration Finance,Electricity,26/05/2022,1907754675,5169.89,Npower
Manchester City Council,Manchester Leisure,Electricity,26/05/2022,1907754676,21199.62,Npower
Manchester City Council,Manchester Leisure,Electricity,26/05/2022,1907754677,5063.03,Npower
Manchester City Council,Regeneration Finance,Electricity,26/05/2022,1907754678,7597.59,Npower
Manchester City Council,Regeneration Finance,Electricity,26/05/2022,1907754679,5587.79,Npower
Manchester City Council,Manchester Leisure,Electricity,26/05/2022,1907754680,6949.14,Npower
Manchester City Council,Regeneration Finance,Electricity,26/05/2022,1907754681,8581.87,Npower
Manchester City Council,Regeneration Finance,Electricity,26/05/2022,1907754682,1278.56,Npower
Manchester City Council,Manchester Leisure,Electricity,26/05/2022,1907754683,1393.08,Npower
Manchester City Council,Manchester Leisure,Electricity,26/05/2022,1907754684,759.84,Npower
Manchester City Council,Manchester Leisure,Electricity,26/05/2022,1907754685,1290.58,Npower
Manchester City Council,Adult Social Care,Electricity,26/05/2022,1907754686,1527.36,Npower
Manchester City Council,Regeneration Finance,Electricity,26/05/2022,1907754687,4993.58,Npower
Manchester City Council,Regeneration Finance,Electricity,26/05/2022,1907754688,2508.39,Npower
Manchester City Council,Hospitality + Trading Services,Electricity,26/05/2022,1907754689,3155.6,Npower
Manchester City Council,Manchester Leisure,Electricity,26/05/2022,1907754690,20740.38,Npower
Manchester City Council,Regeneration Finance,Electricity,26/05/2022,1907754691,22629.75,Npower
Manchester City Council,Manchester Leisure,Electricity,26/05/2022,1907754692,2858.82,Npower
Manchester City Council,Manchester Leisure,Electricity,26/05/2022,1907754693,9546.75,Npower
Manchester City Council,Manchester Leisure,Electricity,26/05/2022,1907754694,13498.5,Npower
Manchester City Council,Manchester Leisure,Electricity,26/05/2022,1907754695,29298.24,Npower
Manchester City Council,Manchester Leisure,Electricity,26/05/2022,1907754696,17379.14,Npower
Manchester City Council,Hospitality + Trading Services,Electricity,26/05/2022,1907754697,58276.49,Npower
Manchester City Council,Manchester Leisure,Electricity,26/05/2022,1907754698,11548.91,Npower
Manchester City Council,Manchester Leisure,Electricity,26/05/2022,1907754699,10235.68,Npower
Manchester City Council,Regeneration Finance,Electricity,26/05/2022,1907754700,12960.8,Npower
Manchester City Council,Manchester Leisure,Electricity,26/05/2022,1907754701,3422.5,Npower
Manchester City Council,Highways Services,Electricity,26/05/2022,1907754702,2298.83,Npower
Manchester City Council,Highways Services,Electricity,26/05/2022,1907754703,511.05,Npower
Manchester City Council,Highways Services,Electricity,26/05/2022,1907754704,1740.2,Npower
Manchester City Council,Highways Services,Electricity,26/05/2022,1907754705,565.81,Npower
Manchester City Council,Adult Social Care,Electricity,26/05/2022,1907754706,1499.36,Npower
Manchester City Council,Regeneration Finance,Electricity,26/05/2022,1907754707,595.78,Npower
Manchester City Council,Regeneration Finance,Electricity,26/05/2022,1907754708,1198.12,Npower
Manchester City Council,Childrens & Education Services,Electricity,26/05/2022,1907754709,3272.77,Npower
Manchester City Council,Childrens & Education Services,Electricity,26/05/2022,1907754710,2999.22,Npower
Manchester City Council,Childrens & Education Services,Electricity,26/05/2022,1907754711,3175.51,Npower
Manchester City Council,Childrens & Education Services,Electricity,26/05/2022,1907754712,3756.73,Npower
Manchester City Council,Regeneration Finance,Electricity,26/05/2022,1907754713,31605.76,Npower
Manchester City Council,Regeneration Finance,Electricity,26/05/2022,1907754714,1034.06,Npower
Manchester City Council,Regeneration Finance,Electricity,26/05/2022,1907754715,816.68,Npower
Manchester City Council,Manchester Leisure,Electricity,26/05/2022,1907754716,1003.67,Npower
Manchester City Council,Manchester Leisure,Electricity,26/05/2022,1907754717,1329.02,Npower
Manchester City Council,Regeneration Finance,Electricity,26/05/2022,1907754718,12862.87,Npower
Manchester City Council,Regeneration Finance,Electricity,26/05/2022,1907754719,21218.15,Npower
Manchester City Council,Manchester Leisure,Electricity,26/05/2022,1907754720,4303.97,Npower
Manchester City Council,Highways Services,Electricity,26/05/2022,1907754721,935.35,Npower
Manchester City Council,Highways Services,Electricity,26/05/2022,1907754722,900.47,Npower
Manchester City Council,Manchester Leisure,Electricity,26/05/2022,1907754723,1476.73,Npower
Manchester City Council,Manchester Leisure,Electricity,26/05/2022,1907754724,1449.21,Npower
Manchester City Council,Manchester Leisure,Electricity,26/05/2022,1907754725,5997.22,Npower
Manchester City Council,Adult Social Care,Electricity,26/05/2022,1907754726,1674.19,Npower
Manchester City Council,Childrens & Education Services,Electricity,26/05/2022,1907754727,1287.03,Npower
Manchester City Council,Hospitality + Trading Services,Electricity,26/05/2022,1907754728,2217.83,Npower
Manchester City Council,Regeneration Finance,Electricity,26/05/2022,1907754729,6066.12,Npower
Manchester City Council,Regeneration Finance,Electricity,26/05/2022,1907754730,885.52,Npower
Manchester City Council,Regeneration Finance,Electricity,26/05/2022,1907754731,2192.07,Npower
Manchester City Council,Housing Revenue Account,Electricity,26/05/2022,1907754735,739.37,Npower
Manchester City Council,Manchester Leisure,Electricity,26/05/2022,1907754742,1016.08,Npower
Manchester City Council,Manchester Leisure,Electricity,26/05/2022,1907754744,1061.3,Npower
Manchester City Council,Manchester Leisure,Electricity,26/05/2022,1907754748,3194.15,Npower
Manchester City Council,Manchester Leisure,Electricity,26/05/2022,1907754751,1388.18,Npower
Manchester City Council,Manchester Leisure,Electricity,26/05/2022,1907754752,945.87,Npower
Manchester City Council,Manchester Leisure,Electricity,26/05/2022,1907754753,1978.09,Npower
Manchester City Council,Manchester Leisure,Electricity,26/05/2022,1907754754,1141.49,Npower
Manchester City Council,Manchester Leisure,Electricity,26/05/2022,1907754755,1333.82,Npower
Manchester City Council,Corporate Services,Legal Fees,26/05/2022,1907755040,1600,CElL Solicitors
Manchester City Council,Corporate Services,Gym Membership,26/05/2022,1907755041,638.4,Greenwich Leisure Limited
Manchester City Council,Chief Executives,Legal Fees,31/05/2022,1907755061,7000,Redacted Personal Information
Manchester City Council,Regeneration Finance,I T Provision,27/05/2022,1907755070,3440,ADS Software Limited
Manchester City Council,Manchester Leisure,Professional fees,27/05/2022,1907755072,16220.48,Novum Audio Visual Limited
Manchester City Council,Manchester Leisure,Professional fees,27/05/2022,1907755073,5094,Clearview Event Services Limited
Manchester City Council,Chief Executives,Professional fees,31/05/2022,1907755087,550,Kenworthy's Chambers
Manchester City Council,Corporate Services,Transport Taxis,27/05/2022,1907755205,31486.16,Mantax Radio Taxis Ltd
Manchester City Council,Hospitality + Trading Services,Compensation Payments,27/05/2022,1907755379,12000,Redacted Personal Information
Manchester City Council,Highways Services,Legal Fees,27/05/2022,1907755382,20000,WAKESMITH SOLICITORS
Manchester City Council,Insurance Fund,Insurance,27/05/2022,1907755382,24850,WAKESMITH SOLICITORS
Manchester City Council,Highways Services,Legal Fees,30/05/2022,1907756993,6256,Equitas Solicitors
Manchester City Council,Childrens & Education Services,Professional fees,31/05/2022,1907756995,650,18 St John Street Chambers
Manchester City Council,Chief Executives,Legal Fees,31/05/2022,1907757677,750,Central Chambers
Manchester City Council,Chief Executives,Legal Fees,31/05/2022,1907757686,650,18 St John Street Chambers
Manchester City Council,Chief Executives,Professional fees,31/05/2022,1907757688,800,18 St John Street Chambers
Manchester City Council,Childrens & Education Services,Professional fees,31/05/2022,1907757693,540,CY4OR Legal Ltd
Manchester City Council,Chief Executives,Professional fees,31/05/2022,1907757695,8460,18 St John Street Chambers
Manchester City Council,Childrens & Education Services,Professional fees,30/05/2022,1907757886,500,Bromleys Solicitors LLP
Manchester City Council,Chief Executives,Legal Fees,31/05/2022,1907757899,13717.98,Manchester Creative Digital Assets
Manchester City Council,Chief Executives,Legal Fees,31/05/2022,1907759180,770,18 St John Street Chambers
Manchester City Council,Corporate Services,Legal Fees,31/05/2022,1907759231,550,Total Legal Solutions
Manchester City Council,Manchester Leisure,Compensation Payments,30/05/2022,1907759234,19250,LL Barrowcliff Solicitors
Manchester City Council,Insurance Fund,Insurance,30/05/2022,1907759234,31277,LL Barrowcliff Solicitors
Manchester City Council,Chief Executives,Professional fees,31/05/2022,1907759243,550,Redacted Personal Information
Manchester City Council,Hospitality + Trading Services,Compensation Payments,31/05/2022,1907759247,50000,Resolute Management Services Lt
Manchester City Council,Corporate Services,Legal Fees,31/05/2022,1907759252,800,Trinity Chambers
Manchester City Council,Corporate Services,Legal Fees,31/05/2022,1907759255,1167.23,Peter Dickeson Associates Ltd
Manchester City Council,Adult Social Care,Legal Fees,31/05/2022,1907759261,550,Pinnacle Building and Surveying
Manchester City Council,Corporate Services,Legal Fees,31/05/2022,1907759262,650,COSGROVE COSTINGS LIMITED
Manchester City Council,Corporate Services,Legal Fees,31/05/2022,1907759263,520,COSGROVE COSTINGS LIMITED
Manchester City Council,Corporate Services,Compensation Payments,31/05/2022,1907759265,4000,SBW Law
Manchester City Council,Chief Executives,PCard Recovery,31/05/2022,1907759406,785,Healthwork Ltd
Manchester City Council,Corporate Services,Compensation Payments,31/05/2022,1907760060,6000,Cromptons Solicitors
Manchester City Council,Manchester Leisure,Compensation Payments,31/05/2022,1907760065,1830,Nicholson Jones Sutton Solicitor
Manchester City Council,Corporate Services,Compensation Payments,31/05/2022,1907760071,2250,Driscoll Kingston Solicitors
Manchester City Council,Childrens & Education Services,Professional fees,31/05/2022,1907760075,515.88,Family Psychology Services Ltd
Manchester City Council,Childrens & Education Services,Professional fees,31/05/2022,1907760078,1530.7,Advanced Child Care Assessments
Manchester City Council,Corporate Services,Legal Fees,31/05/2022,1907760332,1150,Driscoll Kingston Solicitor
Manchester City Council,Corporate Services,Legal Fees,31/05/2022,1907760339,2331,Driscoll Kingston Solicitor
Manchester City Council,Corporate Services,Legal Fees,31/05/2022,1907760340,13780.84,Clear Law Solicitors
Manchester City Council,Corporate Services,Legal Fees,31/05/2022,1907760341,4000,Peasegoods
Manchester City Council,Adult Social Care,Removal and Storage of Furniture,31/05/2022,1907760350,649.63,Safestore Ltd
Manchester City Council,Chief Executives,Agency staff provision,05/05/2022,5105814611,800,Badenoch & Clark
Manchester City Council,Corporate Services,WPS Awards,31/05/2022,5105814616,677.03,Furniture Resource Centre Ltd
Manchester City Council,Adult Social Care,Professional fees,04/05/2022,5105814621,836.2,R.S.P. Ltd Br Business Systems Ltd
Manchester City Council,Adult Social Care,Rents,03/05/2022,5105814624,-82419.83,MJ Rental Ltd
Manchester City Council,Manchester Leisure,Grant and subscriptions awarded,03/05/2022,5105814625,743.94,Smithfield Residents Group
Manchester City Council,Regeneration Finance,Professional fees,03/05/2022,5105814626,1795,Ocean Media Group Ltd
Manchester City Council,Adult Social Care,Third party payments relating to Voluntary Organisations,05/05/2022,5105814627,9640.13,The Big Life Company
Manchester City Council,Hospitality + Trading Services,Vehicle Fuel Costs,05/05/2022,5105814628,12571.2,Standard Fuels Oils
Manchester City Council,Childrens & Education Services,Professional fees,03/05/2022,5105814631,2520,Afruca
Manchester City Council,Childrens & Education Services,Transport Coach Hire,10/05/2022,5105814632,6258,Sumi Travel Ltd.
Manchester City Council,Adult Social Care,Third party payments relating to Voluntary Organisations,03/05/2022,5105814633,-40000,Riverside ECHG
Manchester City Council,Hospitality + Trading Services,Grant Payments,03/05/2022,5105814634,7849.73,Kirona Solutions Ltd
Manchester City Council,Chief Executives,Professional fees,05/05/2022,5105814635,7000,Anthesis Group
Manchester City Council,Regeneration Finance,Professional Fees,03/05/2022,5105814636,5830,Mott Macdonald Uk Limited
Manchester City Council,Childrens & Education Services,Professional fees,03/05/2022,5105814637,2400,Afruca
Manchester City Council,Manchester Leisure,Equipment,26/05/2022,5105814641,525.5,F T Factors
Manchester City Council,Regeneration Finance,External repairs and maintenance for buildings,09/05/2022,5105814642,4575.8,Victoria Baths Trust
Manchester City Council,Manchester Leisure,Special Event,03/05/2022,5105814643,600,Redacted Personal Information
Manchester City Council,Chief Executives,Works and associated costs for Land and Buildings,04/05/2022,5105814645,750,Brysdales Ltd
Manchester City Council,Childrens & Education Services,Gas,03/05/2022,5105814647,727.81,Brighter Beginnings (Newton Heath)
Manchester City Council,Childrens & Education Services,Gas,03/05/2022,5105814648,696.58,Brighter Beginnings Day Nursery
Manchester City Council,Adult Social Care,Personal needs of client,06/05/2022,5105814652,2585,Schuchmann LLP
Manchester City Council,Childrens & Education Services,Payments for services,03/05/2022,5105814654,17805.08,NISAI Virtual Academy
Manchester City Council,Hospitality + Trading Services,Vehicle Hire Costs,05/05/2022,5105814661,60909.35,Winners Contract Hire Ltd
Manchester City Council,Adult Social Care,Third party payments relating to Voluntary Organisations,03/05/2022,5105814663,25587,Gaddum Centre
Manchester City Council,Regeneration Finance,Agency staff provision,04/05/2022,5105814664,2551.67,Osbourne Thomas Ltd
Manchester City Council,Childrens & Education Services,Payments for services,03/05/2022,5105814665,1560.04,The Together Trust
Manchester City Council,Chief Executives,Payments to Sub-Contractors,05/05/2022,5105814668,839.93,Redacted Personal Information
Manchester City Council,Chief Executives,Payments to Sub-Contractors,05/05/2022,5105814669,2458.07,Redacted Personal Information
Manchester City Council,Childrens & Education Services,Transport Coach Hire,11/05/2022,5105814670,5062,New City Cars Ltd
Manchester City Council,Adult Social Care,Supporting People Payments,04/05/2022,5105814672,2875,Jigsaw Homes North
Manchester City Council,Adult Social Care,Rents,04/05/2022,5105814672,13375,Jigsaw Homes North
Manchester City Council,Childrens & Education Services,Payments for services,03/05/2022,5105814673,174687.49,Pinc College Northwest
Manchester City Council,Childrens & Education Services,Payments for services,03/05/2022,5105814674,8085,Pinc College Northwest
Manchester City Council,Highways Services,Building Materials for direct delivery,31/05/2022,5105814677,610.2,Manchester Safety Services Ltd
Manchester City Council,Childrens & Education Services,Professional fees,03/05/2022,5105814678,2520,Afruca
Manchester City Council,Childrens & Education Services,Payments for services,03/05/2022,5105814679,1560.04,The Together Trust
Manchester City Council,Childrens & Education Services,Third party payments to other Local Authorities,03/05/2022,5105814680,1019.36,Staffordshire County Council
Manchester City Council,Childrens & Education Services,Third party payments to other Local Authorities,03/05/2022,5105814681,18075,St Thomas of Canterbury
Manchester City Council,Childrens & Education Services,Third party payments to other Local Authorities,03/05/2022,5105814682,3986,Vale View Primary School
Manchester City Council,Childrens & Education Services,Third party payments to other Local Authorities,03/05/2022,5105814683,5566.25,Firwood High School
Manchester City Council,Childrens & Education Services,Day Care Payments,03/05/2022,5105814684,1675,The Manchester College
Manchester City Council,Manchester Leisure,Building Materials for direct delivery,05/05/2022,5105814685,736,Rigby Taylor Ltd
Manchester City Council,Childrens & Education Services,Transport Coach Hire,11/05/2022,5105814687,1391,Saltax Ltd
Manchester City Council,Adult Social Care,Furniture,04/05/2022,5105814688,1504.9,Back Care Solutions Ltd
Manchester City Council,Corporate Services,Works and associated costs for Land and Buildings,04/05/2022,5105814693,1255.68,Apex Self Storage Ltd
Manchester City Council,Childrens & Education Services,Payments for services,04/05/2022,5105814694,20000,Headstart
Manchester City Council,Childrens & Education Services,Payments for services,04/05/2022,5105814695,13091,Mary Hare School
Manchester City Council,Chief Executives,Postage,04/05/2022,5105814696,4999.6,Whistl North Ltd
Manchester City Council,Manchester Leisure,Professional Fees,04/05/2022,5105814697,6966,Eunomia Ltd
Manchester City Council,Adult Social Care,Rents,04/05/2022,5105814698,3194.21,Great Places Housing Association
Manchester City Council,Manchester Leisure,Grant and subscriptions awarded,04/05/2022,5105814699,500,Friends of Rodney Fields
Manchester City Council,Chief Executives,Third party payments relating to Voluntary Organisations,04/05/2022,5105814702,-8957.33,The Stroke Association
Manchester City Council,Chief Executives,Payments to Sub-Contractors,05/05/2022,5105814705,643.8,Redacted Personal Information
Manchester City Council,Corporate Services,Works and associated costs for Land and Buildings,09/05/2022,5105814706,550,Jane Simpson Access Ltd
Manchester City Council,Chief Executives,Agency staff provision,09/05/2022,5105814707,60346.13,Liquid Personnel Ltd
Manchester City Council,Corporate Services,Works and associated costs for Land and Buildings,04/05/2022,5105814708,2831,Eversheds Llp
Manchester City Council,Corporate Services,Professional fees,04/05/2022,5105814709,3303,Mace Ltd
Manchester City Council,Corporate Services,Professional fees,04/05/2022,5105814710,-3303,Mace Ltd
Manchester City Council,Manchester Leisure,Grant and subscriptions awarded,04/05/2022,5105814711,1038.76,Acorn Close Allotment Society
Manchester City Council,Regeneration Finance,Hire of Premises,04/05/2022,5105814712,1300,Levenshulme Inspire
Manchester City Council,Childrens & Education Services,Third party payments to other Local Authorities,31/05/2022,5105814713,525,Bolton Mbc
Manchester City Council,Chief Executives,Equipment Operating Lease,04/05/2022,5105814714,8057.11,Xerox Finance Ltd
Manchester City Council,Corporate Services,WPS Awards,31/05/2022,5105814716,1222.14,Furniture Resource Centre Ltd
Manchester City Council,Childrens & Education Services,Payments for services,04/05/2022,5105814717,14229,Cambian Childcare Ltd
Manchester City Council,Childrens & Education Services,Transport Coach Hire,04/05/2022,5105814719,-15397,Sumi Travel Ltd.
Manchester City Council,Corporate Services,WPS Awards,12/05/2022,5105814720,565.07,Furniture Resource Centre Ltd
Manchester City Council,Regeneration Finance,Professional fees,09/05/2022,5105814721,3500,Colliers International
Manchester City Council,Regeneration Finance,Preventative Maintenance Work,11/05/2022,5105814722,375807.9,EQUANS Services Limited
Manchester City Council,Regeneration Finance,Subvention Payments,20/05/2022,5105814723,227082,Manchester Creative Digital Assets
Manchester City Council,Regeneration Finance,Subvention Payments,09/05/2022,5105814724,177507,Manchester Creative Digital Assets
Manchester City Council,Regeneration Finance,Subvention Payments,09/05/2022,5105814725,247000,Manchester Creative Digital Assets
Manchester City Council,Regeneration Finance,Subvention Payments,09/05/2022,5105814726,33605,Manchester Creative Digital Assets
Manchester City Council,Regeneration Finance,Subvention Payments,09/05/2022,5105814727,34196,Manchester Creative Digital Assets
Manchester City Council,Corporate Services,Security,31/05/2022,5105814728,1012.73,Taranto Systems Ltd
Manchester City Council,Corporate Services,Security,23/05/2022,5105814729,36399.42,Taranto Systems Ltd
Manchester City Council,Corporate Services,I T Provision,17/05/2022,5105814730,1374.6,Taranto Systems Ltd
Manchester City Council,Adult Social Care,Rents,04/05/2022,5105814731,-4359.01,Housing Social Ltd
Manchester City Council,Adult Social Care,Rents,04/05/2022,5105814732,4359.01,Housing Social Ltd
Manchester City Council,Childrens & Education Services,Payments for services,09/05/2022,5105814735,1679.6,Fairfield Care Ltd
Manchester City Council,Chief Executives,Payments to Sub-Contractors,09/05/2022,5105814736,621.35,Redacted Personal Information
Manchester City Council,Environment and Operations,Works and associated costs for Land and Buildings,09/05/2022,5105814741,4312.5,Wybone Ltd
Manchester City Council,Childrens & Education Services,Transport Coach Hire,04/05/2022,5105814742,15397,Sumi Travel Ltd.
Manchester City Council,Hospitality + Trading Services,Equipment,04/05/2022,5105814743,-1545,Astra Signs
Manchester City Council,Childrens & Education Services,Third party payments to other Local Authorities,04/05/2022,5105814744,2605,Hursthead Junior School
Manchester City Council,Corporate Services,I T Provision,17/05/2022,5105814751,916.4,Taranto Systems Ltd
Manchester City Council,Corporate Services,I T Provision,17/05/2022,5105814752,824.76,Taranto Systems Ltd
Manchester City Council,Chief Executives,Grant and subscriptions awarded,17/05/2022,5105814753,38700,Gartner UK Limited
Manchester City Council,Adult Social Care,Extra Care Sheltd HP,20/05/2022,5105814754,34601.32,Sevacare (U K ) lTD
Manchester City Council,Adult Social Care,Professional fees,05/05/2022,5105814755,100000,The Depaul Trust
Manchester City Council,Adult Social Care,Extra Care Sheltd HP,20/05/2022,5105814756,32229.56,CRG Homecare Limited
Manchester City Council,Chief Executives,Third party payments relating to Voluntary Organisations,10/05/2022,5105814757,105699.5,HOME
Manchester City Council,Chief Executives,Vehicle Plant Furniture and Equipment,09/05/2022,5105814758,159740.78,Grantfen Fire & Security Ltd
Manchester City Council,Corporate Services,Postage,04/05/2022,5105814760,9755.04,Royal Mail Group Plc
Manchester City Council,Chief Executives,Payments to Sub-Contractors,13/05/2022,5105814765,505.6,Redacted Personal Information
Manchester City Council,Chief Executives,Payments to Sub-Contractors,13/05/2022,5105814767,514,Redacted Personal Information
Manchester City Council,Childrens & Education Services,Payments for services,04/05/2022,5105814771,-8525.64,Edstart Specialist Education Ltd
Manchester City Council,Childrens & Education Services,Payments for services,04/05/2022,5105814772,8525.64,Edstart Specialist Education Ltd
Manchester City Council,Childrens & Education Services,Payments for services,04/05/2022,5105814773,38265,Thompsons Academy Ltd
Manchester City Council,Corporate Services,Postage,05/05/2022,5105814775,4964.1,Royal Mail Group Plc
Manchester City Council,Environment and Operations,Construction Works,31/05/2022,5105814776,5200,R & M Developments Ltd
Manchester City Council,Environment and Operations,Construction Works,09/05/2022,5105814777,1700,R & M Developments Ltd
Manchester City Council,Chief Executives,Grant and subscriptions awarded,04/05/2022,5105814778,116666.66,National Football Museum
Manchester City Council,Chief Executives,Works and associated costs for Land and Buildings,13/05/2022,5105814779,1005938.46,Morgan Sindall C & I Ltd
Manchester City Council,Chief Executives,Works and associated costs for Land and Buildings,31/05/2022,5105814785,562.99,BCL
Manchester City Council,Corporate Services,GRIR,03/05/2022,5105814786,-500,Trinity Chambers
Manchester City Council,Highways Services,Professional fees,09/05/2022,5105814787,17046.89,Wilde Consultants Ltd
Manchester City Council,Childrens & Education Services,Training and Development,09/05/2022,5105814788,1500,CoramBAAF
Manchester City Council,Corporate Services,Professional fees,06/05/2022,5105814789,3495,Solace In Business Ltd
Manchester City Council,Corporate Services,Professional fees,06/05/2022,5105814790,3495,Solace In Business Ltd
Manchester City Council,Chief Executives,Paper & Envelopes,09/05/2022,5105814795,1005.29,Premier Paper Group Ltd
Manchester City Council,Manchester Leisure,Grant and subscriptions awarded,09/05/2022,5105814797,1375.72,Business Working With Wythenshawe
Manchester City Council,Manchester Leisure,Professional fees,09/05/2022,5105814798,6350,Harwell Document Restoration Servs
Manchester City Council,Hospitality + Trading Services,Vehicle Hire Costs,10/05/2022,5105814800,2716.58,Fleet Dynamic Consultancy Ltd
Manchester City Council,Corporate Services,Works and associated costs for Land and Buildings,31/05/2022,5105814801,6000,Building Design Partnership Limited
Manchester City Council,Regeneration Finance,I T Provision,11/05/2022,5105814802,3220.29,Compass Computer Consultants Ltd
Manchester City Council,Childrens & Education Services,Contract Cleaning External,04/05/2022,5105814803,3805.5,Tiddlywinks Day Nursery Ltd
Manchester City Council,Childrens & Education Services,Transport Coach Hire,26/05/2022,5105814804,10178.5,Youbus Ltd
Manchester City Council,Corporate Services,Works and associated costs for Land and Buildings,05/05/2022,5105814805,2480,BCL
Manchester City Council,Regeneration Finance,Removal and Storage of Furniture,05/05/2022,5105814806,1364,BCL
Manchester City Council,Adult Social Care,Supported Accommodation,05/05/2022,5105814809,34653,Divrse Ltd
Manchester City Council,Adult Social Care,Professional fees,13/05/2022,5105814810,7600,Policy Partners Project Ltd
Manchester City Council,Regeneration Finance,I T Provision,05/05/2022,5105814811,3295,One Education Ltd
Manchester City Council,Adult Social Care,Professional fees,09/05/2022,5105814813,14400,Sundown Solutions Ltd
Manchester City Council,Chief Executives,Printing,09/05/2022,5105814815,1717,Wallace Printers Ltd
Manchester City Council,Chief Executives,Agency staff provision,09/05/2022,5105814816,5803.32,G2V Recruitment Grp t/a Vivid Resou
Manchester City Council,Childrens & Education Services,Third party payments to other Local Authorities,09/05/2022,5105814820,13489,Longford Park School
Manchester City Council,Manchester Leisure,Payments to Sub-Contractors,13/05/2022,5105814821,1380,Groundwork & Leisure Services Ltd
Manchester City Council,Adult Social Care,Personal needs of client,09/05/2022,5105814823,4040,Tunstall Healthcare (UK) Ltd
Manchester City Council,Childrens & Education Services,Transport Coach Hire,20/05/2022,5105814825,8093.5,Parkway Cabs & Cars
Manchester City Council,Chief Executives,Professional fees,10/05/2022,5105814826,1580.83,"Groundwork Manchester, Salford"
Manchester City Council,Adult Social Care,Equipment,09/05/2022,5105814827,2708.1,Drive Devilbiss Healthcare Ltd
Manchester City Council,Environment and Operations,Construction Works,04/05/2022,5105814829,1884.72,GMCA
Manchester City Council,Adult Social Care,Third party payments relating to Voluntary Organisations,31/05/2022,5105814831,11000,Stepping Stone Projects
Manchester City Council,Manchester Leisure,Professional Fees,09/05/2022,5105814833,1734,Len Grant Photography
Manchester City Council,Manchester Leisure,Building Materials for direct delivery,05/05/2022,5105814834,1675,CPD Property Services
Manchester City Council,Manchester Leisure,Building Materials for direct delivery,05/05/2022,5105814835,2195,CPD Property Services
Manchester City Council,Chief Executives,Hire of Equipment,05/05/2022,5105814836,1567.32,Twofold Ltd
Manchester City Council,Chief Executives,Advertising,06/05/2022,5105814837,4550,Fonemedia Limited
Manchester City Council,Chief Executives,Advertising,09/05/2022,5105814838,1200,Fonemedia Limited
Manchester City Council,Adult Social Care,Bed & Breakfast Acc,04/05/2022,5105814839,11970,Redacted Personal Information
Manchester City Council,Adult Social Care,Rents,05/05/2022,5105814840,32124.55,Housing Social Ltd
Manchester City Council,Manchester Leisure,Agency staff provision,13/05/2022,5105814841,928,Michael Page International
Manchester City Council,Regeneration Finance,I T Provision,10/05/2022,5105814844,-3232.32,Insight Direct (Uk) Ltd
Manchester City Council,Adult Social Care,Personal needs of client,31/05/2022,5105814845,559.68,Prism Medical UK Carefree Division
Manchester City Council,Childrens & Education Services,Transport Coach Hire,10/05/2022,5105814848,1827.5,Ricks Travel
Manchester City Council,Adult Social Care,Rents,12/05/2022,5105814851,32542.79,Housing Social Ltd
Manchester City Council,Adult Social Care,Rents,12/05/2022,5105814852,4359.01,Housing Social Ltd
Manchester City Council,Adult Social Care,Bed & Breakfast Acc,13/05/2022,5105814853,5145,Medlock House Ltd
Manchester City Council,Adult Social Care,Rents,09/05/2022,5105814854,4583.79,Houses4Homes 4U Ltd
Manchester City Council,Adult Social Care,Rents,04/05/2022,5105814855,67567.6,MJ Rental Ltd
Manchester City Council,Adult Social Care,Rents,10/05/2022,5105814856,25021.9,United Property Management Ltd
Manchester City Council,Childrens & Education Services,Payments for services,09/05/2022,5105814858,1442.33,Fairfield Care Ltd
Manchester City Council,Childrens & Education Services,Payments for services,09/05/2022,5105814859,1600.44,Fairfield Care Ltd
Manchester City Council,Childrens & Education Services,Supported Accommodation,05/05/2022,5105814860,1113,Redacted Personal Information
Manchester City Council,Chief Executives,Agency staff provision,09/05/2022,5105814863,920,Isherwood Legal Limited
Manchester City Council,Childrens & Education Services,Professional fees,04/05/2022,5105814870,945,Redacted Personal Information
Manchester City Council,Adult Social Care,Bed & Breakfast Acc,11/05/2022,5105814871,32200,Redacted Personal Information
Manchester City Council,Housing General Fund,Works and associated costs for Land and Buildings,04/05/2022,5105814873,609.5,Jacobs UK Ltd
Manchester City Council,Childrens & Education Services,Supported Accommodation,04/05/2022,5105814877,1113,Redacted Personal Information
Manchester City Council,Adult Social Care,Professional fees,04/05/2022,5105814878,21969,Depaul UK
Manchester City Council,Adult Social Care,Third party payments relating to Voluntary Organisations,04/05/2022,5105814879,-21969,The Depaul Trust
Manchester City Council,Childrens & Education Services,Professional fees,04/05/2022,5105814886,1300,One Education Ltd
Manchester City Council,Childrens & Education Services,Professional fees,04/05/2022,5105814888,6759,One Education Ltd
Manchester City Council,Manchester Leisure,Professional fees,06/05/2022,5105814889,3886.74,Windsor Telecom
Manchester City Council,Childrens & Education Services,Payments for services,09/05/2022,5105814895,1271.4,Fairfield Care Ltd
Manchester City Council,Regeneration Finance,Legal Fees,06/05/2022,5105814896,1000,Kings Chambers
Manchester City Council,Chief Executives,Legal Fees,09/05/2022,5105814897,700,Cornerstone Barristers
Manchester City Council,Chief Executives,ICT Sup & Maintnance,09/05/2022,5105814899,4000,The Networking People (TNP) Ltd
Manchester City Council,Adult Social Care,Extra Care Sheltd HP,05/05/2022,5105814900,45138.38,Premier Care  Ltd
Manchester City Council,Chief Executives,Printing,09/05/2022,5105814908,730,Integrity Print Ltd
Manchester City Council,Manchester Leisure,Professional Fees,04/05/2022,5105814911,953.44,DASCO Construction Limited
Manchester City Council,Chief Executives,I T Provision,05/05/2022,5105814912,5000,QA Ltd
Manchester City Council,Corporate Services,Works and associated costs for Land and Buildings,05/05/2022,5105814913,-5028.21,Energy Assets Limited
Manchester City Council,Housing Revenue Account,Private Finance and Public Private partnership initiatives,04/05/2022,5105814914,747220.97,S4B Limited
Manchester City Council,Adult Social Care,Professional fees,09/05/2022,5105814917,3011.75,The Mustard Tree
Manchester City Council,Highways Services,Professional Fees,05/05/2022,5105814918,1330.85,Balfour Beatty Living Places Ltd
Manchester City Council,Highways Services,Professional Fees,05/05/2022,5105814919,-1330.85,Balfour Beatty Living Places Ltd
Manchester City Council,Manchester Leisure,Works and associated costs for Land and Buildings,05/05/2022,5105814920,5850,Willfab Ltd
Manchester City Council,Environment and Operations,Construction Works,10/05/2022,5105814925,1000,Civic Engineers
Manchester City Council,Corporate Services,Professional fees,10/05/2022,5105814926,7830,S.I.Sealy Associates Ltd
Manchester City Council,Regeneration Finance,Taxi Vehicle Materia,16/05/2022,5105814927,1659.15,VIP-System Ltd
Manchester City Council,Corporate Services,Security,24/05/2022,5105814928,5617.71,NSL Ltd
Manchester City Council,Housing Revenue Account,Professional fees,13/05/2022,5105814932,500,Jacobs UK Ltd
Manchester City Council,Housing Revenue Account,Legal Fees,13/05/2022,5105814932,1000,Jacobs UK Ltd
Manchester City Council,Housing Revenue Account,Legal Fees,13/05/2022,5105814932,1750,Jacobs UK Ltd
Manchester City Council,Housing Revenue Account,Legal Fees,13/05/2022,5105814932,2000,Jacobs UK Ltd
Manchester City Council,Manchester Leisure,Works and associated costs for Land and Buildings,05/05/2022,5105814934,-5850,Willfab Ltd
Manchester City Council,Manchester Leisure,Works and associated costs for Land and Buildings,09/05/2022,5105814935,5750,Willfab Ltd
Manchester City Council,Corporate Services,Works and associated costs for Land and Buildings,09/05/2022,5105814937,5086,Seddon Construction Ltd
Manchester City Council,Corporate Services,Works and associated costs for Land and Buildings,09/05/2022,5105814937,19142.45,Seddon Construction Ltd
Manchester City Council,Chief Executives,Works and associated costs for Land and Buildings,10/05/2022,5105814938,3500,Planit
Manchester City Council,Corporate Services,Professional Fees,09/05/2022,5105814940,7744,Mace Cost Consultancy Ltd
Manchester City Council,Regeneration Finance,Professional fees,04/05/2022,5105814942,8516,Cushman & Wakefield
Manchester City Council,Environment and Operations,Works and associated costs for Land and Buildings,09/05/2022,5105814943,7187.5,Wybone Ltd
Manchester City Council,Adult Social Care,Professional fees,05/05/2022,5105814944,3634.13,NE1 Procurement Services Limited
Manchester City Council,Corporate Services,Professional Fees,05/05/2022,5105814945,745.8,EQUANS Services Limited
Manchester City Council,Childrens & Education Services,Contract Cleaning External,05/05/2022,5105814950,6450,Tiddlywinks Nursery-Clayton No.4 Ac
Manchester City Council,Regeneration Finance,Security,05/05/2022,5105814951,6666.67,NE1 Procurement Services Limited
Manchester City Council,Housing Revenue Account,Legal Fees,05/05/2022,5105814953,-6250,Jacobs UK Ltd
Manchester City Council,Regeneration Finance,Professional fees,05/05/2022,5105814953,-5658.75,Jacobs UK Ltd
Manchester City Council,Regeneration Finance,Professional fees,05/05/2022,5105814953,-5552.5,Jacobs UK Ltd
Manchester City Council,Regeneration Finance,Professional fees,05/05/2022,5105814953,-4209.83,Jacobs UK Ltd
Manchester City Council,Regeneration Finance,Legal Fees,05/05/2022,5105814953,-3350,Jacobs UK Ltd
Manchester City Council,Hospitality + Trading Services,Professional fees,05/05/2022,5105814953,-2628.69,Jacobs UK Ltd
Manchester City Council,Housing Revenue Account,Legal Fees,05/05/2022,5105814953,-2250,Jacobs UK Ltd
Manchester City Council,Corporate Services,Works and associated costs for Land and Buildings,05/05/2022,5105814953,-2100,Jacobs UK Ltd
Manchester City Council,Regeneration Finance,Legal Fees,05/05/2022,5105814953,-2000,Jacobs UK Ltd
Manchester City Council,Regeneration Finance,Professional fees,05/05/2022,5105814953,-1584,Jacobs UK Ltd
Manchester City Council,Regeneration Finance,Professional fees,05/05/2022,5105814953,-1148,Jacobs UK Ltd
Manchester City Council,Regeneration Finance,Professional fees,05/05/2022,5105814953,-1098,Jacobs UK Ltd
Manchester City Council,Regeneration Finance,Professional fees,05/05/2022,5105814953,-1030,Jacobs UK Ltd
Manchester City Council,Regeneration Finance,Professional fees,05/05/2022,5105814953,-848,Jacobs UK Ltd
Manchester City Council,Hospitality + Trading Services,Professional Fees,05/05/2022,5105814953,-695,Jacobs UK Ltd
Manchester City Council,Hospitality + Trading Services,Professional fees,05/05/2022,5105814953,-678,Jacobs UK Ltd
Manchester City Council,Housing Revenue Account,Works and associated costs for Land and Buildings,05/05/2022,5105814953,-636,Jacobs UK Ltd
Manchester City Council,Housing Revenue Account,Works and associated costs for Land and Buildings,05/05/2022,5105814953,-636,Jacobs UK Ltd
Manchester City Council,Regeneration Finance,Professional fees,05/05/2022,5105814954,-20648.75,Jacobs UK Ltd
Manchester City Council,Regeneration Finance,Professional fees,05/05/2022,5105814954,-11000,Jacobs UK Ltd
Manchester City Council,Hospitality + Trading Services,Professional Fees,05/05/2022,5105814954,-8077.55,Jacobs UK Ltd
Manchester City Council,Regeneration Finance,Professional fees,05/05/2022,5105814954,-7500,Jacobs UK Ltd
Manchester City Council,Regeneration Finance,Professional fees,05/05/2022,5105814954,-6339.5,Jacobs UK Ltd
Manchester City Council,Regeneration Finance,Professional fees,05/05/2022,5105814954,-4000,Jacobs UK Ltd
Manchester City Council,Housing Revenue Account,Professional fees,05/05/2022,5105814954,-3250,Jacobs UK Ltd
Manchester City Council,Regeneration Finance,Professional fees,05/05/2022,5105814954,-1928.75,Jacobs UK Ltd
Manchester City Council,Housing Revenue Account,Professional fees,05/05/2022,5105814954,-1500,Jacobs UK Ltd
Manchester City Council,Regeneration Finance,Professional fees,05/05/2022,5105814954,-1472.5,Jacobs UK Ltd
Manchester City Council,Regeneration Finance,Professional fees,05/05/2022,5105814954,-1113,Jacobs UK Ltd
Manchester City Council,Regeneration Finance,Professional fees,05/05/2022,5105814954,-901,Jacobs UK Ltd
Manchester City Council,Housing Revenue Account,Professional fees,05/05/2022,5105814954,-625,Jacobs UK Ltd
Manchester City Council,Regeneration Finance,Professional fees,05/05/2022,5105814954,-600,Jacobs UK Ltd
Manchester City Council,Housing Revenue Account,Professional fees,05/05/2022,5105814954,-500,Jacobs UK Ltd
Manchester City Council,Regeneration Finance,Professional fees,05/05/2022,5105814954,-500,Jacobs UK Ltd
Manchester City Council,Manchester Leisure,Grant and subscriptions awarded,05/05/2022,5105814957,3040.24,Merseybank Green Group
Manchester City Council,Adult Social Care,Personal needs of client,06/05/2022,5105814958,2567,Schuchmann LLP
Manchester City Council,Chief Executives,Vehicle Plant Furniture and Equipment,09/05/2022,5105814959,650,The Networking People (TNP) Ltd
Manchester City Council,Chief Executives,Training and Development,09/05/2022,5105814960,3975,Acuma Solutions Ltd
Manchester City Council,Adult Social Care,Extra Care Sheltd HP,05/05/2022,5105814961,27462.83,Premier Care  Ltd
Manchester City Council,Adult Social Care,Extra Care Sheltd HP,05/05/2022,5105814962,19939.77,Premier Care  Ltd
Manchester City Council,Adult Social Care,Extra Care Sheltd HP,05/05/2022,5105814963,21400.56,Premier Care  Ltd
Manchester City Council,Adult Social Care,Extra Care Sheltd HP,05/05/2022,5105814964,36044.97,Premier Care  Ltd
Manchester City Council,Highways Services,Payments to Sub-Contractors,05/05/2022,5105814966,-2485,Northern Marking Limited
Manchester City Council,Manchester Leisure,Storage Costs,05/05/2022,5105814969,699.89,Master Moves Ltd
Manchester City Council,Regeneration Finance,Security,05/05/2022,5105814971,-6666.67,NE1 Procurement Services Limited
Manchester City Council,Chief Executives,Training and Development,09/05/2022,5105814972,795,Acuma Solutions Ltd
Manchester City Council,Regeneration Finance,Security,31/05/2022,5105814973,8000,NE1 Procurement Services Limited
Manchester City Council,Regeneration Finance,Security,31/05/2022,5105814975,14166.67,NE1 Procurement Services Limited
Manchester City Council,Adult Social Care,Bed & Breakfast Acc,05/05/2022,5105814976,37076,Redacted Personal Information
Manchester City Council,Housing Revenue Account,Council Dwelling Adaptations,05/05/2022,5105814978,52813.38,A Connolly Limited
Manchester City Council,Corporate Services,Works and associated costs for Land and Buildings,09/05/2022,5105814979,11550,Rider Levett Bucknall UK Ltd
Manchester City Council,Corporate Services,Works and associated costs for Land and Buildings,05/05/2022,5105814980,505876.38,Bam Nuttall Ltd
Manchester City Council,Manchester Leisure,Professional fees,06/05/2022,5105814983,2071.25,Windsor Telecom
Manchester City Council,Manchester Leisure,Professional fees,06/05/2022,5105814985,2071.25,Windsor Telecom
Manchester City Council,Manchester Leisure,Special Event,05/05/2022,5105814987,2055,Street Style Surgery
Manchester City Council,Manchester Leisure,Professional Fees,05/05/2022,5105814990,5280,Inforhousing
Manchester City Council,Corporate Services,Works and associated costs for Land and Buildings,09/05/2022,5105814991,11595.5,Warden Construction Ltd
Manchester City Council,Regeneration Finance,Contract Cleaning External,05/05/2022,5105814992,8324.77,Westgrove Support Services Ltd
Manchester City Council,Corporate Services,Hire of Equipment,09/05/2022,5105814994,3824,Flowbird Smart City Uk Ltd
Manchester City Council,Corporate Services,Hire of Equipment,09/05/2022,5105814999,3824,Flowbird Smart City Uk Ltd
Manchester City Council,Adult Social Care,Payments for services,09/05/2022,5105815001,9835,Slimming World
Manchester City Council,Chief Executives,Advertising,05/05/2022,5105815004,668.76,Reach Publishing Services Ltd
Manchester City Council,Corporate Services,Works and associated costs for Land and Buildings,05/05/2022,5105815006,-539906.53,Bam Nuttall Ltd
Manchester City Council,Corporate Services,Works and associated costs for Land and Buildings,06/05/2022,5105815008,1749.56,Bam Nuttall Ltd
Manchester City Council,Corporate Services,Works and associated costs for Land and Buildings,06/05/2022,5105815008,538156.97,Bam Nuttall Ltd
Manchester City Council,Manchester Leisure,Responsive Repairs Work,09/05/2022,5105815010,18404,EQUANS Regeneration Limited
Manchester City Council,Childrens & Education Services,Transport Coach Hire,31/05/2022,5105815012,1580,PDR Travel Ltd
Manchester City Council,Chief Executives,Payments to Sub-Contractors,06/05/2022,5105815014,805.14,Redacted Personal Information
Manchester City Council,Housing Revenue Account,Professional fees,05/05/2022,5105815015,500,Jacobs UK Ltd
Manchester City Council,Regeneration Finance,Professional fees,05/05/2022,5105815015,500,Jacobs UK Ltd
Manchester City Council,Regeneration Finance,Professional fees,05/05/2022,5105815015,600,Jacobs UK Ltd
Manchester City Council,Housing Revenue Account,Professional fees,05/05/2022,5105815015,625,Jacobs UK Ltd
Manchester City Council,Regeneration Finance,Professional fees,05/05/2022,5105815015,901,Jacobs UK Ltd
Manchester City Council,Regeneration Finance,Professional fees,05/05/2022,5105815015,1113,Jacobs UK Ltd
Manchester City Council,Regeneration Finance,Professional fees,05/05/2022,5105815015,1472.5,Jacobs UK Ltd
Manchester City Council,Housing Revenue Account,Professional fees,05/05/2022,5105815015,1500,Jacobs UK Ltd
Manchester City Council,Regeneration Finance,Professional fees,05/05/2022,5105815015,1928.75,Jacobs UK Ltd
Manchester City Council,Housing Revenue Account,Professional fees,05/05/2022,5105815015,3250,Jacobs UK Ltd
Manchester City Council,Regeneration Finance,Professional fees,05/05/2022,5105815015,4000,Jacobs UK Ltd
Manchester City Council,Regeneration Finance,Professional fees,05/05/2022,5105815015,6339.5,Jacobs UK Ltd
Manchester City Council,Regeneration Finance,Professional fees,05/05/2022,5105815015,7500,Jacobs UK Ltd
Manchester City Council,Hospitality + Trading Services,Professional Fees,05/05/2022,5105815015,8077.55,Jacobs UK Ltd
Manchester City Council,Regeneration Finance,Professional fees,05/05/2022,5105815015,11000,Jacobs UK Ltd
Manchester City Council,Regeneration Finance,Professional fees,05/05/2022,5105815015,20648.75,Jacobs UK Ltd
Manchester City Council,Highways Services,Professional Fees,05/05/2022,5105815016,751.7,Balfour Beatty Living Places Ltd
Manchester City Council,Adult Social Care,Third party payments to Health Authority,05/05/2022,5105815018,6800,Central Mcr Uni Hospital t/a
Manchester City Council,Chief Executives,Agency staff provision,10/05/2022,5105815019,18480,Triad Resourcing
Manchester City Council,Regeneration Finance,I T Provision,13/05/2022,5105815020,600,Northcoders Limited
Manchester City Council,Manchester Leisure,Responsive Repairs Work,09/05/2022,5105815021,220951,EQUANS Regeneration Limited
Manchester City Council,Manchester Leisure,Responsive Repairs Work,09/05/2022,5105815022,18649,EQUANS Regeneration Limited
Manchester City Council,Manchester Leisure,Responsive Repairs Work,09/05/2022,5105815024,13083,EQUANS Regeneration Limited
Manchester City Council,Chief Executives,Subsistence and Conference Expenses,31/05/2022,5105815025,1090,Local Government Association
Manchester City Council,Childrens & Education Services,Equipment,13/05/2022,5105815026,1045.6,Bennett Workplace Solutions Ltd
Manchester City Council,Corporate Services,Stationery,13/05/2022,5105815027,1306.4,Bennett Workplace Solutions Ltd
Manchester City Council,Childrens & Education Services,Furniture,13/05/2022,5105815028,789.4,Bennett Workplace Solutions Ltd
Manchester City Council,Childrens & Education Services,Transport Coach Hire,09/05/2022,5105815029,1200,Ibuses
Manchester City Council,Childrens & Education Services,Payments for services,05/05/2022,5105815030,5193.87,The Together Trust
Manchester City Council,Childrens & Education Services,Contract Cleaning External,31/05/2022,5105815031,2107,Tiddlywinks Day Nursery
Manchester City Council,Childrens & Education Services,Grounds Maintenance,05/05/2022,5105815032,1575,Tiddlywinks Nursery-Clayton No.4 Ac
Manchester City Council,Adult Social Care,Professional fees,31/05/2022,5105815033,809,Bennett Workplace Solutions Ltd
Manchester City Council,Childrens & Education Services,Transport Coach Hire,09/05/2022,5105815036,990,JKR Travel
Manchester City Council,Manchester Leisure,Professional fees,06/05/2022,5105815038,-3886.74,Windsor Telecom
Manchester City Council,Manchester Leisure,Special Event,06/05/2022,5105815040,943,University Of Manchester
Manchester City Council,Housing Revenue Account,Works and associated costs for Land and Buildings,05/05/2022,5105815041,636,Jacobs UK Ltd
Manchester City Council,Housing Revenue Account,Works and associated costs for Land and Buildings,05/05/2022,5105815041,636,Jacobs UK Ltd
Manchester City Council,Hospitality + Trading Services,Professional fees,05/05/2022,5105815041,678,Jacobs UK Ltd
Manchester City Council,Hospitality + Trading Services,Professional Fees,05/05/2022,5105815041,695,Jacobs UK Ltd
Manchester City Council,Regeneration Finance,Professional fees,05/05/2022,5105815041,848,Jacobs UK Ltd
Manchester City Council,Regeneration Finance,Professional fees,05/05/2022,5105815041,1030,Jacobs UK Ltd
Manchester City Council,Regeneration Finance,Professional fees,05/05/2022,5105815041,1098,Jacobs UK Ltd
Manchester City Council,Regeneration Finance,Professional fees,05/05/2022,5105815041,1148,Jacobs UK Ltd
Manchester City Council,Regeneration Finance,Professional fees,05/05/2022,5105815041,1584,Jacobs UK Ltd
Manchester City Council,Regeneration Finance,Legal Fees,05/05/2022,5105815041,2000,Jacobs UK Ltd
Manchester City Council,Corporate Services,Works and associated costs for Land and Buildings,05/05/2022,5105815041,2100,Jacobs UK Ltd
Manchester City Council,Housing Revenue Account,Legal Fees,05/05/2022,5105815041,2250,Jacobs UK Ltd
Manchester City Council,Hospitality + Trading Services,Professional fees,05/05/2022,5105815041,2628.69,Jacobs UK Ltd
Manchester City Council,Regeneration Finance,Legal Fees,05/05/2022,5105815041,3350,Jacobs UK Ltd
Manchester City Council,Regeneration Finance,Professional fees,05/05/2022,5105815041,4209.83,Jacobs UK Ltd
Manchester City Council,Regeneration Finance,Professional fees,05/05/2022,5105815041,5552.5,Jacobs UK Ltd
Manchester City Council,Regeneration Finance,Professional fees,05/05/2022,5105815041,5658.75,Jacobs UK Ltd
Manchester City Council,Housing Revenue Account,Legal Fees,05/05/2022,5105815041,6250,Jacobs UK Ltd
Manchester City Council,Housing Revenue Account,Peaks & Plains Mgmt,09/05/2022,5105815042,2585.67,Cheshire Peaks & Plains
Manchester City Council,Regeneration Finance,I T Provision,13/05/2022,5105815043,600,Northcoders Limited
Manchester City Council,Regeneration Finance,I T Provision,13/05/2022,5105815044,600,Northcoders Limited
Manchester City Council,Regeneration Finance,I T Provision,13/05/2022,5105815045,600,Northcoders Limited
Manchester City Council,Adult Social Care,Training and Development,09/05/2022,5105815047,750,Disabled Living
Manchester City Council,Adult Social Care,Training and Development,09/05/2022,5105815048,750,Disabled Living
Manchester City Council,Childrens & Education Services,Professional fees,05/05/2022,5105815049,5829.86,Waddington & Son Solicitors
Manchester City Council,Childrens & Education Services,Professional fees,05/05/2022,5105815051,1666.7,Redacted Personal Information
Manchester City Council,Adult Social Care,Equipment,11/05/2022,5105815053,858,Herida Healthcare Plc
Manchester City Council,Corporate Services,Training and Development,09/05/2022,5105815054,900,Proventure Consulting
Manchester City Council,Childrens & Education Services,Third party payments to other Local Authorities,05/05/2022,5105815055,29042,Manor Academy
Manchester City Council,Regeneration Finance,Professional fees,05/05/2022,5105815057,11354,Cushman & Wakefield
Manchester City Council,Chief Executives,I T Provision,12/05/2022,5105815059,3000,QA Ltd
Manchester City Council,Childrens & Education Services,Payments for services,05/05/2022,5105815061,1533.86,The Together Trust
Manchester City Council,Childrens & Education Services,Payments for services,05/05/2022,5105815062,1060.15,The Together Trust
Manchester City Council,Childrens & Education Services,Payments for services,05/05/2022,5105815063,2394.78,The Together Trust
Manchester City Council,Manchester Leisure,Special Event,05/05/2022,5105815064,1840,Street Style Surgery
Manchester City Council,Adult Social Care,Water - Metered,05/05/2022,5105815071,729.38,Water Plus Limited
Manchester City Council,Chief Executives,Agency staff provision,05/05/2022,5105815072,680,Isherwood Legal Limited
Manchester City Council,Adult Social Care,Water - Metered,05/05/2022,5105815073,613.12,Water Plus Limited
Manchester City Council,Highways Services,Payments to Sub-Contractors,23/05/2022,5105815074,12107.46,Rosgal Ltd
Manchester City Council,Chief Executives,Printing,19/05/2022,5105815075,560,Colour Data UK Ltd
Manchester City Council,Adult Social Care,Supported Accommodation,05/05/2022,5105815076,3685.4,Mosscare Housing Ltd
Manchester City Council,Housing General Fund,Works and associated costs for Land and Buildings,05/05/2022,5105815077,130696.4,Faithful & Gould Ltd
Manchester City Council,Adult Social Care,Supported Accommodation,05/05/2022,5105815078,3685.4,Mosscare Housing Ltd
Manchester City Council,Adult Social Care,Supported Accommodation,05/05/2022,5105815079,34653,Divrse Ltd
Manchester City Council,Childrens & Education Services,Payments for services,05/05/2022,5105815080,20619,Time Specialist Support Ltd
Manchester City Council,Childrens & Education Services,Payments for services,05/05/2022,5105815081,4893.75,Time Specialist Support Ltd
Manchester City Council,Corporate Services,Works and associated costs for Land and Buildings,16/05/2022,5105815082,4999.63,Morgan Sindall C & I Ltd
Manchester City Council,Corporate Services,Works and associated costs for Land and Buildings,16/05/2022,5105815082,149005.42,Morgan Sindall C & I Ltd
Manchester City Council,Housing Revenue Account,Council Dwelling Adaptations,05/05/2022,5105815083,62241.54,"Jackson, Jackson & Sons Ltd"
Manchester City Council,Highways Services,Professional fees,06/05/2022,5105815086,7232,Pell Frischmann Consultants Ltd
Manchester City Council,Manchester Leisure,Transport and Driver Hire,05/05/2022,5105815087,1251,Art Works Exhibition Services Ltd
Manchester City Council,Chief Executives,Agency staff provision,13/05/2022,5105815088,2000,Badenoch & Clark
Manchester City Council,Adult Social Care,Rents,06/05/2022,5105815094,109193.28,T15 Consultancy Ltd
Manchester City Council,Chief Executives,Vehicle Plant Furniture and Equipment,13/05/2022,5105815095,68532,Insight Direct (Uk) Ltd
Manchester City Council,Housing Revenue Account,Council Dwelling Adaptations,11/05/2022,5105815096,1975,Red Co-operative Ltd
Manchester City Council,Adult Social Care,Rents,06/05/2022,5105815097,49130.29,B & A Properties
Manchester City Council,Adult Social Care,Professional fees,06/05/2022,5105815098,84425,VSP BEAUCLIFFE LTD
Manchester City Council,Adult Social Care,Third party payments relating to Voluntary Organisations,19/05/2022,5105815099,162682,Gaddum Centre
Manchester City Council,Housing Revenue Account,Council Dwelling Adaptations,09/05/2022,5105815100,1548.55,Pts Plumbing Trade Supplies
Manchester City Council,Adult Social Care,Professional fees,12/05/2022,5105815101,1377,UNIQUE SPECIALIST SERVICES
Manchester City Council,Housing Revenue Account,Council Dwelling Adaptations,25/05/2022,5105815102,15265.61,Rexel UK Ltd
Manchester City Council,Adult Social Care,Rents,05/05/2022,5105815104,14025,United Property Management Ltd
Manchester City Council,Highways Services,Payments to Sub-Contractors,18/05/2022,5105815105,-4000,WSP UK Limited
Manchester City Council,Housing Revenue Account,Council Dwelling Adaptations,05/05/2022,5105815106,4690.72,Rexel UK Ltd
Manchester City Council,Housing Revenue Account,Council Dwelling Adaptations,09/05/2022,5105815107,5730.81,Rexel UK Ltd
Manchester City Council,Housing Revenue Account,Council Dwelling Adaptations,10/05/2022,5105815108,10809.21,Rexel UK Ltd
Manchester City Council,Manchester Leisure,Grant and subscriptions awarded,05/05/2022,5105815109,2000,Friends of Clayton Park
Manchester City Council,Manchester Leisure,Grant and subscriptions awarded,05/05/2022,5105815110,5000,Friends of Delamere Park
Manchester City Council,Adult Social Care,Bed & Breakfast Acc,05/05/2022,5105815111,14090,247Hotel.Com
Manchester City Council,Manchester Leisure,Grant and subscriptions awarded,05/05/2022,5105815112,4000,Friends of Delamere Park
Manchester City Council,Adult Social Care,Bed & Breakfast Acc,05/05/2022,5105815113,49280,Parkview Residence
Manchester City Council,Adult Social Care,Bed & Breakfast Acc,05/05/2022,5105815114,44660,Parkview Residence
Manchester City Council,Chief Executives,Payments to Sub-Contractors,05/05/2022,5105815117,736.25,Redacted Personal Information
Manchester City Council,Childrens & Education Services,Third party payments to other Local Authorities,05/05/2022,5105815119,10890,The Orchards School
Manchester City Council,Adult Social Care,Professional fees,06/05/2022,5105815120,19185.71,CDPSoft Ltd
Manchester City Council,Chief Executives,Hire of Equipment,13/05/2022,5105815121,1800,Jigsaw Systems Limited
Manchester City Council,Housing Revenue Account,Legal Fees,06/05/2022,5105815122,-7920,Capita Property & Infras'ture Ltd
Manchester City Council,Housing Revenue Account,Council Dwelling Adaptations,31/05/2022,5105815123,5211.66,Pts Plumbing Trade Supplies
Manchester City Council,Adult Social Care,Third party payments relating to Voluntary Organisations,31/05/2022,5105815124,2500,Lives on Track
Manchester City Council,Housing Revenue Account,Legal Fees,09/05/2022,5105815125,7920,Capita Property & Infras'ture Ltd
Manchester City Council,Adult Social Care,Subsistence and Conference Expenses,06/05/2022,5105815126,4140,The Resonance Centre CIC
Manchester City Council,Housing Revenue Account,Council Dwelling Adaptations,09/05/2022,5105815127,22956.99,Rexel UK Ltd
Manchester City Council,Regeneration Finance,Cleaning Equipment and Materials,06/05/2022,5105815128,4550.4,H C Slingsby Plc
Manchester City Council,Housing Revenue Account,Council Dwelling Adaptations,06/05/2022,5105815129,4666.73,Rothwell Plumbing Services Ltd
Manchester City Council,Adult Social Care,Personal needs of client,13/05/2022,5105815130,1094.9,Drive Devilbiss Healthcare Ltd
Manchester City Council,Adult Social Care,Furniture,06/05/2022,5105815131,2000,Manchester Care & Repair Ltd
Manchester City Council,Childrens & Education Services,Transport Coach Hire,31/05/2022,5105815132,1935,Redacted Personal Information
Manchester City Council,Corporate Services,WPS Awards,31/05/2022,5105815141,529.35,Furniture Resource Centre Ltd
Manchester City Council,Housing Revenue Account,Council Dwelling Adaptations,06/05/2022,5105815144,222508.16,Emanuel Whittaker Ltd
Manchester City Council,Manchester Leisure,Cash Collection,31/05/2022,5105815145,25575.02,APCOA PARKING UK Ltd
Manchester City Council,Adult Social Care,Signers/Interpreters,06/05/2022,5105815147,582.4,Language Line Ltd
Manchester City Council,Adult Social Care,Rents,06/05/2022,5105815148,10940.81,M&D Residential Ltd
Manchester City Council,Adult Social Care,Equipment,31/05/2022,5105815150,515.4,Invacare Limited
Manchester City Council,Highways Services,Professional fees,10/05/2022,5105815151,5544,Waterman Aspen Ltd
Manchester City Council,Highways Services,Professional fees,10/05/2022,5105815152,6696,Waterman Aspen Ltd
Manchester City Council,Highways Services,Professional fees,10/05/2022,5105815153,3344,Waterman Aspen Ltd
Manchester City Council,Chief Executives,Legal Fees,17/05/2022,5105815154,3675,11KBW
Manchester City Council,Highways Services,Professional fees,10/05/2022,5105815155,3960,Waterman Aspen Ltd
Manchester City Council,Childrens & Education Services,Third party payments to other Local Authorities,06/05/2022,5105815156,3256,Whitegate End
Manchester City Council,Environment and Operations,Construction Works,31/05/2022,5105815157,19985,Waterman Aspen Ltd
Manchester City Council,Highways Services,Professional fees,10/05/2022,5105815159,7920,Waterman Aspen Ltd
Manchester City Council,Chief Executives,Hire of Equipment,13/05/2022,5105815160,16422.45,Sterling Event Group
Manchester City Council,Highways Services,Professional fees,10/05/2022,5105815161,6533.5,Waterman Aspen Ltd
Manchester City Council,Highways Services,Professional fees,10/05/2022,5105815163,9851,Waterman Aspen Ltd
Manchester City Council,Highways Services,Professional fees,10/05/2022,5105815164,6450,Waterman Aspen Ltd
Manchester City Council,Highways Services,Building Materials for direct delivery,13/05/2022,5105815168,6885,Kloeckner Metals UK
Manchester City Council,Environment and Operations,Construction Works,16/05/2022,5105815169,740,IDS Land Survey
Manchester City Council,Housing Revenue Account,Council Dwelling Adaptations,26/05/2022,5105815171,2822.55,Pts Plumbing Trade Supplies
Manchester City Council,Adult Social Care,Rents,06/05/2022,5105815172,70846.06,Cromwood Ltd
Manchester City Council,Manchester Leisure,Grant and subscriptions awarded,06/05/2022,5105815173,3647,Arawak Walton Housing Association
Manchester City Council,Highways Services,Building Materials for direct delivery,06/05/2022,5105815174,1040.98,TARMAC
Manchester City Council,Childrens Services,Works and associated costs for Land and Buildings,31/05/2022,5105815179,17650.17,Faithful & Gould Ltd
Manchester City Council,Adult Social Care,Payments for services,31/05/2022,5105815180,2000,Local Government Association
Manchester City Council,Housing Revenue Account,Council Dwelling Adaptations,06/05/2022,5105815188,3688.26,Rothwell Plumbing Services Ltd
Manchester City Council,Regeneration Finance,Cleaning Equipment and Materials,06/05/2022,5105815189,-4550.4,H C Slingsby Plc
Manchester City Council,Adult Social Care,Payments for services,06/05/2022,5105815191,2200,Kaleidoscope Project
Manchester City Council,Adult Social Care,Rents,09/05/2022,5105815192,13157.32,Eeven Homes Ltd.
Manchester City Council,Adult Social Care,Rents,06/05/2022,5105815193,14064.73,Eeven Homes Ltd.
Manchester City Council,Adult Social Care,Rents,06/05/2022,5105815194,12868.24,Eeven Homes Ltd.
Manchester City Council,Chief Executives,Agency staff provision,10/05/2022,5105815195,16992,Gatenby Sanderson
Manchester City Council,Chief Executives,Agency staff provision,10/05/2022,5105815196,6798,Gatenby Sanderson
Manchester City Council,Adult Social Care,Payments for services,06/05/2022,5105815197,6291,Turning Point
Manchester City Council,Chief Executives,Payments to Sub-Contractors,06/05/2022,5105815211,568.3,Redacted Personal Information
Manchester City Council,Chief Executives,Payments to Sub-Contractors,13/05/2022,5105815212,501.94,Redacted Personal Information
Manchester City Council,Chief Executives,Payments to Sub-Contractors,10/05/2022,5105815213,629.2,Redacted Personal Information
Manchester City Council,Chief Executives,Funeral and coroner related services,06/05/2022,5105815223,8690,Kane Funeral Services
Manchester City Council,Corporate Services,Mobilephone Charges,09/05/2022,5105815224,596.6,EE/T-Mobile
Manchester City Council,Chief Executives,Funeral and coroner related services,06/05/2022,5105815225,2430.7,Redacted Personal Information
Manchester City Council,Housing Revenue Account,Council Dwelling Adaptations,06/05/2022,5105815226,809.54,Moores Furniture Group Limited
Manchester City Council,Adult Social Care,Bed & Breakfast Acc,06/05/2022,5105815228,11330,Fairways Lodge
Manchester City Council,Chief Executives,Examination Fees,09/05/2022,5105815230,1410.75,ROAR Forensics Ltd
Manchester City Council,Manchester Leisure,Special Event,10/05/2022,5105815231,3484,Utilities Design & Planning Ltd
Manchester City Council,Chief Executives,Funeral and coroner related services,06/05/2022,5105815232,6586.18,Central Mcr Uni Hospital t/a
Manchester City Council,Chief Executives,Funeral and coroner related services,06/05/2022,5105815233,1858.94,Central Mcr Uni Hospital t/a
Manchester City Council,Housing Revenue Account,Council Dwelling Adaptations,06/05/2022,5105815234,1092.53,Rexel UK Ltd
Manchester City Council,Hospitality + Trading Services,Hire of Equipment,06/05/2022,5105815238,8002.05,Fast Hire UK
Manchester City Council,Highways Services,Building Materials for direct delivery,06/05/2022,5105815239,1300,Ecomix Concrete Ltd
Manchester City Council,Highways Services,Building Materials for direct delivery,06/05/2022,5105815240,1694.5,Ecomix Concrete Ltd
Manchester City Council,Chief Executives,Payments to Sub-Contractors,06/05/2022,5105815242,505,Cosmic Europe Ltd
Manchester City Council,Hospitality + Trading Services,Security,16/05/2022,5105815244,13298.85,Showsec International Ltd
Manchester City Council,Adult Social Care,Rents,09/05/2022,5105815246,8833.52,M&D Residential Ltd
Manchester City Council,Highways Services,Building Materials for direct delivery,06/05/2022,5105815251,888,Ecomix Concrete Ltd
Manchester City Council,Hospitality + Trading Services,Hire of Machinery,09/05/2022,5105815254,708,Gibsons Garden Machinery Limited
Manchester City Council,Childrens & Education Services,Professional fees,09/05/2022,5105815261,750,Prospero Teaching
Manchester City Council,Childrens & Education Services,Professional fees,09/05/2022,5105815262,750,Prospero Teaching
Manchester City Council,Chief Executives,Payments to Sub-Contractors,16/05/2022,5105815271,1585.07,Redacted Personal Information
Manchester City Council,Chief Executives,Payments to Sub-Contractors,09/05/2022,5105815273,507.32,Redacted Personal Information
Manchester City Council,Chief Executives,Payments to Sub-Contractors,09/05/2022,5105815274,675.5,Redacted Personal Information
Manchester City Council,Chief Executives,Payments to Sub-Contractors,09/05/2022,5105815275,634.15,Redacted Personal Information
Manchester City Council,Manchester Leisure,Contract Cleaning External,10/05/2022,5105815276,5878.46,Scrutiny Cleaning Services
Manchester City Council,Chief Executives,Payments to Sub-Contractors,16/05/2022,5105815278,599.6,Redacted Personal Information
Manchester City Council,Manchester Leisure,Payments to Sub-Contractors,10/05/2022,5105815279,7536.75,Scrutiny Cleaning Services
Manchester City Council,Manchester Leisure,Payments to Sub-Contractors,10/05/2022,5105815280,4188.75,Scrutiny Cleaning Services
Manchester City Council,Highways Services,Professional Fees,09/05/2022,5105815281,12045.15,A T G Access Ltd
Manchester City Council,Environment and Operations,Construction Works,16/05/2022,5105815291,10294.29,Wilde Consultants Ltd
Manchester City Council,Manchester Leisure,Payments to Sub-Contractors,10/05/2022,5105815292,8374.2,Scrutiny Cleaning Services
Manchester City Council,Manchester Leisure,Agency staff provision,16/05/2022,5105815293,16655.5,University Of Manchester
Manchester City Council,Adult Social Care,Extra Care Sheltd HP,09/05/2022,5105815298,24555.85,Homecare Support
Manchester City Council,Adult Social Care,Extra Care Sheltd HP,09/05/2022,5105815299,24555.85,Homecare Support
Manchester City Council,Manchester Leisure,Environmental Services,31/05/2022,5105815300,618.26,Master Moves Ltd
Manchester City Council,Hospitality + Trading Services,Hire of Machinery,09/05/2022,5105815301,590,Gibsons Garden Machinery Limited
Manchester City Council,Adult Social Care,Payments for services,09/05/2022,5105815308,-9835,Slimming World
Manchester City Council,Manchester Leisure,Equipment,16/05/2022,5105815317,1120,B & S Chains (Midlands) Ltd
Manchester City Council,Highways Services,Purchase of stores for re-distribution,16/05/2022,5105815318,549.5,Manchester Safety Services Ltd
